Workbook

Sheet 语文
A1: 2021年兰州市公开招聘中小学聘用制教师（城关区教育局所属学校）综合成绩及入围体检人员名单
A2: 序号 | B2: 姓名 | C2: 准考证号 | D2: 主管单位 | E2: 岗位代码 | F2: 岗位 名称 | G2: 拟招聘 人数 | H2: 笔试成绩 | I2: 面试原始得分 | J2: 面试考场号 | K2: 考场加权系数 | L2: 面试成绩 | M2: 综合成绩 | N2: 综合排名 | O2: 是否进入体检环节 | P2: 备注
A3: 1 | B3: 王彩云 | C3: 62011041422 | D3: 兰州市城关区教育局 | E3: 8165 | F3: 小学语文教师 | G3: 105 | H3: 86.30 | I3: 86.20 | J3: 2 | K3: 1.03 | L3: 88.76 | M3: 87.53 | N3: 1 | O3: 是
A4: 2 | B4: 苏璐 | C4: 62011050120 | D4: 兰州市城关区教育局 | E4: 8165 | F4: 小学语文教师 | G4: 105 | H4: 84.05 | I4: 90.00 | J4: 10 | K4: 0.99 | L4: 88.92 | M4: 86.49 | N4: 2 | O4: 是
A5: 3 | B5: 任佳芮 | C5: 62011021719 | D5: 兰州市城关区教育局 | E5: 8165 | F5: 小学语文教师 | G5: 105 | H5: 80.20 | I5: 91.40 | J5: 8 | K5: 1.00 | L5: 91.79 | M5: 86.00 | N5: 3 | O5: 是
A6: 4 | B6: 崔治娟 | C6: 62011042405 | D6: 兰州市城关区教育局 | E6: 8165 | F6: 小学语文教师 | G6: 105 | H6: 83.75 | I6: 88.60 | J6: 10 | K6: 0.99 | L6: 87.53 | M6: 85.64 | N6: 4 | O6: 是
A7: 5 | B7: 王玉红 | C7: 62011051118 | D7: 兰州市城关区教育局 | E7: 8165 | F7: 小学语文教师 | G7: 105 | H7: 81.65 | I7: 91.80 | J7: 12 | K7: 0.97 | L7: 89.38 | M7: 85.52 | N7: 5 | O7: 是
A8: 6 | B8: 巴红燕 | C8: 62011092305 | D8: 兰州市城关区教育局 | E8: 8165 | F8: 小学语文教师 | G8: 105 | H8: 76.55 | I8: 91.80 | J8: 3 | K8: 1.02 | L8: 93.98 | M8: 85.27 | N8: 6 | O8: 是
A9: 7 | B9: 任霞 | C9: 62011091324 | D9: 兰州市城关区教育局 | E9: 8165 | F9: 小学语文教师 | G9: 105 | H9: 80.40 | I9: 92.40 | J9: 11 | K9: 0.97 | L9: 90.08 | M9: 85.24 | N9: 7 | O9: 是
A10: 8 | B10: 程津 | C10: 62011041429 | D10: 兰州市城关区教育局 | E10: 8165 | F10: 小学语文教师 | G10: 105 | H10: 77.25 | I10: 90.40 | J10: 2 | K10: 1.03 | L10: 93.09 | M10: 85.17 | N10: 8 | O10: 是
A11: 9 | B11: 郜艳丽 | C11: 62011070111 | D11: 兰州市城关区教育局 | E11: 8165 | F11: 小学语文教师 | G11: 105 | H11: 82.95 | I11: 86.40 | J11: 9 | K11: 1.01 | L11: 87.22 | M11: 85.09 | N11: 9 | O11: 是
A12: 10 | B12: 赵齐 | C12: 62011021921 | D12: 兰州市城关区教育局 | E12: 8165 | F12: 小学语文教师 | G12: 105 | H12: 78.95 | I12: 90.80 | J12: 8 | K12: 1.00 | L12: 91.19 | M12: 85.07 | N12: 10 | O12: 是
A13: 11 | B13: 吴娅萍 | C13: 62011072126 | D13: 兰州市城关区教育局 | E13: 8165 | F13: 小学语文教师 | G13: 105 | H13: 81.90 | I13: 85.20 | J13: 2 | K13: 1.03 | L13: 87.73 | M13: 84.82 | N13: 11 | O13: 是
A14: 12 | B14: 王晶 | C14: 62011021302 | D14: 兰州市城关区教育局 | E14: 8165 | F14: 小学语文教师 | G14: 105 | H14: 79.45 | I14: 90.40 | J14: 7 | K14: 0.99 | L14: 89.79 | M14: 84.62 | N14: 12 | O14: 是
A15: 13 | B15: 邸嘉慧 | C15: 62011011804 | D15: 兰州市城关区教育局 | E15: 8165 | F15: 小学语文教师 | G15: 105 | H15: 76.70 | I15: 89.80 | J15: 2 | K15: 1.03 | L15: 92.47 | M15: 84.59 | N15: 13 | O15: 是
A16: 14 | B16: 马小梅 | C16: 62011042117 | D16: 兰州市城关区教育局 | E16: 8165 | F16: 小学语文教师 | G16: 105 | H16: 76.10 | I16: 90.00 | J16: 2 | K16: 1.03 | L16: 92.67 | M16: 84.39 | N16: 14 | O16: 是
A17: 15 | B17: 王畅 | C17: 62011050316 | D17: 兰州市城关区教育局 | E17: 8165 | F17: 小学语文教师 | G17: 105 | H17: 79.65 | I17: 91.00 | J17: 12 | K17: 0.97 | L17: 88.61 | M17: 84.13 | N17: 15 | O17: 是
A18: 16 | B18: 杨雅杰 | C18: 62011090516 | D18: 兰州市城关区教育局 | E18: 8165 | F18: 小学语文教师 | G18: 105 | H18: 79.10 | I18: 91.40 | J18: 11 | K18: 0.97 | L18: 89.10 | M18: 84.10 | N18: 16 | O18: 是
A19: 17 | B19: 郑芊芊 | C19: 62011032206 | D19: 兰州市城关区教育局 | E19: 8165 | F19: 小学语文教师 | G19: 105 | H19: 79.35 | I19: 87.80 | J19: 9 | K19: 1.01 | L19: 88.63 | M19: 83.99 | N19: 17 | O19: 是
A20: 18 | B20: 胡国柱 | C20: 62011101209 | D20: 兰州市城关区教育局 | E20: 8165 | F20: 小学语文教师 | G20: 105 | H20: 84.85 | I20: 83.50 | J20: 5 | K20: 0.99 | L20: 83.03 | M20: 83.94 | N20: 18 | O20: 是
A21: 19 | B21: 马锦涛 | C21: 62011010911 | D21: 兰州市城关区教育局 | E21: 8165 | F21: 小学语文教师 | G21: 105 | H21: 74.15 | I21: 90.40 | J21: 2 | K21: 1.03 | L21: 93.09 | M21: 83.62 | N21: 19 | O21: 是
A22: 20 | B22: 邓建忠 | C22: 62011010721 | D22: 兰州市城关区教育局 | E22: 8165 | F22: 小学语文教师 | G22: 105 | H22: 73.60 | I22: 91.60 | J22: 4 | K22: 1.02 | L22: 93.61 | M22: 83.61 | N22: 20 | O22: 是
A23: 21 | B23: 陈晓依 | C23: 62011041910 | D23: 兰州市城关区教育局 | E23: 8165 | F23: 小学语文教师 | G23: 105 | H23: 78.70 | I23: 89.00 | J23: 7 | K23: 0.99 | L23: 88.40 | M23: 83.55 | N23: 21 | O23: 是
A24: 22 | B24: 张晶 | C24: 62011090202 | D24: 兰州市城关区教育局 | E24: 8165 | F24: 小学语文教师 | G24: 105 | H24: 74.60 | I24: 92.00 | J24: 6 | K24: 1.01 | L24: 92.48 | M24: 83.54 | N24: 22 | O24: 是
A25: 23 | B25: 马芳 | C25: 62011070802 | D25: 兰州市城关区教育局 | E25: 8165 | F25: 小学语文教师 | G25: 105 | H25: 80.15 | I25: 85.00 | J25: 4 | K25: 1.02 | L25: 86.86 | M25: 83.51 | N25: 23 | O25: 是
A26: 24 | B26: 赵亚飞 | C26: 62011052115 | D26: 兰州市城关区教育局 | E26: 8165 | F26: 小学语文教师 | G26: 105 | H26: 83.80 | I26: 81.20 | J26: 4 | K26: 1.02 | L26: 82.98 | M26: 83.39 | N26: 24 | O26: 是
A27: 25 | B27: 海岚 | C27: 62011041023 | D27: 兰州市城关区教育局 | E27: 8165 | F27: 小学语文教师 | G27: 105 | H27: 76.35 | I27: 89.80 | J27: 6 | K27: 1.01 | L27: 90.27 | M27: 83.31 | N27: 25 | O27: 是
A28: 26 | B28: 强慧娴 | C28: 62011082529 | D28: 兰州市城关区教育局 | E28: 8165 | F28: 小学语文教师 | G28: 105 | H28: 74.80 | I28: 89.80 | J28: 4 | K28: 1.02 | L28: 91.77 | M28: 83.29 | N28: 26 | O28: 是
A29: 27 | B29: 魏金婷 | C29: 62011021123 | D29: 兰州市城关区教育局 | E29: 8165 | F29: 小学语文教师 | G29: 105 | H29: 76.80 | I29: 88.60 | J29: 9 | K29: 1.01 | L29: 89.44 | M29: 83.12 | N29: 27 | O29: 是
A30: 28 | B30: 张雨婷 | C30: 62011010109 | D30: 兰州市城关区教育局 | E30: 8165 | F30: 小学语文教师 | G30: 105 | H30: 77.40 | I30: 89.80 | J30: 1 | K30: 0.99 | L30: 88.70 | M30: 83.05 | N30: 28 | O30: 是
A31: 29 | B31: 李文权 | C31: 62011031108 | D31: 兰州市城关区教育局 | E31: 8165 | F31: 小学语文教师 | G31: 105 | H31: 74.65 | I31: 90.60 | J31: 6 | K31: 1.01 | L31: 91.08 | M31: 82.87 | N31: 29 | O31: 是
A32: 30 | B32: 宋瑞瑞 | C32: 62011080418 | D32: 兰州市城关区教育局 | E32: 8165 | F32: 小学语文教师 | G32: 105 | H32: 78.40 | I32: 88.40 | J32: 1 | K32: 0.99 | L32: 87.32 | M32: 82.86 | N32: 30 | O32: 是
A33: 31 | B33: 马筱玉 | C33: 62011082213 | D33: 兰州市城关区教育局 | E33: 8165 | F33: 小学语文教师 | G33: 105 | H33: 80.10 | I33: 87.80 | J33: 12 | K33: 0.97 | L33: 85.49 | M33: 82.80 | N33: 31 | O33: 是
A34: 32 | B34: 王爱帆 | C34: 62011092001 | D34: 兰州市城关区教育局 | E34: 8165 | F34: 小学语文教师 | G34: 105 | H34: 76.95 | I34: 86.40 | J34: 3 | K34: 1.02 | L34: 88.45 | M34: 82.70 | N34: 32 | O34: 是
A35: 33 | B35: 魏文璇 | C35: 62011020321 | D35: 兰州市城关区教育局 | E35: 8165 | F35: 小学语文教师 | G35: 105 | H35: 76.25 | I35: 90.20 | J35: 1 | K35: 0.99 | L35: 89.10 | M35: 82.68 | N35: 33 | O35: 是
A36: 34 | B36: 张琦 | C36: 62011070419 | D36: 兰州市城关区教育局 | E36: 8165 | F36: 小学语文教师 | G36: 105 | H36: 77.60 | I36: 86.80 | J36: 9 | K36: 1.01 | L36: 87.62 | M36: 82.61 | N36: 34 | O36: 是
A37: 35 | B37: 李宁宁 | C37: 62011071011 | D37: 兰州市城关区教育局 | E37: 8165 | F37: 小学语文教师 | G37: 105 | H37: 76.35 | I37: 91.20 | J37: 12 | K37: 0.97 | L37: 88.80 | M37: 82.58 | N37: 35 | O37: 是
A38: 36 | B38: 李卓岱 | C38: 62011040903 | D38: 兰州市城关区教育局 | E38: 8165 | F38: 小学语文教师 | G38: 105 | H38: 78.40 | I38: 86.20 | J38: 6 | K38: 1.01 | L38: 86.65 | M38: 82.53 | N38: 36 | O38: 是
A39: 37 | B39: 瞿继蓉 | C39: 62011070907 | D39: 兰州市城关区教育局 | E39: 8165 | F39: 小学语文教师 | G39: 105 | H39: 79.85 | I39: 83.20 | J39: 3 | K39: 1.02 | L39: 85.17 | M39: 82.51 | N39: 37 | O39: 是
A40: 38 | B40: 贾元月 | C40: 62011061321 | D40: 兰州市城关区教育局 | E40: 8165 | F40: 小学语文教师 | G40: 105 | H40: 80.95 | I40: 84.60 | J40: 7 | K40: 0.99 | L40: 84.03 | M40: 82.49 | N40: 38 | O40: 是
A41: 39 | B41: 封阅 | C41: 62011051624 | D41: 兰州市城关区教育局 | E41: 8165 | F41: 小学语文教师 | G41: 105 | H41: 77.50 | I41: 87.00 | J41: 8 | K41: 1.00 | L41: 87.38 | M41: 82.44 | N41: 39 | O41: 是
A42: 40 | B42: 王明玥 | C42: 62011051318 | D42: 兰州市城关区教育局 | E42: 8165 | F42: 小学语文教师 | G42: 105 | H42: 75.80 | I42: 88.60 | J42: 6 | K42: 1.01 | L42: 89.07 | M42: 82.44 | N42: 39 | O42: 是
A43: 41 | B43: 李亚红 | C43: 62011090205 | D43: 兰州市城关区教育局 | E43: 8165 | F43: 小学语文教师 | G43: 105 | H43: 77.65 | I43: 88.20 | J43: 10 | K43: 0.99 | L43: 87.14 | M43: 82.40 | N43: 41 | O43: 是
A44: 42 | B44: 高露露 | C44: 62011040624 | D44: 兰州市城关区教育局 | E44: 8165 | F44: 小学语文教师 | G44: 105 | H44: 77.35 | I44: 89.60 | J44: 11 | K44: 0.97 | L44: 87.35 | M44: 82.35 | N44: 42 | O44: 是
A45: 43 | B45: 朱芮萱 | C45: 62011091913 | D45: 兰州市城关区教育局 | E45: 8165 | F45: 小学语文教师 | G45: 105 | H45: 76.60 | I45: 90.40 | J45: 12 | K45: 0.97 | L45: 88.02 | M45: 82.31 | N45: 43 | O45: 是
A46: 44 | B46: 王馨月 | C46: 62011010312 | D46: 兰州市城关区教育局 | E46: 8165 | F46: 小学语文教师 | G46: 105 | H46: 78.65 | I46: 83.80 | J46: 3 | K46: 1.02 | L46: 85.79 | M46: 82.22 | N46: 44 | O46: 是
A47: 45 | B47: 刘于菱 | C47: 62011101712 | D47: 兰州市城关区教育局 | E47: 8165 | F47: 小学语文教师 | G47: 105 | H47: 76.55 | I47: 86.00 | J47: 4 | K47: 1.02 | L47: 87.88 | M47: 82.22 | N47: 44 | O47: 是
A48: 46 | B48: 黄娅玲 | C48: 62011102526 | D48: 兰州市城关区教育局 | E48: 8165 | F48: 小学语文教师 | G48: 105 | H48: 81.25 | I48: 82.20 | J48: 9 | K48: 1.01 | L48: 82.98 | M48: 82.12 | N48: 46 | O48: 是
A49: 47 | B49: 原苗苗 | C49: 62011061303 | D49: 兰州市城关区教育局 | E49: 8165 | F49: 小学语文教师 | G49: 105 | H49: 78.45 | I49: 86.20 | J49: 5 | K49: 0.99 | L49: 85.71 | M49: 82.08 | N49: 47 | O49: 是
A50: 48 | B50: 段兰芳 | C50: 62011011314 | D50: 兰州市城关区教育局 | E50: 8165 | F50: 小学语文教师 | G50: 105 | H50: 78.85 | I50: 84.80 | J50: 6 | K50: 1.01 | L50: 85.25 | M50: 82.05 | N50: 48 | O50: 是
A51: 49 | B51: 文建芳 | C51: 62011021210 | D51: 兰州市城关区教育局 | E51: 8165 | F51: 小学语文教师 | G51: 105 | H51: 78.10 | I51: 86.40 | J51: 5 | K51: 0.99 | L51: 85.91 | M51: 82.01 | N51: 49 | O51: 是
A52: 50 | B52: 朱蔼芸 | C52: 62011041309 | D52: 兰州市城关区教育局 | E52: 8165 | F52: 小学语文教师 | G52: 105 | H52: 73.90 | I52: 90.60 | J52: 5 | K52: 0.99 | L52: 90.09 | M52: 82.00 | N52: 50 | O52: 是
A53: 51 | B53: 刘翠瑛 | C53: 62011062223 | D53: 兰州市城关区教育局 | E53: 8165 | F53: 小学语文教师 | G53: 105 | H53: 78.85 | I53: 87.40 | J53: 12 | K53: 0.97 | L53: 85.10 | M53: 81.98 | N53: 51 | O53: 是
A54: 52 | B54: 朱家玓 | C54: 62011020802 | D54: 兰州市城关区教育局 | E54: 8165 | F54: 小学语文教师 | G54: 105 | H54: 74.05 | I54: 91.00 | J54: 1 | K54: 0.99 | L54: 89.89 | M54: 81.97 | N54: 52 | O54: 是
A55: 53 | B55: 裴宏晶 | C55: 62011060803 | D55: 兰州市城关区教育局 | E55: 8165 | F55: 小学语文教师 | G55: 105 | H55: 76.70 | I55: 87.80 | J55: 7 | K55: 0.99 | L55: 87.21 | M55: 81.96 | N55: 53 | O55: 是
A56: 54 | B56: 宋雪莲 | C56: 62011032308 | D56: 兰州市城关区教育局 | E56: 8165 | F56: 小学语文教师 | G56: 105 | H56: 75.25 | I56: 86.60 | J56: 3 | K56: 1.02 | L56: 88.65 | M56: 81.95 | N56: 54 | O56: 是
A57: 55 | B57: 周淑媛 | C57: 62011030524 | D57: 兰州市城关区教育局 | E57: 8165 | F57: 小学语文教师 | G57: 105 | H57: 77.15 | I57: 87.80 | J57: 1 | K57: 0.99 | L57: 86.73 | M57: 81.94 | N57: 55 | O57: 是
A58: 56 | B58: 杨婷 | C58: 62011102121 | D58: 兰州市城关区教育局 | E58: 8165 | F58: 小学语文教师 | G58: 105 | H58: 76.45 | I58: 86.60 | J58: 9 | K58: 1.01 | L58: 87.42 | M58: 81.94 | N58: 55 | O58: 是
A59: 57 | B59: 马丽云 | C59: 62011092403 | D59: 兰州市城关区教育局 | E59: 8165 | F59: 小学语文教师 | G59: 105 | H59: 74.10 | I59: 90.20 | J59: 5 | K59: 0.99 | L59: 89.69 | M59: 81.90 | N59: 57 | O59: 是
A60: 58 | B60: 李玲玲 | C60: 62011031815 | D60: 兰州市城关区教育局 | E60: 8165 | F60: 小学语文教师 | G60: 105 | H60: 75.10 | I60: 86.60 | J60: 3 | K60: 1.02 | L60: 88.65 | M60: 81.88 | N60: 58 | O60: 是
A61: 59 | B61: 李博 | C61: 62011042321 | D61: 兰州市城关区教育局 | E61: 8165 | F61: 小学语文教师 | G61: 105 | H61: 78.90 | I61: 85.40 | J61: 7 | K61: 0.99 | L61: 84.83 | M61: 81.87 | N61: 59 | O61: 是
A62: 60 | B62: 田艺瑶 | C62: 62011090328 | D62: 兰州市城关区教育局 | E62: 8165 | F62: 小学语文教师 | G62: 105 | H62: 74.60 | I62: 89.60 | J62: 5 | K62: 0.99 | L62: 89.09 | M62: 81.85 | N62: 60 | O62: 是
A63: 61 | B63: 陈箫艳 | C63: 62011090306 | D63: 兰州市城关区教育局 | E63: 8165 | F63: 小学语文教师 | G63: 105 | H63: 73.50 | I63: 90.80 | J63: 7 | K63: 0.99 | L63: 90.19 | M63: 81.85 | N63: 60 | O63: 是
A64: 62 | B64: 曹亚彤 | C64: 62011040728 | D64: 兰州市城关区教育局 | E64: 8165 | F64: 小学语文教师 | G64: 105 | H64: 76.30 | I64: 87.00 | J64: 8 | K64: 1.00 | L64: 87.38 | M64: 81.84 | N64: 62 | O64: 是
A65: 63 | B65: 康紫娟 | C65: 62011091017 | D65: 兰州市城关区教育局 | E65: 8165 | F65: 小学语文教师 | G65: 105 | H65: 76.25 | I65: 86.60 | J65: 9 | K65: 1.01 | L65: 87.42 | M65: 81.84 | N65: 62 | O65: 是
A66: 64 | B66: 赵丽婷 | C66: 62011010108 | D66: 兰州市城关区教育局 | E66: 8165 | F66: 小学语文教师 | G66: 105 | H66: 77.20 | I66: 87.40 | J66: 10 | K66: 0.99 | L66: 86.35 | M66: 81.78 | N66: 64 | O66: 是
A67: 65 | B67: 曹子润 | C67: 62011042422 | D67: 兰州市城关区教育局 | E67: 8165 | F67: 小学语文教师 | G67: 105 | H67: 76.80 | I67: 84.20 | J67: 2 | K67: 1.03 | L67: 86.70 | M67: 81.75 | N67: 65 | O67: 是
A68: 66 | B68: 张启梦 | C68: 62011102227 | D68: 兰州市城关区教育局 | E68: 8165 | F68: 小学语文教师 | G68: 105 | H68: 78.50 | I68: 84.60 | J68: 8 | K68: 1.00 | L68: 84.96 | M68: 81.73 | N68: 66 | O68: 是
A69: 67 | B69: 高丽 | C69: 62011080316 | D69: 兰州市城关区教育局 | E69: 8165 | F69: 小学语文教师 | G69: 105 | H69: 73.45 | I69: 87.80 | J69: 3 | K69: 1.02 | L69: 89.88 | M69: 81.67 | N69: 67 | O69: 是
A70: 68 | B70: 王慧霞 | C70: 62011031427 | D70: 兰州市城关区教育局 | E70: 8165 | F70: 小学语文教师 | G70: 105 | H70: 77.55 | I70: 85.40 | J70: 8 | K70: 1.00 | L70: 85.77 | M70: 81.66 | N70: 68 | O70: 是
A71: 69 | B71: 蒋男 | C71: 62011060822 | D71: 兰州市城关区教育局 | E71: 8165 | F71: 小学语文教师 | G71: 105 | H71: 75.30 | I71: 88.60 | J71: 7 | K71: 0.99 | L71: 88.00 | M71: 81.65 | N71: 69 | O71: 是
A72: 70 | B72: 谢茜 | C72: 62011071426 | D72: 兰州市城关区教育局 | E72: 8165 | F72: 小学语文教师 | G72: 105 | H72: 76.85 | I72: 88.60 | J72: 12 | K72: 0.97 | L72: 86.27 | M72: 81.56 | N72: 70 | O72: 是
A73: 71 | B73: 杨金玉 | C73: 62011060318 | D73: 兰州市城关区教育局 | E73: 8165 | F73: 小学语文教师 | G73: 105 | H73: 73.95 | I73: 87.20 | J73: 4 | K73: 1.02 | L73: 89.11 | M73: 81.53 | N73: 71 | O73: 是
A74: 72 | B74: 王珊珊 | C74: 62011041709 | D74: 兰州市城关区教育局 | E74: 8165 | F74: 小学语文教师 | G74: 105 | H74: 81.45 | I74: 79.20 | J74: 2 | K74: 1.03 | L74: 81.55 | M74: 81.50 | N74: 72 | O74: 是
A75: 73 | B75: 王欢欢 | C75: 62011070228 | D75: 兰州市城关区教育局 | E75: 8165 | F75: 小学语文教师 | G75: 105 | H75: 76.95 | I75: 85.60 | J75: 6 | K75: 1.01 | L75: 86.05 | M75: 81.50 | N75: 72 | O75: 是
A76: 74 | B76: 郭倩 | C76: 62011090707 | D76: 兰州市城关区教育局 | E76: 8165 | F76: 小学语文教师 | G76: 105 | H76: 76.90 | I76: 85.20 | J76: 9 | K76: 1.01 | L76: 86.00 | M76: 81.45 | N76: 74 | O76: 是
A77: 75 | B77: 李倩 | C77: 62011022226 | D77: 兰州市城关区教育局 | E77: 8165 | F77: 小学语文教师 | G77: 105 | H77: 72.20 | I77: 88.60 | J77: 3 | K77: 1.02 | L77: 90.70 | M77: 81.45 | N77: 74 | O77: 是
A78: 76 | B78: 铁佳佳 | C78: 62011091112 | D78: 兰州市城关区教育局 | E78: 8165 | F78: 小学语文教师 | G78: 105 | H78: 77.50 | I78: 84.60 | J78: 9 | K78: 1.01 | L78: 85.40 | M78: 81.45 | N78: 74 | O78: 是
A79: 77 | B79: 李海菁 | C79: 62011080523 | D79: 兰州市城关区教育局 | E79: 8165 | F79: 小学语文教师 | G79: 105 | H79: 73.55 | I79: 90.40 | J79: 1 | K79: 0.99 | L79: 89.29 | M79: 81.42 | N79: 77 | O79: 是
A80: 78 | B80: 郝文郁 | C80: 62011101518 | D80: 兰州市城关区教育局 | E80: 8165 | F80: 小学语文教师 | G80: 105 | H80: 75.05 | I80: 90.00 | J80: 11 | K80: 0.97 | L80: 87.74 | M80: 81.40 | N80: 78 | O80: 是
A81: 79 | B81: 王茫茫 | C81: 62011101406 | D81: 兰州市城关区教育局 | E81: 8165 | F81: 小学语文教师 | G81: 105 | H81: 73.40 | I81: 86.80 | J81: 2 | K81: 1.03 | L81: 89.38 | M81: 81.39 | N81: 79 | O81: 是
A82: 80 | B82: 许星馨 | C82: 62011080824 | D82: 兰州市城关区教育局 | E82: 8165 | F82: 小学语文教师 | G82: 105 | H82: 73.85 | I82: 91.20 | J82: 11 | K82: 0.97 | L82: 88.91 | M82: 81.38 | N82: 80 | O82: 是
A83: 81 | B83: 马建龙 | C83: 62011010214 | D83: 兰州市城关区教育局 | E83: 8165 | F83: 小学语文教师 | G83: 105 | H83: 78.50 | I83: 83.40 | J83: 9 | K83: 1.01 | L83: 84.19 | M83: 81.35 | N83: 81 | O83: 是
A84: 82 | B84: 王芳元 | C84: 62011060113 | D84: 兰州市城关区教育局 | E84: 8165 | F84: 小学语文教师 | G84: 105 | H84: 79.05 | I84: 84.20 | J84: 7 | K84: 0.99 | L84: 83.63 | M84: 81.34 | N84: 82 | O84: 是
A85: 83 | B85: 高君 | C85: 62011042217 | D85: 兰州市城关区教育局 | E85: 8165 | F85: 小学语文教师 | G85: 105 | H85: 78.45 | I85: 83.40 | J85: 9 | K85: 1.01 | L85: 84.19 | M85: 81.32 | N85: 83 | O85: 是
A86: 84 | B86: 马兰 | C86: 62011102504 | D86: 兰州市城关区教育局 | E86: 8165 | F86: 小学语文教师 | G86: 105 | H86: 73.00 | I86: 91.60 | J86: 11 | K86: 0.97 | L86: 89.30 | M86: 81.15 | N86: 84 | O86: 是
A87: 85 | B87: 周咪 | C87: 62011030201 | D87: 兰州市城关区教育局 | E87: 8165 | F87: 小学语文教师 | G87: 105 | H87: 77.10 | I87: 84.40 | J87: 9 | K87: 1.01 | L87: 85.20 | M87: 81.15 | N87: 84 | O87: 是
A88: 86 | B88: 张瑜 | C88: 62011090201 | D88: 兰州市城关区教育局 | E88: 8165 | F88: 小学语文教师 | G88: 105 | H88: 74.50 | I88: 87.40 | J88: 8 | K88: 1.00 | L88: 87.78 | M88: 81.14 | N88: 86 | O88: 是
A89: 87 | B89: 赵晋 | C89: 62011020214 | D89: 兰州市城关区教育局 | E89: 8165 | F89: 小学语文教师 | G89: 105 | H89: 74.35 | I89: 89.00 | J89: 1 | K89: 0.99 | L89: 87.91 | M89: 81.13 | N89: 87 | O89: 是
A90: 88 | B90: 蒲阳 | C90: 62011011627 | D90: 兰州市城关区教育局 | E90: 8165 | F90: 小学语文教师 | G90: 105 | H90: 74.25 | I90: 87.60 | J90: 8 | K90: 1.00 | L90: 87.98 | M90: 81.12 | N90: 88 | O90: 是
A91: 89 | B91: 曾秀玉 | C91: 62011021029 | D91: 兰州市城关区教育局 | E91: 8165 | F91: 小学语文教师 | G91: 105 | H91: 73.40 | I91: 86.80 | J91: 4 | K91: 1.02 | L91: 88.70 | M91: 81.05 | N91: 89 | O91: 是
A92: 90 | B92: 张倩 | C92: 62011071203 | D92: 兰州市城关区教育局 | E92: 8165 | F92: 小学语文教师 | G92: 105 | H92: 78.15 | I92: 86.20 | J92: 12 | K92: 0.97 | L92: 83.93 | M92: 81.04 | N92: 90 | O92: 是
A93: 91 | B93: 魏有潺 | C93: 62011020420 | D93: 兰州市城关区教育局 | E93: 8165 | F93: 小学语文教师 | G93: 105 | H93: 73.20 | I93: 88.40 | J93: 6 | K93: 1.01 | L93: 88.86 | M93: 81.03 | N93: 91 | O93: 是
A94: 92 | B94: 赵燕芳 | C94: 62011022107 | D94: 兰州市城关区教育局 | E94: 8165 | F94: 小学语文教师 | G94: 105 | H94: 76.10 | I94: 87.00 | J94: 10 | K94: 0.99 | L94: 85.95 | M94: 81.03 | N94: 91 | O94: 是
A95: 93 | B95: 庞美玲 | C95: 62011061514 | D95: 兰州市城关区教育局 | E95: 8165 | F95: 小学语文教师 | G95: 105 | H95: 78.20 | I95: 83.00 | J95: 9 | K95: 1.01 | L95: 83.78 | M95: 80.99 | N95: 93 | O95: 是
A96: 94 | B96: 张囝 | C96: 62011012003 | D96: 兰州市城关区教育局 | E96: 8165 | F96: 小学语文教师 | G96: 105 | H96: 75.60 | I96: 86.80 | J96: 5 | K96: 0.99 | L96: 86.31 | M96: 80.96 | N96: 94 | O96: 是
A97: 95 | B97: 魏文娇 | C97: 62011082202 | D97: 兰州市城关区教育局 | E97: 8165 | F97: 小学语文教师 | G97: 105 | H97: 76.55 | I97: 86.40 | J97: 10 | K97: 0.99 | L97: 85.36 | M97: 80.96 | N97: 94 | O97: 是
A98: 96 | B98: 文柯力 | C98: 62011011214 | D98: 兰州市城关区教育局 | E98: 8165 | F98: 小学语文教师 | G98: 105 | H98: 73.50 | I98: 88.00 | J98: 8 | K98: 1.00 | L98: 88.38 | M98: 80.94 | N98: 96 | O98: 是
A99: 97 | B99: 朱亚莉 | C99: 62011072510 | D99: 兰州市城关区教育局 | E99: 8165 | F99: 小学语文教师 | G99: 105 | H99: 75.65 | I99: 84.20 | J99: 3 | K99: 1.02 | L99: 86.20 | M99: 80.93 | N99: 97 | O99: 是
A100: 98 | B100: 李晓宇 | C100: 62011041428 | D100: 兰州市城关区教育局 | E100: 8165 | F100: 小学语文教师 | G100: 105 | H100: 75.15 | I100: 88.80 | J100: 11 | K100: 0.97 | L100: 86.57 | M100: 80.86 | N100: 98 | O100: 是
A101: 99 | B101: 师举珍 | C101: 62011042208 | D101: 兰州市城关区教育局 | E101: 8165 | F101: 小学语文教师 | G101: 105 | H101: 74.35 | I101: 85.20 | J101: 4 | K101: 1.02 | L101: 87.07 | M101: 80.71 | N101: 99 | O101: 是
A102: 100 | B102: 韩高玲 | C102: 62011102120 | D102: 兰州市城关区教育局 | E102: 8165 | F102: 小学语文教师 | G102: 105 | H102: 73.00 | I102: 89.00 | J102: 7 | K102: 0.99 | L102: 88.40 | M102: 80.70 | N102: 100 | O102: 是
A103: 101 | B103: 王瑾 | C103: 62011090515 | D103: 兰州市城关区教育局 | E103: 8165 | F103: 小学语文教师 | G103: 105 | H103: 73.00 | I103: 87.80 | J103: 6 | K103: 1.01 | L103: 88.26 | M103: 80.63 | N103: 101 | O103: 是
A104: 102 | B104: 张琳 | C104: 62011072404 | D104: 兰州市城关区教育局 | E104: 8165 | F104: 小学语文教师 | G104: 105 | H104: 74.00 | I104: 86.80 | J104: 6 | K104: 1.01 | L104: 87.26 | M104: 80.63 | N104: 101 | O104: 是
A105: 103 | B105: 谢昀霖 | C105: 62011101809 | D105: 兰州市城关区教育局 | E105: 8165 | F105: 小学语文教师 | G105: 105 | H105: 75.50 | I105: 86.80 | J105: 10 | K105: 0.99 | L105: 85.75 | M105: 80.63 | N105: 101 | O105: 是
A106: 104 | B106: 易丹清 | C106: 62011042015 | D106: 兰州市城关区教育局 | E106: 8165 | F106: 小学语文教师 | G106: 105 | H106: 75.25 | I106: 87.00 | J106: 10 | K106: 0.99 | L106: 85.95 | M106: 80.60 | N106: 104 | O106: 是
A107: 105 | B107: 姚玲 | C107: 62011020510 | D107: 兰州市城关区教育局 | E107: 8165 | F107: 小学语文教师 | G107: 105 | H107: 73.10 | I107: 87.60 | J107: 6 | K107: 1.01 | L107: 88.06 | M107: 80.58 | N107: 105 | O107: 是
A108: 106 | B108: 王艺伟 | C108: 62011100730 | D108: 兰州市城关区教育局 | E108: 8165 | F108: 小学语文教师 | G108: 105 | H108: 73.70 | I108: 87.00 | J108: 6 | K108: 1.01 | L108: 87.46 | M108: 80.58 | N108: 105 | O108: 是
A109: 107 | B109: 高正春 | C109: 62011050203 | D109: 兰州市城关区教育局 | E109: 8165 | F109: 小学语文教师 | G109: 105 | H109: 75.20 | I109: 84.00 | J109: 4 | K109: 1.02 | L109: 85.84 | M109: 80.52 | N109: 107 | O109: 否
A110: 108 | B110: 张钰珏 | C110: 62011060628 | D110: 兰州市城关区教育局 | E110: 8165 | F110: 小学语文教师 | G110: 105 | H110: 77.00 | I110: 83.20 | J110: 9 | K110: 1.01 | L110: 83.99 | M110: 80.50 | N110: 108 | O110: 否
A111: 109 | B111: 杨静 | C111: 62011032315 | D111: 兰州市城关区教育局 | E111: 8165 | F111: 小学语文教师 | G111: 105 | H111: 75.55 | I111: 86.40 | J111: 1 | K111: 0.99 | L111: 85.34 | M111: 80.45 | N111: 109 | O111: 否
A112: 110 | B112: 马西媚 | C112: 62011011729 | D112: 兰州市城关区教育局 | E112: 8165 | F112: 小学语文教师 | G112: 105 | H112: 77.30 | I112: 84.60 | J112: 10 | K112: 0.99 | L112: 83.58 | M112: 80.44 | N112: 110 | O112: 否
A113: 111 | B113: 刘嘉敏 | C113: 62011030420 | D113: 兰州市城关区教育局 | E113: 8165 | F113: 小学语文教师 | G113: 105 | H113: 74.75 | I113: 88.40 | J113: 12 | K113: 0.97 | L113: 86.07 | M113: 80.41 | N113: 111 | O113: 否
A114: 112 | B114: 马天瑶 | C114: 62011010413 | D114: 兰州市城关区教育局 | E114: 8165 | F114: 小学语文教师 | G114: 105 | H114: 73.30 | I114: 88.60 | J114: 1 | K114: 0.99 | L114: 87.52 | M114: 80.41 | N114: 111 | O114: 否
A115: 113 | B115: 周少云 | C115: 62011021401 | D115: 兰州市城关区教育局 | E115: 8165 | F115: 小学语文教师 | G115: 105 | H115: 77.85 | I115: 83.40 | J115: 5 | K115: 0.99 | L115: 82.93 | M115: 80.39 | N115: 113 | O115: 否
A116: 114 | B116: 李佳 | C116: 62011100325 | D116: 兰州市城关区教育局 | E116: 8165 | F116: 小学语文教师 | G116: 105 | H116: 76.15 | I116: 85.20 | J116: 7 | K116: 0.99 | L116: 84.63 | M116: 80.39 | N116: 113 | O116: 否
A117: 115 | B117: 马丽娅 | C117: 62011061617 | D117: 兰州市城关区教育局 | E117: 8165 | F117: 小学语文教师 | G117: 105 | H117: 75.90 | I117: 82.40 | J117: 2 | K117: 1.03 | L117: 84.85 | M117: 80.38 | N117: 115 | O117: 否
A118: 116 | B118: 杨倩 | C118: 62011081826 | D118: 兰州市城关区教育局 | E118: 8165 | F118: 小学语文教师 | G118: 105 | H118: 77.95 | I118: 83.80 | J118: 10 | K118: 0.99 | L118: 82.79 | M118: 80.37 | N118: 116 | O118: 否
A119: 117 | B119: 陈佐莉 | C119: 62011030521 | D119: 兰州市城关区教育局 | E119: 8165 | F119: 小学语文教师 | G119: 105 | H119: 75.50 | I119: 83.40 | J119: 4 | K119: 1.02 | L119: 85.23 | M119: 80.37 | N119: 116 | O119: 否
A120: 118 | B120: 魏静蕾 | C120: 62011101522 | D120: 兰州市城关区教育局 | E120: 8165 | F120: 小学语文教师 | G120: 105 | H120: 77.00 | I120: 84.20 | J120: 5 | K120: 0.99 | L120: 83.72 | M120: 80.36 | N120: 118 | O120: 否
A121: 119 | B121: 裴赟 | C121: 62011011903 | D121: 兰州市城关区教育局 | E121: 8165 | F121: 小学语文教师 | G121: 105 | H121: 73.60 | I121: 84.60 | J121: 2 | K121: 1.03 | L121: 87.11 | M121: 80.36 | N121: 118 | O121: 否
A122: 120 | B122: 金亚丽 | C122: 62011061422 | D122: 兰州市城关区教育局 | E122: 8165 | F122: 小学语文教师 | G122: 105 | H122: 75.85 | I122: 84.40 | J122: 6 | K122: 1.01 | L122: 84.84 | M122: 80.35 | N122: 120 | O122: 否
A123: 121 | B123: 苏亚玲 | C123: 62011090723 | D123: 兰州市城关区教育局 | E123: 8165 | F123: 小学语文教师 | G123: 105 | H123: 72.50 | I123: 86.00 | J123: 3 | K123: 1.02 | L123: 88.04 | M123: 80.27 | N123: 121 | O123: 否
A124: 122 | B124: 姚丽梅 | C124: 62011101720 | D124: 兰州市城关区教育局 | E124: 8165 | F124: 小学语文教师 | G124: 105 | H124: 73.10 | I124: 87.80 | J124: 5 | K124: 0.99 | L124: 87.30 | M124: 80.20 | N124: 122 | O124: 否
A125: 123 | B125: 李雪祎 | C125: 62011050807 | D125: 兰州市城关区教育局 | E125: 8165 | F125: 小学语文教师 | G125: 105 | H125: 76.25 | I125: 82.20 | J125: 3 | K125: 1.02 | L125: 84.15 | M125: 80.20 | N125: 122 | O125: 否
A126: 124 | B126: 钟倩茹 | C126: 62011010405 | D126: 兰州市城关区教育局 | E126: 8165 | F126: 小学语文教师 | G126: 105 | H126: 72.90 | I126: 89.80 | J126: 12 | K126: 0.97 | L126: 87.44 | M126: 80.17 | N126: 124 | O126: 否
A127: 125 | B127: 曹如歌 | C127: 62011061006 | D127: 兰州市城关区教育局 | E127: 8165 | F127: 小学语文教师 | G127: 105 | H127: 74.40 | I127: 86.40 | J127: 5 | K127: 0.99 | L127: 85.91 | M127: 80.16 | N127: 125 | O127: 否
A128: 126 | B128: 何存鑫 | C128: 62011092530 | D128: 兰州市城关区教育局 | E128: 8165 | F128: 小学语文教师 | G128: 105 | H128: 75.70 | I128: 86.80 | J128: 12 | K128: 0.97 | L128: 84.52 | M128: 80.11 | N128: 126 | O128: 否
A129: 127 | B129: 张淑萍 | C129: 62011030715 | D129: 兰州市城关区教育局 | E129: 8165 | F129: 小学语文教师 | G129: 105 | H129: 76.60 | I129: 83.20 | J129: 8 | K129: 1.00 | L129: 83.56 | M129: 80.08 | N129: 127 | O129: 否
A130: 128 | B130: 杨银凤 | C130: 62011040515 | D130: 兰州市城关区教育局 | E130: 8165 | F130: 小学语文教师 | G130: 105 | H130: 74.65 | I130: 87.80 | J130: 12 | K130: 0.97 | L130: 85.49 | M130: 80.07 | N130: 128 | O130: 否
A131: 129 | B131: 何斌男 | C131: 62011040506 | D131: 兰州市城关区教育局 | E131: 8165 | F131: 小学语文教师 | G131: 105 | H131: 77.75 | I131: 83.40 | J131: 1 | K131: 0.99 | L131: 82.38 | M131: 80.07 | N131: 128 | O131: 否
A132: 130 | B132: 王甲睿 | C132: 62011050921 | D132: 兰州市城关区教育局 | E132: 8165 | F132: 小学语文教师 | G132: 105 | H132: 76.00 | I132: 86.40 | J132: 12 | K132: 0.97 | L132: 84.13 | M132: 80.07 | N132: 128 | O132: 否
A133: 131 | B133: 李晓琳 | C133: 62011080922 | D133: 兰州市城关区教育局 | E133: 8165 | F133: 小学语文教师 | G133: 105 | H133: 75.45 | I133: 86.80 | J133: 11 | K133: 0.97 | L133: 84.62 | M133: 80.04 | N133: 131 | O133: 否
A134: 132 | B134: 薛芳 | C134: 62011030317 | D134: 兰州市城关区教育局 | E134: 8165 | F134: 小学语文教师 | G134: 105 | H134: 80.50 | I134: 80.00 | J134: 5 | K134: 0.99 | L134: 79.55 | M134: 80.03 | N134: 132 | O134: 否
A135: 133 | B135: 田丽娟 | C135: 62011061730 | D135: 兰州市城关区教育局 | E135: 8165 | F135: 小学语文教师 | G135: 105 | H135: 74.65 | I135: 87.60 | J135: 11 | K135: 0.97 | L135: 85.40 | M135: 80.03 | N135: 132 | O135: 否
A136: 134 | B136: 朱晓鱼 | C136: 62011060430 | D136: 兰州市城关区教育局 | E136: 8165 | F136: 小学语文教师 | G136: 105 | H136: 75.55 | I136: 84.00 | J136: 6 | K136: 1.01 | L136: 84.44 | M136: 80.00 | N136: 134 | O136: 否
A137: 135 | B137: 何涛涛 | C137: 62011071301 | D137: 兰州市城关区教育局 | E137: 8165 | F137: 小学语文教师 | G137: 105 | H137: 78.55 | I137: 82.40 | J137: 10 | K137: 0.99 | L137: 81.41 | M137: 79.98 | N137: 135 | O137: 否
A138: 136 | B138: 张丽丽 | C138: 62011100629 | D138: 兰州市城关区教育局 | E138: 8165 | F138: 小学语文教师 | G138: 105 | H138: 77.00 | I138: 83.40 | J138: 7 | K138: 0.99 | L138: 82.84 | M138: 79.92 | N138: 136 | O138: 否
A139: 137 | B139: 沈俊琴 | C139: 62011041627 | D139: 兰州市城关区教育局 | E139: 8165 | F139: 小学语文教师 | G139: 105 | H139: 79.35 | I139: 80.00 | J139: 6 | K139: 1.01 | L139: 80.42 | M139: 79.89 | N139: 137 | O139: 否
A140: 138 | B140: 徐锐云 | C140: 62011031606 | D140: 兰州市城关区教育局 | E140: 8165 | F140: 小学语文教师 | G140: 105 | H140: 77.20 | I140: 80.60 | J140: 3 | K140: 1.02 | L140: 82.51 | M140: 79.86 | N140: 138 | O140: 否
A141: 139 | B141: 姚婷 | C141: 62011022301 | D141: 兰州市城关区教育局 | E141: 8165 | F141: 小学语文教师 | G141: 105 | H141: 76.60 | I141: 83.60 | J141: 7 | K141: 0.99 | L141: 83.04 | M141: 79.82 | N141: 139 | O141: 否
A142: 140 | B142: 李添怡 | C142: 62011030606 | D142: 兰州市城关区教育局 | E142: 8165 | F142: 小学语文教师 | G142: 105 | H142: 71.70 | I142: 90.00 | J142: 11 | K142: 0.97 | L142: 87.74 | M142: 79.72 | N142: 140 | O142: 否
A143: 141 | B143: 王雪 | C143: 62011051508 | D143: 兰州市城关区教育局 | E143: 8165 | F143: 小学语文教师 | G143: 105 | H143: 74.45 | I143: 86.00 | J143: 1 | K143: 0.99 | L143: 84.95 | M143: 79.70 | N143: 141 | O143: 否
A144: 142 | B144: 孙彩霞 | C144: 62011021420 | D144: 兰州市城关区教育局 | E144: 8165 | F144: 小学语文教师 | G144: 105 | H144: 75.25 | I144: 86.40 | J144: 12 | K144: 0.97 | L144: 84.13 | M144: 79.69 | N144: 142 | O144: 否
A145: 143 | B145: 马菁 | C145: 62011101307 | D145: 兰州市城关区教育局 | E145: 8165 | F145: 小学语文教师 | G145: 105 | H145: 72.00 | I145: 87.80 | J145: 5 | K145: 0.99 | L145: 87.30 | M145: 79.65 | N145: 143 | O145: 否
A146: 144 | B146: 高甜甜 | C146: 62011010117 | D146: 兰州市城关区教育局 | E146: 8165 | F146: 小学语文教师 | G146: 105 | H146: 77.10 | I146: 83.20 | J146: 10 | K146: 0.99 | L146: 82.20 | M146: 79.65 | N146: 143 | O146: 否
A147: 145 | B147: 郭红霞 | C147: 62011092512 | D147: 兰州市城关区教育局 | E147: 8165 | F147: 小学语文教师 | G147: 105 | H147: 75.45 | I147: 86.00 | J147: 11 | K147: 0.97 | L147: 83.84 | M147: 79.65 | N147: 143 | O147: 否
A148: 146 | B148: 王帆 | C148: 62011050916 | D148: 兰州市城关区教育局 | E148: 8165 | F148: 小学语文教师 | G148: 105 | H148: 75.70 | I148: 84.60 | J148: 10 | K148: 0.99 | L148: 83.58 | M148: 79.64 | N148: 146 | O148: 否
A149: 147 | B149: 王蕾 | C149: 62011060421 | D149: 兰州市城关区教育局 | E149: 8165 | F149: 小学语文教师 | G149: 105 | H149: 74.65 | I149: 82.80 | J149: 4 | K149: 1.02 | L149: 84.61 | M149: 79.63 | N149: 147 | O149: 否
A150: 148 | B150: 彭清华 | C150: 62011082413 | D150: 兰州市城关区教育局 | E150: 8165 | F150: 小学语文教师 | G150: 105 | H150: 72.45 | I150: 87.80 | J150: 10 | K150: 0.99 | L150: 86.74 | M150: 79.60 | N150: 148 | O150: 否
A151: 149 | B151: 巩芳丽 | C151: 62011011005 | D151: 兰州市城关区教育局 | E151: 8165 | F151: 小学语文教师 | G151: 105 | H151: 77.20 | I151: 81.60 | J151: 8 | K151: 1.00 | L151: 81.95 | M151: 79.58 | N151: 149 | O151: 否
A152: 150 | B152: 张慧敏 | C152: 62011061915 | D152: 兰州市城关区教育局 | E152: 8165 | F152: 小学语文教师 | G152: 105 | H152: 75.25 | I152: 84.40 | J152: 7 | K152: 0.99 | L152: 83.83 | M152: 79.54 | N152: 150 | O152: 否
A153: 151 | B153: 朱琳 | C153: 62011030110 | D153: 兰州市城关区教育局 | E153: 8165 | F153: 小学语文教师 | G153: 105 | H153: 74.50 | I153: 85.60 | J153: 10 | K153: 0.99 | L153: 84.57 | M153: 79.54 | N153: 150 | O153: 否
A154: 152 | B154: 杨晨 | C154: 62011072512 | D154: 兰州市城关区教育局 | E154: 8165 | F154: 小学语文教师 | G154: 105 | H154: 74.40 | I154: 82.20 | J154: 2 | K154: 1.03 | L154: 84.64 | M154: 79.52 | N154: 152 | O154: 否
A155: 153 | B155: 吴圆圆 | C155: 62011012216 | D155: 兰州市城关区教育局 | E155: 8165 | F155: 小学语文教师 | G155: 105 | H155: 74.60 | I155: 85.00 | J155: 7 | K155: 0.99 | L155: 84.43 | M155: 79.52 | N155: 152 | O155: 否
A156: 154 | B156: 宗宇轩 | C156: 62011012508 | D156: 兰州市城关区教育局 | E156: 8165 | F156: 小学语文教师 | G156: 105 | H156: 79.50 | I156: 77.80 | J156: 4 | K156: 1.02 | L156: 79.50 | M156: 79.50 | N156: 154 | O156: 否
A157: 155 | B157: 赵瑞 | C157: 62011011226 | D157: 兰州市城关区教育局 | E157: 8165 | F157: 小学语文教师 | G157: 105 | H157: 76.60 | I157: 80.60 | J157: 4 | K157: 1.02 | L157: 82.36 | M157: 79.48 | N157: 155 | O157: 否
A158: 156 | B158: 邓媛 | C158: 62011091009 | D158: 兰州市城关区教育局 | E158: 8165 | F158: 小学语文教师 | G158: 105 | H158: 73.05 | I158: 84.00 | J158: 4 | K158: 1.02 | L158: 85.84 | M158: 79.45 | N158: 156 | O158: 否
A159: 157 | B159: 王沛 | C159: 62011050706 | D159: 兰州市城关区教育局 | E159: 8165 | F159: 小学语文教师 | G159: 105 | H159: 76.60 | I159: 84.40 | J159: 11 | K159: 0.97 | L159: 82.28 | M159: 79.44 | N159: 157 | O159: 否
A160: 158 | B160: 马银霞 | C160: 62011021525 | D160: 兰州市城关区教育局 | E160: 8165 | F160: 小学语文教师 | G160: 105 | H160: 74.70 | I160: 85.20 | J160: 10 | K160: 0.99 | L160: 84.17 | M160: 79.44 | N160: 157 | O160: 否
A161: 159 | B161: 汪江红 | C161: 62011080928 | D161: 兰州市城关区教育局 | E161: 8165 | F161: 小学语文教师 | G161: 105 | H161: 76.60 | I161: 81.40 | J161: 9 | K161: 1.01 | L161: 82.17 | M161: 79.39 | N161: 159 | O161: 否
A162: 160 | B162: 马丽 | C162: 62011071105 | D162: 兰州市城关区教育局 | E162: 8165 | F162: 小学语文教师 | G162: 105 | H162: 74.70 | I162: 84.60 | J162: 7 | K162: 0.99 | L162: 84.03 | M162: 79.37 | N162: 160 | O162: 否
A163: 161 | B163: 张建明 | C163: 62011080605 | D163: 兰州市城关区教育局 | E163: 8165 | F163: 小学语文教师 | G163: 105 | H163: 75.25 | I163: 83.00 | J163: 6 | K163: 1.01 | L163: 83.44 | M163: 79.35 | N163: 161 | O163: 否
A164: 162 | B164: 闫晶琳 | C164: 62011060405 | D164: 兰州市城关区教育局 | E164: 8165 | F164: 小学语文教师 | G164: 105 | H164: 74.05 | I164: 86.80 | J164: 11 | K164: 0.97 | L164: 84.62 | M164: 79.34 | N164: 162 | O164: 否
A165: 163 | B165: 贾子华 | C165: 62011011104 | D165: 兰州市城关区教育局 | E165: 8165 | F165: 小学语文教师 | G165: 105 | H165: 73.85 | I165: 84.40 | J165: 8 | K165: 1.00 | L165: 84.76 | M165: 79.31 | N165: 163 | O165: 否
A166: 164 | B166: 王菲 | C166: 62011070320 | D166: 兰州市城关区教育局 | E166: 8165 | F166: 小学语文教师 | G166: 105 | H166: 73.40 | I166: 87.40 | J166: 11 | K166: 0.97 | L166: 85.20 | M166: 79.30 | N166: 164 | O166: 否
A167: 165 | B167: 易家慧 | C167: 62011100502 | D167: 兰州市城关区教育局 | E167: 8165 | F167: 小学语文教师 | G167: 105 | H167: 72.20 | I167: 88.60 | J167: 11 | K167: 0.97 | L167: 86.37 | M167: 79.29 | N167: 165 | O167: 否
A168: 166 | B168: 马瑞霞 | C168: 62011050611 | D168: 兰州市城关区教育局 | E168: 8165 | F168: 小学语文教师 | G168: 105 | H168: 75.25 | I168: 83.60 | J168: 5 | K168: 0.99 | L168: 83.13 | M168: 79.19 | N168: 166 | O168: 否
A169: 167 | B169: 韩丽丽 | C169: 62011051808 | D169: 兰州市城关区教育局 | E169: 8165 | F169: 小学语文教师 | G169: 105 | H169: 75.20 | I169: 84.20 | J169: 1 | K169: 0.99 | L169: 83.17 | M169: 79.19 | N169: 166 | O169: 否
A170: 168 | B170: 马成燕 | C170: 62011090801 | D170: 兰州市城关区教育局 | E170: 8165 | F170: 小学语文教师 | G170: 105 | H170: 72.40 | I170: 85.60 | J170: 8 | K170: 1.00 | L170: 85.97 | M170: 79.19 | N170: 166 | O170: 否
A171: 169 | B171: 何钰婷 | C171: 62011051619 | D171: 兰州市城关区教育局 | E171: 8165 | F171: 小学语文教师 | G171: 105 | H171: 75.50 | I171: 82.40 | J171: 6 | K171: 1.01 | L171: 82.83 | M171: 79.17 | N171: 169 | O171: 否
A172: 170 | B172: 李娅 | C172: 62011090206 | D172: 兰州市城关区教育局 | E172: 8165 | F172: 小学语文教师 | G172: 105 | H172: 74.95 | I172: 82.60 | J172: 9 | K172: 1.01 | L172: 83.38 | M172: 79.17 | N172: 169 | O172: 否
A173: 171 | B173: 周晓岚 | C173: 62011081713 | D173: 兰州市城关区教育局 | E173: 8165 | F173: 小学语文教师 | G173: 105 | H173: 73.95 | I173: 86.60 | J173: 12 | K173: 0.97 | L173: 84.32 | M173: 79.14 | N173: 171 | O173: 否
A174: 172 | B174: 沈婷 | C174: 62011021801 | D174: 兰州市城关区教育局 | E174: 8165 | F174: 小学语文教师 | G174: 105 | H174: 73.70 | I174: 84.20 | J174: 8 | K174: 1.00 | L174: 84.56 | M174: 79.13 | N174: 172 | O174: 否
A175: 173 | B175: 郑爱霞 | C175: 62011100102 | D175: 兰州市城关区教育局 | E175: 8165 | F175: 小学语文教师 | G175: 105 | H175: 73.15 | I175: 86.00 | J175: 10 | K175: 0.99 | L175: 84.96 | M175: 79.06 | N175: 173 | O175: 否
A176: 174 | B176: 张沁 | C176: 62011061227 | D176: 兰州市城关区教育局 | E176: 8165 | F176: 小学语文教师 | G176: 105 | H176: 74.70 | I176: 83.00 | J176: 8 | K176: 1.00 | L176: 83.36 | M176: 79.03 | N176: 174 | O176: 否
A177: 175 | B177: 王好娟 | C177: 62011011305 | D177: 兰州市城关区教育局 | E177: 8165 | F177: 小学语文教师 | G177: 105 | H177: 73.15 | I177: 83.00 | J177: 4 | K177: 1.02 | L177: 84.82 | M177: 78.99 | N177: 175 | O177: 否
A178: 176 | B178: 杨海涛 | C178: 62011091914 | D178: 兰州市城关区教育局 | E178: 8165 | F178: 小学语文教师 | G178: 105 | H178: 72.60 | I178: 85.90 | J178: 7 | K178: 0.99 | L178: 85.32 | M178: 78.96 | N178: 176 | O178: 否
A179: 177 | B179: 楼雅彤 | C179: 62011020805 | D179: 兰州市城关区教育局 | E179: 8165 | F179: 小学语文教师 | G179: 105 | H179: 73.30 | I179: 85.60 | J179: 10 | K179: 0.99 | L179: 84.57 | M179: 78.94 | N179: 177 | O179: 否
A180: 178 | B180: 韩福珍 | C180: 62011091813 | D180: 兰州市城关区教育局 | E180: 8165 | F180: 小学语文教师 | G180: 105 | H180: 74.85 | I180: 84.00 | J180: 1 | K180: 0.99 | L180: 82.97 | M180: 78.91 | N180: 179 | O180: 否
A181: 179 | B181: 霍姣姣 | C181: 62011081001 | D181: 兰州市城关区教育局 | E181: 8165 | F181: 小学语文教师 | G181: 105 | H181: 74.85 | I181: 84.00 | J181: 1 | K181: 0.99 | L181: 82.97 | M181: 78.91 | N181: 179 | O181: 否
A182: 180 | B182: 段学燕 | C182: 62011070801 | D182: 兰州市城关区教育局 | E182: 8165 | F182: 小学语文教师 | G182: 105 | H182: 78.15 | I182: 80.00 | J182: 5 | K182: 0.99 | L182: 79.55 | M182: 78.85 | N182: 180 | O182: 否
A183: 181 | B183: 李宸熹 | C183: 62011080608 | D183: 兰州市城关区教育局 | E183: 8165 | F183: 小学语文教师 | G183: 105 | H183: 72.55 | I183: 85.60 | J183: 5 | K183: 0.99 | L183: 85.12 | M183: 78.84 | N183: 181 | O183: 否
A184: 182 | B184: 李乐融 | C184: 62011041311 | D184: 兰州市城关区教育局 | E184: 8165 | F184: 小学语文教师 | G184: 105 | H184: 73.30 | I184: 86.60 | J184: 12 | K184: 0.97 | L184: 84.32 | M184: 78.81 | N184: 182 | O184: 否
A185: 183 | B185: 冯帅 | C185: 62011051025 | D185: 兰州市城关区教育局 | E185: 8165 | F185: 小学语文教师 | G185: 105 | H185: 74.35 | I185: 85.40 | J185: 11 | K185: 0.97 | L185: 83.25 | M185: 78.80 | N185: 183 | O185: 否
A186: 184 | B186: 陈玮 | C186: 62011031228 | D186: 兰州市城关区教育局 | E186: 8165 | F186: 小学语文教师 | G186: 105 | H186: 74.05 | I186: 81.60 | J186: 3 | K186: 1.02 | L186: 83.53 | M186: 78.79 | N186: 184 | O186: 否
A187: 185 | B187: 张莞苓 | C187: 62011102104 | D187: 兰州市城关区教育局 | E187: 8165 | F187: 小学语文教师 | G187: 105 | H187: 76.05 | I187: 83.60 | J187: 11 | K187: 0.97 | L187: 81.50 | M187: 78.78 | N187: 185 | O187: 否
A188: 186 | B188: 黄霞霞 | C188: 62011091414 | D188: 兰州市城关区教育局 | E188: 8165 | F188: 小学语文教师 | G188: 105 | H188: 74.55 | I188: 82.20 | J188: 9 | K188: 1.01 | L188: 82.98 | M188: 78.77 | N188: 186 | O188: 否
A189: 187 | B189: 王西丹 | C189: 62011071118 | D189: 兰州市城关区教育局 | E189: 8165 | F189: 小学语文教师 | G189: 105 | H189: 71.85 | I189: 83.60 | J189: 3 | K189: 1.02 | L189: 85.58 | M189: 78.72 | N189: 187 | O189: 否
A190: 188 | B190: 赵亚鹏 | C190: 62011021429 | D190: 兰州市城关区教育局 | E190: 8165 | F190: 小学语文教师 | G190: 105 | H190: 78.25 | I190: 79.60 | J190: 5 | K190: 0.99 | L190: 79.15 | M190: 78.70 | N190: 188 | O190: 否
A191: 189 | B191: 夏萌 | C191: 62011061203 | D191: 兰州市城关区教育局 | E191: 8165 | F191: 小学语文教师 | G191: 105 | H191: 76.55 | I191: 81.80 | J191: 10 | K191: 0.99 | L191: 80.81 | M191: 78.68 | N191: 189 | O191: 否
A192: 190 | B192: 丁曼 | C192: 62011021622 | D192: 兰州市城关区教育局 | E192: 8165 | F192: 小学语文教师 | G192: 105 | H192: 75.75 | I192: 82.60 | J192: 10 | K192: 0.99 | L192: 81.61 | M192: 78.68 | N192: 189 | O192: 否
A193: 191 | B193: 康瑶 | C193: 62011012023 | D193: 兰州市城关区教育局 | E193: 8165 | F193: 小学语文教师 | G193: 105 | H193: 72.90 | I193: 82.60 | J193: 4 | K193: 1.02 | L193: 84.41 | M193: 78.66 | N193: 191 | O193: 否
A194: 192 | B194: 赵文倩 | C194: 62011022401 | D194: 兰州市城关区教育局 | E194: 8165 | F194: 小学语文教师 | G194: 105 | H194: 72.50 | I194: 83.80 | J194: 9 | K194: 1.01 | L194: 84.59 | M194: 78.55 | N194: 192 | O194: 否
A195: 193 | B195: 李菁 | C195: 62011010702 | D195: 兰州市城关区教育局 | E195: 8165 | F195: 小学语文教师 | G195: 105 | H195: 78.00 | I195: 76.80 | J195: 2 | K195: 1.03 | L195: 79.08 | M195: 78.54 | N195: 193 | O195: 否
A196: 194 | B196: 彭润芝 | C196: 62011090724 | D196: 兰州市城关区教育局 | E196: 8165 | F196: 小学语文教师 | G196: 105 | H196: 73.95 | I196: 83.60 | J196: 5 | K196: 0.99 | L196: 83.13 | M196: 78.54 | N196: 193 | O196: 否
A197: 195 | B197: 王宏霞 | C197: 62011032311 | D197: 兰州市城关区教育局 | E197: 8165 | F197: 小学语文教师 | G197: 105 | H197: 75.00 | I197: 83.00 | J197: 1 | K197: 0.99 | L197: 81.98 | M197: 78.49 | N197: 195 | O197: 否
A198: 196 | B198: 赵慧琴 | C198: 62011082205 | D198: 兰州市城关区教育局 | E198: 8165 | F198: 小学语文教师 | G198: 105 | H198: 73.00 | I198: 82.00 | J198: 3 | K198: 1.02 | L198: 83.94 | M198: 78.47 | N198: 196 | O198: 否
A199: 197 | B199: 何芳 | C199: 62011010228 | D199: 兰州市城关区教育局 | E199: 8165 | F199: 小学语文教师 | G199: 105 | H199: 72.75 | I199: 83.40 | J199: 9 | K199: 1.01 | L199: 84.19 | M199: 78.47 | N199: 196 | O199: 否
A200: 198 | B200: 王慧 | C200: 62011022306 | D200: 兰州市城关区教育局 | E200: 8165 | F200: 小学语文教师 | G200: 105 | H200: 73.70 | I200: 80.80 | J200: 2 | K200: 1.03 | L200: 83.20 | M200: 78.45 | N200: 198 | O200: 否
... 91 more rows

Sheet 数学
A1: 2021年兰州市公开招聘中小学聘用制教师（城关区教育局所属学校）综合成绩及入围体检人员名单
A2: 序号 | B2: 姓名 | C2: 准考证号 | D2: 主管单位 | E2: 岗位代码 | F2: 岗位 名称 | G2: 拟招聘 人数 | H2: 笔试成绩 | I2: 面试原始得分 | J2: 面试考场号 | K2: 考场权值系数 | L2: 面试成绩 | M2: 综合成绩 | N2: 综合排名 | O2: 是否进入体检环节 | P2: 备注
A3: 1 | B3: 许佩 | C3: 62011100628 | D3: 兰州市城关区教育局 | E3: 8166 | F3: 小学数学教师 | G3: 75 | H3: 83.35 | I3: 89.40 | J3: 26 | K3: 1.00 | L3: 89.59 | M3: =H3*0.5+L3*0.5 -> 86.47 | N3: 1 | O3: 是
A4: 2 | B4: 王晓琳 | C4: 62011010403 | D4: 兰州市城关区教育局 | E4: 8166 | F4: 小学数学教师 | G4: 75 | H4: 78.85 | I4: 92.00 | J4: 19 | K4: 1.01 | L4: 92.93 | M4: =H4*0.5+L4*0.5 -> 85.89 | N4: 2 | O4: 是
A5: 3 | B5: 马源青 | C5: 62011011715 | D5: 兰州市城关区教育局 | E5: 8166 | F5: 小学数学教师 | G5: 75 | H5: 81.55 | I5: 88.20 | J5: 19 | K5: 1.01 | L5: 89.09 | M5: 85.32 | N5: 3 | O5: 是
A6: 4 | B6: 马玉花 | C6: 62011080817 | D6: 兰州市城关区教育局 | E6: 8166 | F6: 小学数学教师 | G6: 75 | H6: 77.40 | I6: 92.80 | J6: 21 | K6: 1.00 | L6: 93.03 | M6: 85.22 | N6: 4 | O6: 是
A7: 5 | B7: 彭如镡 | C7: 62011021009 | D7: 兰州市城关区教育局 | E7: 8166 | F7: 小学数学教师 | G7: 75 | H7: 76.60 | I7: 91.80 | J7: 26 | K7: 1.00 | L7: 91.99 | M7: 84.30 | N7: 5 | O7: 是
A8: 6 | B8: 侯帅利 | C8: 62011031810 | D8: 兰州市城关区教育局 | E8: 8166 | F8: 小学数学教师 | G8: 75 | H8: 75.85 | I8: 92.00 | J8: 20 | K8: 1.01 | L8: 92.56 | M8: 84.21 | N8: 6 | O8: 是
A9: 7 | B9: 杨东波 | C9: 62011071316 | D9: 兰州市城关区教育局 | E9: 8166 | F9: 小学数学教师 | G9: 75 | H9: 79.30 | I9: 89.40 | J9: 22 | K9: 1.00 | L9: 89.04 | M9: 84.17 | N9: 7 | O9: 是
A10: 8 | B10: 张倩 | C10: 62011010414 | D10: 兰州市城关区教育局 | E10: 8166 | F10: 小学数学教师 | G10: 75 | H10: 77.25 | I10: 92.40 | J10: 24 | K10: 0.98 | L10: 90.82 | M10: 84.04 | N10: 8 | O10: 是
A11: 9 | B11: 赵忠莉 | C11: 62011090224 | D11: 兰州市城关区教育局 | E11: 8166 | F11: 小学数学教师 | G11: 75 | H11: 81.45 | I11: 86.40 | J11: 25 | K11: 1.00 | L11: 86.30 | M11: 83.88 | N11: 9 | O11: 是
A12: 10 | B12: 梁燕 | C12: 62011011807 | D12: 兰州市城关区教育局 | E12: 8166 | F12: 小学数学教师 | G12: 75 | H12: 73.55 | I12: 93.40 | J12: 21 | K12: 1.00 | L12: 93.63 | M12: 83.59 | N12: 10 | O12: 是
A13: 11 | B13: 李芳君 | C13: 62011060114 | D13: 兰州市城关区教育局 | E13: 8166 | F13: 小学数学教师 | G13: 75 | H13: 83.50 | I13: 83.40 | J13: 25 | K13: 1.00 | L13: 83.30 | M13: 83.40 | N13: 11 | O13: 是
A14: 12 | B14: 王艳 | C14: 62011081102 | D14: 兰州市城关区教育局 | E14: 8166 | F14: 小学数学教师 | G14: 75 | H14: 76.80 | I14: 89.00 | J14: 19 | K14: 1.01 | L14: 89.90 | M14: 83.35 | N14: 12 | O14: 是
A15: 13 | B15: 强蓉蓉 | C15: 62011100319 | D15: 兰州市城关区教育局 | E15: 8166 | F15: 小学数学教师 | G15: 75 | H15: 74.45 | I15: 91.20 | J15: 19 | K15: 1.01 | L15: 92.12 | M15: 83.29 | N15: 13 | O15: 是
A16: 14 | B16: 李春慧 | C16: 62011082103 | D16: 兰州市城关区教育局 | E16: 8166 | F16: 小学数学教师 | G16: 75 | H16: 79.20 | I16: 87.20 | J16: 23 | K16: 1.00 | L16: 87.31 | M16: 83.26 | N16: 14 | O16: 是
A17: 15 | B17: 谢亚洲 | C17: 62011070623 | D17: 兰州市城关区教育局 | E17: 8166 | F17: 小学数学教师 | G17: 75 | H17: 74.65 | I17: 91.40 | J17: 23 | K17: 1.00 | L17: 91.51 | M17: 83.08 | N17: 15 | O17: 是
A18: 16 | B18: 刘梦倩 | C18: 62011031922 | D18: 兰州市城关区教育局 | E18: 8166 | F18: 小学数学教师 | G18: 75 | H18: 79.15 | I18: 87.00 | J18: 25 | K18: 1.00 | L18: 86.89 | M18: 83.02 | N18: 16 | O18: 是
A19: 17 | B19: 万星君 | C19: 62011031306 | D19: 兰州市城关区教育局 | E19: 8166 | F19: 小学数学教师 | G19: 75 | H19: 73.55 | I19: 91.80 | J19: 20 | K19: 1.01 | L19: 92.36 | M19: 82.96 | N19: 17 | O19: 是
A20: 18 | B20: 康琴琴 | C20: 62011101726 | D20: 兰州市城关区教育局 | E20: 8166 | F20: 小学数学教师 | G20: 75 | H20: 76.35 | I20: 89.20 | J20: 26 | K20: 1.00 | L20: 89.39 | M20: 82.87 | N20: 18 | O20: 是
A21: 19 | B21: 焦梦然 | C21: 62011031903 | D21: 兰州市城关区教育局 | E21: 8166 | F21: 小学数学教师 | G21: 75 | H21: 76.15 | I21: 89.00 | J21: 20 | K21: 1.01 | L21: 89.54 | M21: 82.85 | N21: 19 | O21: 是
A22: 20 | B22: 宋佳丽 | C22: 62011090412 | D22: 兰州市城关区教育局 | E22: 8166 | F22: 小学数学教师 | G22: 75 | H22: 74.85 | I22: 90.60 | J22: 26 | K22: 1.00 | L22: 90.79 | M22: 82.82 | N22: 20 | O22: 是
A23: 21 | B23: 方莉 | C23: 62011050804 | D23: 兰州市城关区教育局 | E23: 8166 | F23: 小学数学教师 | G23: 75 | H23: 74.30 | I23: 91.00 | J23: 26 | K23: 1.00 | L23: 91.19 | M23: 82.75 | N23: 21 | O23: 是
A24: 22 | B24: 忻益竹 | C24: 62011030409 | D24: 兰州市城关区教育局 | E24: 8166 | F24: 小学数学教师 | G24: 75 | H24: 73.15 | I24: 91.40 | J24: 19 | K24: 1.01 | L24: 92.33 | M24: 82.74 | N24: 22 | O24: 是
A25: 23 | B25: 高合梅 | C25: 62011101207 | D25: 兰州市城关区教育局 | E25: 8166 | F25: 小学数学教师 | G25: 75 | H25: 75.05 | I25: 90.00 | J25: 25 | K25: 1.00 | L25: 89.89 | M25: 82.47 | N25: 23 | O25: 是
A26: 24 | B26: 段虎伟 | C26: 62011062104 | D26: 兰州市城关区教育局 | E26: 8166 | F26: 小学数学教师 | G26: 75 | H26: 73.25 | I26: 92.00 | J26: 22 | K26: 1.00 | L26: 91.63 | M26: 82.44 | N26: 24 | O26: 是
A27: 25 | B27: 柳雅茹 | C27: 62011092118 | D27: 兰州市城关区教育局 | E27: 8166 | F27: 小学数学教师 | G27: 75 | H27: 77.10 | I27: 87.60 | J27: 23 | K27: 1.00 | L27: 87.71 | M27: 82.41 | N27: 25 | O27: 是
A28: 26 | B28: 巩蕊丽 | C28: 62011101402 | D28: 兰州市城关区教育局 | E28: 8166 | F28: 小学数学教师 | G28: 75 | H28: 78.50 | I28: 86.00 | J28: 26 | K28: 1.00 | L28: 86.18 | M28: 82.34 | N28: 26 | O28: 是
A29: 27 | B29: 龚倩 | C29: 62011031820 | D29: 兰州市城关区教育局 | E29: 8166 | F29: 小学数学教师 | G29: 75 | H29: 74.65 | I29: 89.60 | J29: 23 | K29: 1.00 | L29: 89.71 | M29: 82.18 | N29: 27 | O29: 是
A30: 28 | B30: 李转红 | C30: 62011061505 | D30: 兰州市城关区教育局 | E30: 8166 | F30: 小学数学教师 | G30: 75 | H30: 73.50 | I30: 90.60 | J30: 26 | K30: 1.00 | L30: 90.79 | M30: 82.15 | N30: 28 | O30: 是
A31: 29 | B31: 贾文红 | C31: 62011080503 | D31: 兰州市城关区教育局 | E31: 8166 | F31: 小学数学教师 | G31: 75 | H31: 81.00 | I31: 83.00 | J31: 23 | K31: 1.00 | L31: 83.10 | M31: 82.05 | N31: 29 | O31: 是
A32: 30 | B32: 李小帆 | C32: 62011031523 | D32: 兰州市城关区教育局 | E32: 8166 | F32: 小学数学教师 | G32: 75 | H32: 74.10 | I32: 88.80 | J32: 19 | K32: 1.01 | L32: 89.70 | M32: 81.90 | N32: 30 | O32: 是
A33: 31 | B33: 孙永安 | C33: 62011092412 | D33: 兰州市城关区教育局 | E33: 8166 | F33: 小学数学教师 | G33: 75 | H33: 72.40 | I33: 91.20 | J33: 23 | K33: 1.00 | L33: 91.31 | M33: 81.86 | N33: 31 | O33: 是
A34: 32 | B34: 陈雪荣 | C34: 62011070705 | D34: 兰州市城关区教育局 | E34: 8166 | F34: 小学数学教师 | G34: 75 | H34: 73.40 | I34: 89.40 | J34: 19 | K34: 1.01 | L34: 90.31 | M34: 81.86 | N34: 31 | O34: 是
A35: 33 | B35: 孙子钧 | C35: 62011030914 | D35: 兰州市城关区教育局 | E35: 8166 | F35: 小学数学教师 | G35: 75 | H35: 74.05 | I35: 89.40 | J35: 26 | K35: 1.00 | L35: 89.59 | M35: 81.82 | N35: 33 | O35: 是
A36: 34 | B36: 张荣荣 | C36: 62011041719 | D36: 兰州市城关区教育局 | E36: 8166 | F36: 小学数学教师 | G36: 75 | H36: 72.25 | I36: 90.80 | J36: 20 | K36: 1.01 | L36: 91.36 | M36: =H36*0.5+L36*0.5 -> 81.81 | N36: 34 | O36: 是
A37: 35 | B37: 张钦升 | C37: 62011031912 | D37: 兰州市城关区教育局 | E37: 8166 | F37: 小学数学教师 | G37: 75 | H37: 73.95 | I37: 89.40 | J37: 23 | K37: 1.00 | L37: 89.51 | M37: 81.73 | N37: 35 | O37: 是
A38: 36 | B38: 张佳 | C38: 62011101810 | D38: 兰州市城关区教育局 | E38: 8166 | F38: 小学数学教师 | G38: 75 | H38: 73.70 | I38: 89.40 | J38: 26 | K38: 1.00 | L38: 89.59 | M38: 81.65 | N38: 36 | O38: 是
A39: 37 | B39: 张玉琪 | C39: 62011032530 | D39: 兰州市城关区教育局 | E39: 8166 | F39: 小学数学教师 | G39: 75 | H39: 78.25 | I39: 85.00 | J39: 25 | K39: 1.00 | L39: 84.90 | M39: 81.58 | N39: 37 | O39: 是
A40: 38 | B40: 倪静 | C40: 62011061221 | D40: 兰州市城关区教育局 | E40: 8166 | F40: 小学数学教师 | G40: 75 | H40: 73.20 | I40: 89.40 | J40: 20 | K40: 1.01 | L40: 89.95 | M40: 81.58 | N40: 37 | O40: 是
A41: 39 | B41: 马娟 | C41: 62011081725 | D41: 兰州市城关区教育局 | E41: 8166 | F41: 小学数学教师 | G41: 75 | H41: 71.90 | I41: 91.20 | J41: 25 | K41: 1.00 | L41: 91.09 | M41: 81.50 | N41: 39 | O41: 是
A42: 40 | B42: 顾凡 | C42: 62011080104 | D42: 兰州市城关区教育局 | E42: 8166 | F42: 小学数学教师 | G42: 75 | H42: 72.25 | I42: 90.40 | J42: 21 | K42: 1.00 | L42: 90.62 | M42: 81.44 | N42: 40 | O42: 是
A43: 41 | B43: 施苹 | C43: 62011030905 | D43: 兰州市城关区教育局 | E43: 8166 | F43: 小学数学教师 | G43: 75 | H43: 75.25 | I43: 87.40 | J43: 26 | K43: 1.00 | L43: 87.59 | M43: 81.42 | N43: 41 | O43: 是
A44: 42 | B44: 刘芙蓉 | C44: 62011071119 | D44: 兰州市城关区教育局 | E44: 8166 | F44: 小学数学教师 | G44: 75 | H44: 74.90 | I44: 89.40 | J44: 24 | K44: 0.98 | L44: 87.87 | M44: 81.39 | N44: 42 | O44: 是
A45: 43 | B45: 董岚 | C45: 62011102010 | D45: 兰州市城关区教育局 | E45: 8166 | F45: 小学数学教师 | G45: 75 | H45: 70.15 | I45: 92.60 | J45: 22 | K45: 1.00 | L45: 92.23 | M45: 81.19 | N45: 43 | O45: 是
A46: 44 | B46: 刘春辉 | C46: 62011080619 | D46: 兰州市城关区教育局 | E46: 8166 | F46: 小学数学教师 | G46: 75 | H46: 72.90 | I46: 88.40 | J46: 19 | K46: 1.01 | L46: 89.30 | M46: 81.10 | N46: 44 | O46: 是
A47: 45 | B47: 田静 | C47: 62011021110 | D47: 兰州市城关区教育局 | E47: 8166 | F47: 小学数学教师 | G47: 75 | H47: 74.20 | I47: 89.40 | J47: 24 | K47: 0.98 | L47: 87.87 | M47: 81.04 | N47: 45 | O47: 是
A48: 46 | B48: 李承恩 | C48: 62011021520 | D48: 兰州市城关区教育局 | E48: 8166 | F48: 小学数学教师 | G48: 75 | H48: 69.60 | I48: 92.80 | J48: 22 | K48: 1.00 | L48: 92.43 | M48: 81.02 | N48: 46 | O48: 是
A49: 47 | B49: 丁粉婕 | C49: 62011042505 | D49: 兰州市城关区教育局 | E49: 8166 | F49: 小学数学教师 | G49: 75 | H49: 72.15 | I49: 89.60 | J49: 21 | K49: 1.00 | L49: 89.82 | M49: 80.99 | N49: 47 | O49: 是
A50: 48 | B50: 马晨 | C50: 62011041622 | D50: 兰州市城关区教育局 | E50: 8166 | F50: 小学数学教师 | G50: 75 | H50: 71.50 | I50: 92.00 | J50: 24 | K50: 0.98 | L50: 90.42 | M50: 80.96 | N50: 48 | O50: 是
A51: 49 | B51: 杨迎 | C51: 62011062018 | D51: 兰州市城关区教育局 | E51: 8166 | F51: 小学数学教师 | G51: 75 | H51: 75.30 | I51: 88.00 | J51: 24 | K51: 0.98 | L51: 86.49 | M51: 80.90 | N51: 49 | O51: 是
A52: 50 | B52: 刘宏月 | C52: 62011081717 | D52: 兰州市城关区教育局 | E52: 8166 | F52: 小学数学教师 | G52: 75 | H52: 74.75 | I52: 86.80 | J52: 23 | K52: 1.00 | L52: 86.91 | M52: 80.83 | N52: 50 | O52: 是
A53: 51 | B53: 李胡林 | C53: 62011020503 | D53: 兰州市城关区教育局 | E53: 8166 | F53: 小学数学教师 | G53: 75 | H53: 77.40 | I53: 83.20 | J53: 19 | K53: 1.01 | L53: 84.04 | M53: 80.72 | N53: 51 | O53: 是
A54: 52 | B54: 丁慧 | C54: 62011081619 | D54: 兰州市城关区教育局 | E54: 8166 | F54: 小学数学教师 | G54: 75 | H54: 70.90 | I54: 91.80 | J54: 24 | K54: 0.98 | L54: 90.23 | M54: 80.57 | N54: 52 | O54: 是
A55: 53 | B55: 闫艳红 | C55: 62011052010 | D55: 兰州市城关区教育局 | E55: 8166 | F55: 小学数学教师 | G55: 75 | H55: 74.90 | I55: 85.60 | J55: 20 | K55: 1.01 | L55: 86.12 | M55: 80.51 | N55: 53 | O55: 是
A56: 54 | B56: 蒋彤 | C56: 62011062302 | D56: 兰州市城关区教育局 | E56: 8166 | F56: 小学数学教师 | G56: 75 | H56: 67.65 | I56: 92.80 | J56: 20 | K56: 1.01 | L56: 93.37 | M56: 80.51 | N56: 53 | O56: 是
A57: 55 | B57: 赵冬兰 | C57: 62011101621 | D57: 兰州市城关区教育局 | E57: 8166 | F57: 小学数学教师 | G57: 75 | H57: 79.50 | I57: 80.60 | J57: 19 | K57: 1.01 | L57: 81.42 | M57: 80.46 | N57: 55 | O57: 是
A58: 56 | B58: 岳美玲 | C58: 62011010528 | D58: 兰州市城关区教育局 | E58: 8166 | F58: 小学数学教师 | G58: 75 | H58: 74.80 | I58: 86.20 | J58: 25 | K58: 1.00 | L58: 86.10 | M58: 80.45 | N58: 56 | O58: 是
A59: 57 | B59: 王巧玲 | C59: 62011022308 | D59: 兰州市城关区教育局 | E59: 8166 | F59: 小学数学教师 | G59: 75 | H59: 77.70 | I59: 83.20 | J59: 25 | K59: 1.00 | L59: 83.10 | M59: 80.40 | N59: 57 | O59: 是
A60: 58 | B60: 王慧娟 | C60: 62011030728 | D60: 兰州市城关区教育局 | E60: 8166 | F60: 小学数学教师 | G60: 75 | H60: 73.80 | I60: 87.20 | J60: 22 | K60: 1.00 | L60: 86.85 | M60: 80.33 | N60: 58 | O60: 是
A61: 59 | B61: 段婷婷 | C61: 62011011121 | D61: 兰州市城关区教育局 | E61: 8166 | F61: 小学数学教师 | G61: 75 | H61: 70.35 | I61: 89.20 | J61: 19 | K61: 1.01 | L61: 90.10 | M61: 80.23 | N61: 59 | O61: 是
A62: 60 | B62: 刘霞 | C62: 62011080210 | D62: 兰州市城关区教育局 | E62: 8166 | F62: 小学数学教师 | G62: 75 | H62: 71.00 | I62: 91.00 | J62: 24 | K62: 0.98 | L62: 89.44 | M62: 80.22 | N62: 60 | O62: 是
A63: 61 | B63: 刘婷 | C63: 62011032016 | D63: 兰州市城关区教育局 | E63: 8166 | F63: 小学数学教师 | G63: 75 | H63: 70.05 | I63: 89.60 | J63: 20 | K63: 1.01 | L63: 90.15 | M63: 80.10 | N63: 61 | O63: 是
A64: 62 | B64: 金鑫 | C64: 62011031522 | D64: 兰州市城关区教育局 | E64: 8166 | F64: 小学数学教师 | G64: 75 | H64: 66.20 | I64: 93.60 | J64: 21 | K64: 1.00 | L64: 93.83 | M64: 80.02 | N64: 62 | O64: 是
A65: 63 | B65: 程方圆 | C65: 62011061127 | D65: 兰州市城关区教育局 | E65: 8166 | F65: 小学数学教师 | G65: 75 | H65: 71.15 | I65: 89.20 | J65: 22 | K65: 1.00 | L65: 88.84 | M65: 80.00 | N65: 63 | O65: 是
A66: 64 | B66: 马昕 | C66: 62011032322 | D66: 兰州市城关区教育局 | E66: 8166 | F66: 小学数学教师 | G66: 75 | H66: 69.70 | I66: 90.60 | J66: 22 | K66: 1.00 | L66: 90.24 | M66: 79.97 | N66: 64 | O66: 是
A67: 65 | B67: 石蓉 | C67: 62011080718 | D67: 兰州市城关区教育局 | E67: 8166 | F67: 小学数学教师 | G67: 75 | H67: 67.70 | I67: 92.60 | J67: 22 | K67: 1.00 | L67: 92.23 | M67: 79.97 | N67: 64 | O67: 是
A68: 66 | B68: 王昌 | C68: 62011041423 | D68: 兰州市城关区教育局 | E68: 8166 | F68: 小学数学教师 | G68: 75 | H68: 69.95 | I68: 89.60 | J68: 23 | K68: 1.00 | L68: 89.71 | M68: =H68*0.5+L68*0.5 -> 79.83 | N68: 66 | O68: 是
A69: 67 | B69: 王永海 | C69: 62011060502 | D69: 兰州市城关区教育局 | E69: 8166 | F69: 小学数学教师 | G69: 75 | H69: 70.90 | I69: 88.20 | J69: 20 | K69: 1.01 | L69: 88.74 | M69: 79.82 | N69: 67 | O69: 是
A70: 68 | B70: 樊尚兰 | C70: 62011010320 | D70: 兰州市城关区教育局 | E70: 8166 | F70: 小学数学教师 | G70: 75 | H70: 70.90 | I70: 88.20 | J70: 20 | K70: 1.01 | L70: 88.74 | M70: 79.82 | N70: 67 | O70: 是
A71: 69 | B71: 席彩珠 | C71: 62011050327 | D71: 兰州市城关区教育局 | E71: 8166 | F71: 小学数学教师 | G71: 75 | H71: 76.40 | I71: 82.40 | J71: 19 | K71: 1.01 | L71: 83.24 | M71: 79.82 | N71: 67 | O71: 是
A72: 70 | B72: 杨婕 | C72: 62011041221 | D72: 兰州市城关区教育局 | E72: 8166 | F72: 小学数学教师 | G72: 75 | H72: 80.90 | I72: 78.80 | J72: 25 | K72: 1.00 | L72: 78.70 | M72: 79.80 | N72: 70 | O72: 是
A73: 71 | B73: 向美燕 | C73: 62011071627 | D73: 兰州市城关区教育局 | E73: 8166 | F73: 小学数学教师 | G73: 75 | H73: 74.20 | I73: 85.20 | J73: 23 | K73: 1.00 | L73: 85.31 | M73: 79.76 | N73: 71 | O73: 是
A74: 72 | B74: 王鑫 | C74: 62011102405 | D74: 兰州市城关区教育局 | E74: 8166 | F74: 小学数学教师 | G74: 75 | H74: 73.05 | I74: 85.60 | J74: 20 | K74: 1.01 | L74: 86.12 | M74: 79.59 | N74: 72 | O74: 是
A75: 73 | B75: 白晓乐 | C75: 62011030324 | D75: 兰州市城关区教育局 | E75: 8166 | F75: 小学数学教师 | G75: 75 | H75: 69.00 | I75: 89.60 | J75: 20 | K75: 1.01 | L75: 90.15 | M75: 79.58 | N75: 73 | O75: 是
A76: 74 | B76: 马小龙 | C76: 62011091026 | D76: 兰州市城关区教育局 | E76: 8166 | F76: 小学数学教师 | G76: 75 | H76: 70.50 | I76: 88.40 | J76: 21 | K76: 1.00 | L76: 88.61 | M76: 79.56 | N76: 74 | O76: 是
A77: 75 | B77: 谢凯 | C77: 62011042524 | D77: 兰州市城关区教育局 | E77: 8166 | F77: 小学数学教师 | G77: 75 | H77: 70.20 | I77: 89.00 | J77: 25 | K77: 1.00 | L77: 88.89 | M77: 79.55 | N77: 75 | O77: 是
A78: 76 | B78: 高慧慧 | C78: 62011051229 | D78: 兰州市城关区教育局 | E78: 8166 | F78: 小学数学教师 | G78: 75 | H78: 68.10 | I78: 92.40 | J78: 24 | K78: 0.98 | L78: 90.82 | M78: 79.46 | N78: 76 | O78: 否
A79: 77 | B79: 陈丹 | C79: 62011060120 | D79: 兰州市城关区教育局 | E79: 8166 | F79: 小学数学教师 | G79: 75 | H79: 72.50 | I79: 86.20 | J79: 21 | K79: 1.00 | L79: 86.41 | M79: 79.46 | N79: 76 | O79: 否
A80: 78 | B80: 房晓梅 | C80: 62011010105 | D80: 兰州市城关区教育局 | E80: 8166 | F80: 小学数学教师 | G80: 75 | H80: 70.80 | I80: 88.20 | J80: 25 | K80: 1.00 | L80: 88.09 | M80: 79.45 | N80: 78 | O80: 否
A81: 79 | B81: 李小红 | C81: 62011101510 | D81: 兰州市城关区教育局 | E81: 8166 | F81: 小学数学教师 | G81: 75 | H81: 67.95 | I81: 90.60 | J81: 23 | K81: 1.00 | L81: 90.71 | M81: 79.33 | N81: 79 | O81: 否
A82: 80 | B82: 梁娣 | C82: 62011031207 | D82: 兰州市城关区教育局 | E82: 8166 | F82: 小学数学教师 | G82: 75 | H82: 67.10 | I82: 91.60 | J82: 25 | K82: 1.00 | L82: 91.49 | M82: 79.30 | N82: 80 | O82: 否
A83: 81 | B83: 王旭林 | C83: 62011082508 | D83: 兰州市城关区教育局 | E83: 8166 | F83: 小学数学教师 | G83: 75 | H83: 67.25 | I83: 91.20 | J83: 23 | K83: 1.00 | L83: 91.31 | M83: 79.28 | N83: 81 | O83: 否
A84: 82 | B84: 高敏 | C84: 62011012112 | D84: 兰州市城关区教育局 | E84: 8166 | F84: 小学数学教师 | G84: 75 | H84: 74.75 | I84: 83.40 | J84: 21 | K84: 1.00 | L84: 83.60 | M84: 79.18 | N84: 82 | O84: 否
A85: 83 | B85: 赵国兰 | C85: 62011100801 | D85: 兰州市城关区教育局 | E85: 8166 | F85: 小学数学教师 | G85: 75 | H85: 72.65 | I85: 85.40 | J85: 21 | K85: 1.00 | L85: 85.61 | M85: 79.13 | N85: 83 | O85: 否
A86: 84 | B86: 郭蔚 | C86: 62011100216 | D86: 兰州市城关区教育局 | E86: 8166 | F86: 小学数学教师 | G86: 75 | H86: 73.90 | I86: 84.40 | J86: 25 | K86: 1.00 | L86: 84.30 | M86: 79.10 | N86: 84 | O86: 否
A87: 85 | B87: 冉阳合 | C87: 62011091811 | D87: 兰州市城关区教育局 | E87: 8166 | F87: 小学数学教师 | G87: 75 | H87: 72.50 | I87: 85.80 | J87: 25 | K87: 1.00 | L87: 85.70 | M87: 79.10 | N87: 84 | O87: 否
A88: 86 | B88: 赵玉 | C88: 62011080730 | D88: 兰州市城关区教育局 | E88: 8166 | F88: 小学数学教师 | G88: 75 | H88: 69.90 | I88: 88.40 | J88: 25 | K88: 1.00 | L88: 88.29 | M88: 79.10 | N88: 84 | O88: 否
A89: 87 | B89: 段红霞 | C89: 62011100210 | D89: 兰州市城关区教育局 | E89: 8166 | F89: 小学数学教师 | G89: 75 | H89: 75.20 | I89: 82.80 | J89: 26 | K89: 1.00 | L89: 82.98 | M89: 79.09 | N89: 87 | O89: 否
A90: 88 | B90: 罗永霞 | C90: 62011011624 | D90: 兰州市城关区教育局 | E90: 8166 | F90: 小学数学教师 | G90: 75 | H90: 76.95 | I90: 80.80 | J90: 21 | K90: 1.00 | L90: 81.00 | M90: 78.98 | N90: 88 | O90: 否
A91: 89 | B91: 王斯思 | C91: 62011010317 | D91: 兰州市城关区教育局 | E91: 8166 | F91: 小学数学教师 | G91: 75 | H91: 72.75 | I91: 84.60 | J91: 20 | K91: 1.01 | L91: 85.12 | M91: 78.94 | N91: 89 | O91: 否
A92: 90 | B92: 裴遵英 | C92: 62011040510 | D92: 兰州市城关区教育局 | E92: 8166 | F92: 小学数学教师 | G92: 75 | H92: 73.00 | I92: 85.20 | J92: 22 | K92: 1.00 | L92: 84.86 | M92: 78.93 | N92: 90 | O92: 否
A93: 91 | B93: 韩春琴 | C93: 62011082015 | D93: 兰州市城关区教育局 | E93: 8166 | F93: 小学数学教师 | G93: 75 | H93: 72.75 | I93: 85.20 | J93: 25 | K93: 1.00 | L93: 85.10 | M93: 78.93 | N93: 90 | O93: 否
A94: 92 | B94: 彭彦 | C94: 62011102020 | D94: 兰州市城关区教育局 | E94: 8166 | F94: 小学数学教师 | G94: 75 | H94: 71.35 | I94: 86.60 | J94: 25 | K94: 1.00 | L94: 86.50 | M94: 78.93 | N94: 90 | O94: 否
A95: 93 | B95: 刘阳阳 | C95: 62011062203 | D95: 兰州市城关区教育局 | E95: 8166 | F95: 小学数学教师 | G95: 75 | H95: 77.00 | I95: 80.60 | J95: 21 | K95: 1.00 | L95: 80.79 | M95: 78.90 | N95: 93 | O95: 否
A96: 94 | B96: 徐巧梅 | C96: 62011020217 | D96: 兰州市城关区教育局 | E96: 8166 | F96: 小学数学教师 | G96: 75 | H96: 73.40 | I96: 84.20 | J96: 26 | K96: 1.00 | L96: 84.38 | M96: 78.89 | N96: 94 | O96: 否
A97: 95 | B97: 宋对凤 | C97: 62011081226 | D97: 兰州市城关区教育局 | E97: 8166 | F97: 小学数学教师 | G97: 75 | H97: 65.30 | I97: 91.80 | J97: 21 | K97: 1.00 | L97: 92.02 | M97: 78.66 | N97: 95 | O97: 否
A98: 96 | B98: 张雪中 | C98: 62011071911 | D98: 兰州市城关区教育局 | E98: 8166 | F98: 小学数学教师 | G98: 75 | H98: 75.60 | I98: 80.60 | J98: 20 | K98: 1.01 | L98: 81.09 | M98: 78.35 | N98: 96 | O98: 否
A99: 97 | B99: 李红彦 | C99: 62011081916 | D99: 兰州市城关区教育局 | E99: 8166 | F99: 小学数学教师 | G99: 75 | H99: 76.20 | I99: 79.60 | J99: 19 | K99: 1.01 | L99: 80.41 | M99: 78.31 | N99: 97 | O99: 否
A100: 98 | B100: 陈玉芳 | C100: 62011020524 | D100: 兰州市城关区教育局 | E100: 8166 | F100: 小学数学教师 | G100: 75 | H100: 77.20 | I100: 79.00 | J100: 26 | K100: 1.00 | L100: 79.17 | M100: =H100*0.5+L100*0.5 -> 78.19 | N100: 98 | O100: 否
A101: 99 | B101: 于静 | C101: 62011020920 | D101: 兰州市城关区教育局 | E101: 8166 | F101: 小学数学教师 | G101: 75 | H101: 73.80 | I101: 81.60 | J101: 19 | K101: 1.01 | L101: 82.43 | M101: 78.12 | N101: 99 | O101: 否
A102: 100 | B102: 莫丹 | C102: 62011072005 | D102: 兰州市城关区教育局 | E102: 8166 | F102: 小学数学教师 | G102: 75 | H102: 66.55 | I102: 90.00 | J102: 22 | K102: 1.00 | L102: 89.64 | M102: 78.10 | N102: 100 | O102: 否
A103: 101 | B103: 刘珂 | C103: 62011062121 | D103: 兰州市城关区教育局 | E103: 8166 | F103: 小学数学教师 | G103: 75 | H103: 68.90 | I103: 87.60 | J103: 22 | K103: 1.00 | L103: 87.25 | M103: 78.08 | N103: 101 | O103: 否
A104: 102 | B104: 王鹏飞 | C104: 62011041204 | D104: 兰州市城关区教育局 | E104: 8166 | F104: 小学数学教师 | G104: 75 | H104: 68.60 | I104: 87.20 | J104: 21 | K104: 1.00 | L104: 87.41 | M104: 78.01 | N104: 102 | O104: 否
A105: 103 | B105: 彭景花 | C105: 62011100724 | D105: 兰州市城关区教育局 | E105: 8166 | F105: 小学数学教师 | G105: 75 | H105: 75.80 | I105: 80.00 | J105: 26 | K105: 1.00 | L105: 80.17 | M105: 77.99 | N105: 103 | O105: 否
A106: 104 | B106: 王艳珠 | C106: 62011021827 | D106: 兰州市城关区教育局 | E106: 8166 | F106: 小学数学教师 | G106: 75 | H106: 72.60 | I106: 83.20 | J106: 23 | K106: 1.00 | L106: 83.30 | M106: 77.95 | N106: 104 | O106: 否
A107: 105 | B107: 顾睿悦 | C107: 62011091520 | D107: 兰州市城关区教育局 | E107: 8166 | F107: 小学数学教师 | G107: 75 | H107: 68.05 | I107: 88.00 | J107: 22 | K107: 1.00 | L107: 87.65 | M107: 77.85 | N107: 105 | O107: 否
A108: 106 | B108: 张碧润 | C108: 62011071205 | D108: 兰州市城关区教育局 | E108: 8166 | F108: 小学数学教师 | G108: 75 | H108: 70.60 | I108: 84.80 | J108: 21 | K108: 1.00 | L108: 85.01 | M108: 77.81 | N108: 106 | O108: 否
A109: 107 | B109: 刘露 | C109: 62011060229 | D109: 兰州市城关区教育局 | E109: 8166 | F109: 小学数学教师 | G109: 75 | H109: 70.25 | I109: 86.80 | J109: 24 | K109: 0.98 | L109: 85.31 | M109: 77.78 | N109: 107 | O109: 否
A110: 108 | B110: 甘晓娟 | C110: 62011062316 | D110: 兰州市城关区教育局 | E110: 8166 | F110: 小学数学教师 | G110: 75 | H110: 69.65 | I110: 85.60 | J110: 23 | K110: 1.00 | L110: 85.71 | M110: 77.68 | N110: 108 | O110: 否
A111: 109 | B111: 马兰秀 | C111: 62011070804 | D111: 兰州市城关区教育局 | E111: 8166 | F111: 小学数学教师 | G111: 75 | H111: 71.60 | I111: 85.20 | J111: 24 | K111: 0.98 | L111: 83.74 | M111: 77.67 | N111: 109 | O111: 否
A112: 110 | B112: 党小敏 | C112: 62011021428 | D112: 兰州市城关区教育局 | E112: 8166 | F112: 小学数学教师 | G112: 75 | H112: 71.40 | I112: 85.20 | J112: 24 | K112: 0.98 | L112: 83.74 | M112: 77.57 | N112: 110 | O112: 否
A113: 111 | B113: 宋乐乐 | C113: 62011012125 | D113: 兰州市城关区教育局 | E113: 8166 | F113: 小学数学教师 | G113: 75 | H113: 68.45 | I113: 88.20 | J113: 24 | K113: 0.98 | L113: 86.69 | M113: 77.57 | N113: 110 | O113: 否
A114: 112 | B114: 马向虎 | C114: 62011030509 | D114: 兰州市城关区教育局 | E114: 8166 | F114: 小学数学教师 | G114: 75 | H114: 72.85 | I114: 82.00 | J114: 21 | K114: 1.00 | L114: 82.20 | M114: 77.53 | N114: 112 | O114: 否
A115: 113 | B115: 马丽芳 | C115: 62011030527 | D115: 兰州市城关区教育局 | E115: 8166 | F115: 小学数学教师 | G115: 75 | H115: 71.05 | I115: 83.80 | J115: 26 | K115: 1.00 | L115: 83.98 | M115: 77.52 | N115: 113 | O115: 否
A116: 114 | B116: 郭琦 | C116: 62011092404 | D116: 兰州市城关区教育局 | E116: 8166 | F116: 小学数学教师 | G116: 75 | H116: 71.25 | I116: 85.20 | J116: 24 | K116: 0.98 | L116: 83.74 | M116: 77.50 | N116: 114 | O116: 否
A117: 115 | B117: 柳玉凤 | C117: 62011101611 | D117: 兰州市城关区教育局 | E117: 8166 | F117: 小学数学教师 | G117: 75 | H117: 66.25 | I117: 87.80 | J117: 19 | K117: 1.01 | L117: 88.69 | M117: 77.47 | N117: 115 | O117: 否
A118: 116 | B118: 柴睿 | C118: 62011090308 | D118: 兰州市城关区教育局 | E118: 8166 | F118: 小学数学教师 | G118: 75 | H118: 68.80 | I118: 86.40 | J118: 22 | K118: 1.00 | L118: 86.05 | M118: 77.43 | N118: 116 | O118: 否
A119: 117 | B119: 张斌霞 | C119: 62011061202 | D119: 兰州市城关区教育局 | E119: 8166 | F119: 小学数学教师 | G119: 75 | H119: 74.90 | I119: 79.00 | J119: 19 | K119: 1.01 | L119: 79.80 | M119: 77.35 | N119: 117 | O119: 否
A120: 118 | B120: 石娟娟 | C120: 62011070527 | D120: 兰州市城关区教育局 | E120: 8166 | F120: 小学数学教师 | G120: 75 | H120: 73.10 | I120: 81.60 | J120: 25 | K120: 1.00 | L120: 81.50 | M120: 77.30 | N120: 118 | O120: 否
A121: 119 | B121: 马秀 | C121: 62011030427 | D121: 兰州市城关区教育局 | E121: 8166 | F121: 小学数学教师 | G121: 75 | H121: 75.55 | I121: 80.40 | J121: 24 | K121: 0.98 | L121: 79.02 | M121: 77.29 | N121: 119 | O121: 否
A122: 120 | B122: 刘菲菲 | C122: 62011080726 | D122: 兰州市城关区教育局 | E122: 8166 | F122: 小学数学教师 | G122: 75 | H122: 68.05 | I122: 86.40 | J122: 23 | K122: 1.00 | L122: 86.51 | M122: 77.28 | N122: 120 | O122: 否
A123: 121 | B123: 马有福 | C123: 62011072002 | D123: 兰州市城关区教育局 | E123: 8166 | F123: 小学数学教师 | G123: 75 | H123: 72.95 | I123: 81.40 | J123: 23 | K123: 1.00 | L123: 81.50 | M123: 77.23 | N123: 121 | O123: 否
A124: 122 | B124: 马艳丽 | C124: 62011021609 | D124: 兰州市城关区教育局 | E124: 8166 | F124: 小学数学教师 | G124: 75 | H124: 69.35 | I124: 84.40 | J124: 20 | K124: 1.01 | L124: 84.92 | M124: 77.14 | N124: 122 | O124: 否
A125: 123 | B125: 杨丽娟 | C125: 62011041912 | D125: 兰州市城关区教育局 | E125: 8166 | F125: 小学数学教师 | G125: 75 | H125: 74.95 | I125: 79.20 | J125: 23 | K125: 1.00 | L125: 79.30 | M125: 77.13 | N125: 123 | O125: 否
A126: 124 | B126: 陈芳珍 | C126: 62011090426 | D126: 兰州市城关区教育局 | E126: 8166 | F126: 小学数学教师 | G126: 75 | H126: 72.65 | I126: 81.40 | J126: 23 | K126: 1.00 | L126: 81.50 | M126: 77.08 | N126: 124 | O126: 否
A127: 125 | B127: 黄凯刚 | C127: 62011080822 | D127: 兰州市城关区教育局 | E127: 8166 | F127: 小学数学教师 | G127: 75 | H127: 73.00 | I127: 80.80 | J127: 21 | K127: 1.00 | L127: 81.00 | M127: 77.00 | N127: 125 | O127: 否
A128: 126 | B128: 李佳艳 | C128: 62011041219 | D128: 兰州市城关区教育局 | E128: 8166 | F128: 小学数学教师 | G128: 75 | H128: 73.10 | I128: 81.20 | J128: 22 | K128: 1.00 | L128: 80.87 | M128: 76.99 | N128: 126 | O128: 否
A129: 127 | B129: 刘丽霞 | C129: 62011030105 | D129: 兰州市城关区教育局 | E129: 8166 | F129: 小学数学教师 | G129: 75 | H129: 73.85 | I129: 80.20 | J129: 25 | K129: 1.00 | L129: 80.10 | M129: 76.98 | N129: 127 | O129: 否
A130: 128 | B130: 周芳芳 | C130: 62011021426 | D130: 兰州市城关区教育局 | E130: 8166 | F130: 小学数学教师 | G130: 75 | H130: 69.90 | I130: 84.20 | J130: 22 | K130: 1.00 | L130: 83.86 | M130: 76.88 | N130: 128 | O130: 否
A131: 129 | B131: 段芳 | C131: 62011011526 | D131: 兰州市城关区教育局 | E131: 8166 | F131: 小学数学教师 | G131: 75 | H131: 69.35 | I131: 84.20 | J131: 26 | K131: 1.00 | L131: 84.38 | M131: 76.87 | N131: 129 | O131: 否
A132: 130 | B132: 李转弟 | C132: 62011011623 | D132: 兰州市城关区教育局 | E132: 8166 | F132: 小学数学教师 | G132: 75 | H132: 71.60 | I132: 82.40 | J132: 22 | K132: 1.00 | L132: 82.07 | M132: =H132*0.5+L132*0.5 -> 76.84 | N132: 130 | O132: 否
A133: 131 | B133: 胡山山 | C133: 62011071522 | D133: 兰州市城关区教育局 | E133: 8166 | F133: 小学数学教师 | G133: 75 | H133: 64.85 | I133: 87.60 | J133: 19 | K133: 1.01 | L133: 88.49 | M133: 76.67 | N133: 131 | O133: 否
A134: 132 | B134: 韩楠 | C134: 62011032524 | D134: 兰州市城关区教育局 | E134: 8166 | F134: 小学数学教师 | G134: 75 | H134: 71.55 | I134: 83.20 | J134: 24 | K134: 0.98 | L134: 81.77 | M134: 76.66 | N134: 132 | O134: 否
A135: 133 | B135: 马志虎 | C135: 62011011421 | D135: 兰州市城关区教育局 | E135: 8166 | F135: 小学数学教师 | G135: 75 | H135: 71.15 | I135: 83.60 | J135: 24 | K135: 0.98 | L135: 82.17 | M135: 76.66 | N135: 132 | O135: 否
A136: 134 | B136: 陈甜甜 | C136: 62011100702 | D136: 兰州市城关区教育局 | E136: 8166 | F136: 小学数学教师 | G136: 75 | H136: 67.95 | I136: 85.60 | J136: 22 | K136: 1.00 | L136: 85.26 | M136: 76.61 | N136: 134 | O136: 否
A137: 135 | B137: 马桃花 | C137: 62011102422 | D137: 兰州市城关区教育局 | E137: 8166 | F137: 小学数学教师 | G137: 75 | H137: 66.25 | I137: 88.40 | J137: 24 | K137: 0.98 | L137: 86.88 | M137: 76.57 | N137: 135 | O137: 否
A138: 136 | B138: 张敏敏 | C138: 62011021417 | D138: 兰州市城关区教育局 | E138: 8166 | F138: 小学数学教师 | G138: 75 | H138: 68.75 | I138: 84.20 | J138: 26 | K138: 1.00 | L138: 84.38 | M138: 76.57 | N138: 135 | O138: 否
A139: 137 | B139: 苏景 | C139: 62011041112 | D139: 兰州市城关区教育局 | E139: 8166 | F139: 小学数学教师 | G139: 75 | H139: 67.45 | I139: 86.00 | J139: 22 | K139: 1.00 | L139: 85.65 | M139: 76.55 | N139: 137 | O139: 否
A140: 138 | B140: 雷小霞 | C140: 62011020723 | D140: 兰州市城关区教育局 | E140: 8166 | F140: 小学数学教师 | G140: 75 | H140: 70.20 | I140: 82.00 | J140: 19 | K140: 1.01 | L140: 82.83 | M140: 76.52 | N140: 138 | O140: 否
A141: 139 | B141: 祁勇强 | C141: 62011012107 | D141: 兰州市城关区教育局 | E141: 8166 | F141: 小学数学教师 | G141: 75 | H141: 67.10 | I141: 87.40 | J141: 24 | K141: 0.98 | L141: 85.90 | M141: 76.50 | N141: 139 | O141: 否
A142: 141 | B142: 李小梅 | C142: 62011032503 | D142: 兰州市城关区教育局 | E142: 8166 | F142: 小学数学教师 | G142: 75 | H142: 69.45 | I142: 83.20 | J142: 21 | K142: 1.00 | L142: 83.40 | M142: 76.43 | N142: 140 | O142: 否
A143: 140 | B143: 黄美霞 | C143: 62011092019 | D143: 兰州市城关区教育局 | E143: 8166 | F143: 小学数学教师 | G143: 75 | H143: 70.35 | I143: 82.40 | J143: 23 | K143: 1.00 | L143: 82.50 | M143: 76.43 | N143: 140 | O143: 否
A144: 142 | B144: 杨瑞霞 | C144: 62011072505 | D144: 兰州市城关区教育局 | E144: 8166 | F144: 小学数学教师 | G144: 75 | H144: 69.40 | I144: 83.20 | J144: 21 | K144: 1.00 | L144: 83.40 | M144: 76.40 | N144: 142 | O144: 否
A145: 143 | B145: 魏立霞 | C145: 62011051430 | D145: 兰州市城关区教育局 | E145: 8166 | F145: 小学数学教师 | G145: 75 | H145: 68.40 | I145: 85.80 | J145: 24 | K145: 0.98 | L145: 84.33 | M145: 76.37 | N145: 143 | O145: 否
A146: 144 | B146: 米彦彬 | C146: 62011100323 | D146: 兰州市城关区教育局 | E146: 8166 | F146: 小学数学教师 | G146: 75 | H146: 68.75 | I146: 83.80 | J146: 23 | K146: 1.00 | L146: 83.90 | M146: 76.33 | N146: 144 | O146: 否
A147: 145 | B147: 苟娜娜 | C147: 62011020102 | D147: 兰州市城关区教育局 | E147: 8166 | F147: 小学数学教师 | G147: 75 | H147: 67.40 | I147: 84.80 | J147: 26 | K147: 1.00 | L147: 84.98 | M147: 76.19 | N147: 145 | O147: 否
A148: 146 | B148: 王茂辉 | C148: 62011080407 | D148: 兰州市城关区教育局 | E148: 8166 | F148: 小学数学教师 | G148: 75 | H148: 71.00 | I148: 81.20 | J148: 26 | K148: 1.00 | L148: 81.37 | M148: 76.19 | N148: 145 | O148: 否
A149: 147 | B149: 李文晓 | C149: 62011051613 | D149: 兰州市城关区教育局 | E149: 8166 | F149: 小学数学教师 | G149: 75 | H149: 67.80 | I149: 84.60 | J149: 25 | K149: 1.00 | L149: 84.50 | M149: 76.15 | N149: 147 | O149: 否
A150: 148 | B150: 许依依 | C150: 62011051202 | D150: 兰州市城关区教育局 | E150: 8166 | F150: 小学数学教师 | G150: 75 | H150: 66.40 | I150: 86.00 | J150: 25 | K150: 1.00 | L150: 85.90 | M150: 76.15 | N150: 147 | O150: 否
A151: 149 | B151: 赵永花 | C151: 62011101225 | D151: 兰州市城关区教育局 | E151: 8166 | F151: 小学数学教师 | G151: 75 | H151: 71.25 | I151: 80.20 | J151: 19 | K151: 1.01 | L151: 81.01 | M151: 76.13 | N151: 149 | O151: 否
A152: 150 | B152: 郭宏妹 | C152: 62011091712 | D152: 兰州市城关区教育局 | E152: 8166 | F152: 小学数学教师 | G152: 75 | H152: 74.65 | I152: 76.80 | J152: 20 | K152: 1.01 | L152: 77.27 | M152: 75.96 | N152: 150 | O152: 否
A153: 151 | B153: 李梅萍 | C153: 62011091205 | D153: 兰州市城关区教育局 | E153: 8166 | F153: 小学数学教师 | G153: 75 | H153: 70.40 | I153: 81.00 | J153: 20 | K153: 1.01 | L153: 81.49 | M153: 75.95 | N153: 151 | O153: 否
A154: 152 | B154: 陈小梅 | C154: 62011031813 | D154: 兰州市城关区教育局 | E154: 8166 | F154: 小学数学教师 | G154: 75 | H154: 70.45 | I154: 80.60 | J154: 19 | K154: 1.01 | L154: 81.42 | M154: 75.94 | N154: 152 | O154: 否
A155: 153 | B155: 张金霞 | C155: 62011090112 | D155: 兰州市城关区教育局 | E155: 8166 | F155: 小学数学教师 | G155: 75 | H155: 69.95 | I155: 81.60 | J155: 21 | K155: 1.00 | L155: 81.80 | M155: 75.88 | N155: 153 | O155: 否
A156: 154 | B156: 任晓娜 | C156: 62011011227 | D156: 兰州市城关区教育局 | E156: 8166 | F156: 小学数学教师 | G156: 75 | H156: 68.50 | I156: 83.00 | J156: 26 | K156: 1.00 | L156: 83.18 | M156: 75.84 | N156: 154 | O156: 否
A157: 155 | B157: 姚燕燕 | C157: 62011060819 | D157: 兰州市城关区教育局 | E157: 8166 | F157: 小学数学教师 | G157: 75 | H157: 71.40 | I157: 80.60 | J157: 22 | K157: 1.00 | L157: 80.27 | M157: 75.84 | N157: 154 | O157: 否
A158: 156 | B158: 李紫君 | C158: 62011011019 | D158: 兰州市城关区教育局 | E158: 8166 | F158: 小学数学教师 | G158: 75 | H158: 66.10 | I158: 87.00 | J158: 24 | K158: 0.98 | L158: 85.51 | M158: 75.81 | N158: 156 | O158: 否
A159: 157 | B159: 王嘉溶 | C159: 62011010726 | D159: 兰州市城关区教育局 | E159: 8166 | F159: 小学数学教师 | G159: 75 | H159: 70.75 | I159: 80.20 | J159: 20 | K159: 1.01 | L159: 80.69 | M159: 75.72 | N159: 157 | O159: 否
A160: 158 | B160: 魏辉霞 | C160: 62011071410 | D160: 兰州市城关区教育局 | E160: 8166 | F160: 小学数学教师 | G160: 75 | H160: 68.05 | I160: 82.40 | J160: 20 | K160: 1.01 | L160: 82.90 | M160: 75.48 | N160: 158 | O160: 否
A161: 159 | B161: 王艳 | C161: 62011050912 | D161: 兰州市城关区教育局 | E161: 8166 | F161: 小学数学教师 | G161: 75 | H161: 72.35 | I161: 78.40 | J161: 26 | K161: 1.00 | L161: 78.57 | M161: 75.46 | N161: 159 | O161: 否
A162: 160 | B162: 王维霞 | C162: 62011071708 | D162: 兰州市城关区教育局 | E162: 8166 | F162: 小学数学教师 | G162: 75 | H162: 74.00 | I162: 77.20 | J162: 22 | K162: 1.00 | L162: 76.89 | M162: 75.45 | N162: 160 | O162: 否
A163: 161 | B163: 金涛 | C163: 62011012106 | D163: 兰州市城关区教育局 | E163: 8166 | F163: 小学数学教师 | G163: 75 | H163: 69.25 | I163: 81.40 | J163: 26 | K163: 1.00 | L163: 81.57 | M163: 75.41 | N163: 161 | O163: 否
A164: 162 | B164: 裴文妤 | C164: 62011090709 | D164: 兰州市城关区教育局 | E164: 8166 | F164: 小学数学教师 | G164: 75 | H164: 69.95 | I164: 80.80 | J164: 22 | K164: 1.00 | L164: 80.47 | M164: =H164*0.5+L164*0.5 -> 75.21 | N164: 162 | O164: 否
A165: 163 | B165: 韩巧云 | C165: 62011081602 | D165: 兰州市城关区教育局 | E165: 8166 | F165: 小学数学教师 | G165: 75 | H165: 72.10 | I165: 78.60 | J165: 22 | K165: 1.00 | L165: 78.28 | M165: 75.19 | N165: 163 | O165: 否
A166: 164 | B166: 刘彩凤 | C166: 62011082524 | D166: 兰州市城关区教育局 | E166: 8166 | F166: 小学数学教师 | G166: 75 | H166: 66.05 | I166: 85.80 | J166: 24 | K166: 0.98 | L166: 84.33 | M166: 75.19 | N166: 163 | O166: 否
A167: 165 | B167: 赵吉霞 | C167: 62011021721 | D167: 兰州市城关区教育局 | E167: 8166 | F167: 小学数学教师 | G167: 75 | H167: 64.85 | I167: 85.40 | J167: 25 | K167: 1.00 | L167: 85.30 | M167: 75.08 | N167: 165 | O167: 否
A168: 166 | B168: 田震山 | C168: 62011102210 | D168: 兰州市城关区教育局 | E168: 8166 | F168: 小学数学教师 | G168: 75 | H168: 67.40 | I168: 84.00 | J168: 24 | K168: 0.98 | L168: 82.56 | M168: 74.98 | N168: 166 | O168: 否
A169: 167 | B169: 邵彤 | C169: 62011102024 | D169: 兰州市城关区教育局 | E169: 8166 | F169: 小学数学教师 | G169: 75 | H169: 64.80 | I169: 84.80 | J169: 21 | K169: 1.00 | L169: 85.01 | M169: 74.91 | N169: 167 | O169: 否
A170: 168 | B170: 张丽霞 | C170: 62011041318 | D170: 兰州市城关区教育局 | E170: 8166 | F170: 小学数学教师 | G170: 75 | H170: 69.55 | I170: 80.20 | J170: 25 | K170: 1.00 | L170: 80.10 | M170: 74.83 | N170: 168 | O170: 否
A171: 169 | B171: 田自霞 | C171: 62011061922 | D171: 兰州市城关区教育局 | E171: 8166 | F171: 小学数学教师 | G171: 75 | H171: 68.15 | I171: 81.00 | J171: 20 | K171: 1.01 | L171: 81.49 | M171: 74.82 | N171: 169 | O171: 否
A172: 170 | B172: 马宝 | C172: 62011070504 | D172: 兰州市城关区教育局 | E172: 8166 | F172: 小学数学教师 | G172: 75 | H172: 66.45 | I172: 82.80 | J172: 21 | K172: 1.00 | L172: 83.00 | M172: 74.73 | N172: 170 | O172: 否
A173: 171 | B173: 陈佳慧 | C173: 62011022109 | D173: 兰州市城关区教育局 | E173: 8166 | F173: 小学数学教师 | G173: 75 | H173: 67.75 | I173: 80.80 | J173: 20 | K173: 1.01 | L173: 81.29 | M173: 74.52 | N173: 171 | O173: 否
A174: 172 | B174: 王燕君 | C174: 62011060716 | D174: 兰州市城关区教育局 | E174: 8166 | F174: 小学数学教师 | G174: 75 | H174: 71.90 | I174: 76.60 | J174: 20 | K174: 1.01 | L174: 77.07 | M174: 74.49 | N174: 172 | O174: 否
A175: 173 | B175: 李贤如 | C175: 62011031828 | D175: 兰州市城关区教育局 | E175: 8166 | F175: 小学数学教师 | G175: 75 | H175: 67.00 | I175: 81.60 | J175: 21 | K175: 1.00 | L175: 81.80 | M175: 74.40 | N175: 173 | O175: 否
A176: 174 | B176: 权宝宝 | C176: 62011070809 | D176: 兰州市城关区教育局 | E176: 8166 | F176: 小学数学教师 | G176: 75 | H176: 66.25 | I176: 81.60 | J176: 19 | K176: 1.01 | L176: 82.43 | M176: 74.34 | N176: 174 | O176: 否
A177: 175 | B177: 张珉婷 | C177: 62011091818 | D177: 兰州市城关区教育局 | E177: 8166 | F177: 小学数学教师 | G177: 75 | H177: 67.35 | I177: 80.80 | J177: 20 | K177: 1.01 | L177: 81.29 | M177: 74.32 | N177: 175 | O177: 否
A178: 176 | B178: 余瑞红 | C178: 62011101601 | D178: 兰州市城关区教育局 | E178: 8166 | F178: 小学数学教师 | G178: 75 | H178: 67.25 | I178: 81.20 | J178: 23 | K178: 1.00 | L178: 81.30 | M178: 74.28 | N178: 176 | O178: 否
A179: 177 | B179: 张璐 | C179: 62011012309 | D179: 兰州市城关区教育局 | E179: 8166 | F179: 小学数学教师 | G179: 75 | H179: 66.50 | I179: 81.20 | J179: 20 | K179: 1.01 | L179: 81.70 | M179: 74.10 | N179: 177 | O179: 否
A180: 178 | B180: 王婧晔 | C180: 62011091320 | D180: 兰州市城关区教育局 | E180: 8166 | F180: 小学数学教师 | G180: 75 | H180: 72.00 | I180: 77.40 | J180: 24 | K180: 0.98 | L180: 76.07 | M180: 74.04 | N180: 178 | O180: 否
A181: 179 | B181: 武文丹 | C181: 62011070317 | D181: 兰州市城关区教育局 | E181: 8166 | F181: 小学数学教师 | G181: 75 | H181: 66.80 | I181: 80.20 | J181: 21 | K181: 1.00 | L181: 80.39 | M181: 73.60 | N181: 179 | O181: 否
A182: 180 | B182: 褚小娟 | C182: 62011070206 | D182: 兰州市城关区教育局 | E182: 8166 | F182: 小学数学教师 | G182: 75 | H182: 67.45 | I182: 79.60 | J182: 23 | K182: 1.00 | L182: 79.70 | M182: 73.58 | N182: 180 | O182: 否
A183: 181 | B183: 候力伟 | C183: 62011101026 | D183: 兰州市城关区教育局 | E183: 8166 | F183: 小学数学教师 | G183: 75 | H183: 68.45 | I183: 78.40 | J183: 23 | K183: 1.00 | L183: 78.50 | M183: 73.48 | N183: 181 | O183: 否
A184: 182 | B184: 常乐 | C184: 62011082424 | D184: 兰州市城关区教育局 | E184: 8166 | F184: 小学数学教师 | G184: 75 | H184: 67.65 | I184: 79.00 | J184: 21 | K184: 1.00 | L184: 79.19 | M184: 73.42 | N184: 182 | O184: 否
A185: 183 | B185: 李燕 | C185: 62011061708 | D185: 兰州市城关区教育局 | E185: 8166 | F185: 小学数学教师 | G185: 75 | H185: 66.60 | I185: 80.00 | J185: 26 | K185: 1.00 | L185: 80.17 | M185: 73.39 | N185: 183 | O185: 否
A186: 184 | B186: 王元梅 | C186: 62011091126 | D186: 兰州市城关区教育局 | E186: 8166 | F186: 小学数学教师 | G186: 75 | H186: 67.05 | I186: 78.80 | J186: 19 | K186: 1.01 | L186: 79.60 | M186: 73.33 | N186: 184 | O186: 否
A187: 185 | B187: 安昇平 | C187: 62011091225 | D187: 兰州市城关区教育局 | E187: 8166 | F187: 小学数学教师 | G187: 75 | H187: 67.95 | I187: 77.60 | J187: 19 | K187: 1.01 | L187: 78.39 | M187: 73.17 | N187: 185 | O187: 否
A188: 186 | B188: 张英英 | C188: 62011041007 | D188: 兰州市城关区教育局 | E188: 8166 | F188: 小学数学教师 | G188: 75 | H188: 67.55 | I188: 78.80 | J188: 22 | K188: 1.00 | L188: 78.48 | M188: 73.02 | N188: 186 | O188: 否
A189: 187 | B189: 马玉英 | C189: 62011020616 | D189: 兰州市城关区教育局 | E189: 8166 | F189: 小学数学教师 | G189: 75 | H189: 66.50 | I189: 79.20 | J189: 26 | K189: 1.00 | L189: 79.37 | M189: 72.94 | N189: 187 | O189: 否
A190: 188 | B190: 李文惠 | C190: 62011030720 | D190: 兰州市城关区教育局 | E190: 8166 | F190: 小学数学教师 | G190: 75 | H190: 70.35 | I190: 74.60 | J190: 19 | K190: 1.01 | L190: 75.36 | M190: 72.86 | N190: 188 | O190: 否
A191: 189 | B191: 叶正龙 | C191: 62011010713 | D191: 兰州市城关区教育局 | E191: 8166 | F191: 小学数学教师 | G191: 75 | H191: 66.30 | I191: 79.40 | J191: 25 | K191: 1.00 | L191: 79.30 | M191: 72.80 | N191: 189 | O191: 否
A192: 190 | B192: 黄雅冬 | C192: 62011040318 | D192: 兰州市城关区教育局 | E192: 8166 | F192: 小学数学教师 | G192: 75 | H192: 65.05 | I192: 81.00 | J192: 24 | K192: 0.98 | L192: 79.61 | M192: 72.33 | N192: 190 | O192: 否
A193: 191 | B193: 马乐琴 | C193: 62011061207 | D193: 兰州市城关区教育局 | E193: 8166 | F193: 小学数学教师 | G193: 75 | H193: 66.85 | I193: 77.40 | J193: 23 | K193: 1.00 | L193: 77.50 | M193: 72.18 | N193: 191 | O193: 否
A194: 192 | B194: 马玥 | C194: 62011061404 | D194: 兰州市城关区教育局 | E194: 8166 | F194: 小学数学教师 | G194: 75 | H194: 65.50 | I194: 77.80 | J194: 21 | K194: 1.00 | L194: 77.99 | M194: 71.75 | N194: 192 | O194: 否
A195: 193 | B195: 王云霞 | C195: 62011091011 | D195: 兰州市城关区教育局 | E195: 8166 | F195: 小学数学教师 | G195: 75 | H195: 69.15 | I195: 74.60 | J195: 22 | K195: 1.00 | L195: 74.30 | M195: 71.73 | N195: 193 | O195: 否
A196: 194 | B196: 杨晓杰 | C196: 62011072105 | D196: 兰州市城关区教育局 | E196: 8166 | F196: 小学数学教师 | G196: 75 | H196: 65.00 | I196: 74.60 | J196: 20 | K196: 1.01 | L196: 75.06 | M196: 70.03 | N196: 194 | O196: 否
A197: 195 | B197: 马小成 | C197: 62011101320 | D197: 兰州市城关区教育局 | E197: 8166 | F197: 小学数学教师 | G197: 75 | H197: 78.20 | O197: 否 | P197: 放弃
A198: 196 | B198: 金昌翠 | C198: 62011092509 | D198: 兰州市城关区教育局 | E198: 8166 | F198: 小学数学教师 | G198: 75 | H198: 72.45 | O198: 否 | P198: 放弃
A199: 197 | B199: 曹永梅 | C199: 62011031510 | D199: 兰州市城关区教育局 | E199: 8166 | F199: 小学数学教师 | G199: 75 | H199: 71.80 | O199: 否 | P199: 放弃
A200: 198 | B200: 郑莹 | C200: 62011101125 | D200: 兰州市城关区教育局 | E200: 8166 | F200: 小学数学教师 | G200: 75 | H200: 71.80 | O200: 否 | P200: 放弃
... 5 more rows

Sheet 英语
A1: 2021年兰州市公开招聘中小学聘用制教师（城关区教育局所属学校）综合成绩及入围体检人员名单
A2: 序号 | B2: 姓名 | C2: 准考证号 | D2: 主管单位 | E2: 岗位代码 | F2: 岗位 名称 | G2: 拟招聘 人数 | H2: 笔试成绩 | I2: 面试原始得分 | J2: 面试考场号 | K2: 考场加权系数 | L2: 面试成绩 | M2: 综合成绩 | N2: 综合排名 | O2: 是否进入体检环节 | P2: 备注
A3: 1 | B3: 薛迎童 | C3: 62011050715 | D3: 兰州市城关区教育局 | E3: 8167 | F3: 小学英语教师 | G3: 30 | H3: 81.25 | I3: 89.00 | J3: 27 | K3: 1.01 | L3: 90.21 | M3: =H3*0.5+L3*0.5 -> 85.73 | N3: 1 | O3: 是
A4: 2 | B4: 谢小芳 | C4: 62011051404 | D4: 兰州市城关区教育局 | E4: 8167 | F4: 小学英语教师 | G4: 30 | H4: 82.05 | I4: 88.20 | J4: 28 | K4: 0.98 | L4: 86.63 | M4: =H4*0.5+L4*0.5 -> 84.34 | N4: 2 | O4: 是
A5: 3 | B5: 刘华 | C5: 62011050701 | D5: 兰州市城关区教育局 | E5: 8167 | F5: 小学英语教师 | G5: 30 | H5: 81.35 | I5: 87.80 | J5: 28 | K5: 0.98 | L5: 86.24 | M5: 83.80 | N5: 3 | O5: 是
A6: 4 | B6: 金晶 | C6: 62011022514 | D6: 兰州市城关区教育局 | E6: 8167 | F6: 小学英语教师 | G6: 30 | H6: 78.85 | I6: 87.60 | J6: 29 | K6: 1.01 | L6: 88.73 | M6: 83.79 | N6: 4 | O6: 是
A7: 5 | B7: 秦勤 | C7: 62011022228 | D7: 兰州市城关区教育局 | E7: 8167 | F7: 小学英语教师 | G7: 30 | H7: 82.90 | I7: 83.40 | J7: 27 | K7: 1.01 | L7: 84.53 | M7: 83.72 | N7: 5 | O7: 是
A8: 6 | B8: 张湘芸 | C8: 62011041603 | D8: 兰州市城关区教育局 | E8: 8167 | F8: 小学英语教师 | G8: 30 | H8: 76.75 | I8: 89.40 | J8: 27 | K8: 1.01 | L8: 90.61 | M8: 83.68 | N8: 6 | O8: 是
A9: 7 | B9: 吴峡月 | C9: 62011040205 | D9: 兰州市城关区教育局 | E9: 8167 | F9: 小学英语教师 | G9: 30 | H9: 82.15 | I9: 84.00 | J9: 27 | K9: 1.01 | L9: 85.14 | M9: 83.65 | N9: 7 | O9: 是
A10: 8 | B10: 方仪 | C10: 62011070912 | D10: 兰州市城关区教育局 | E10: 8167 | F10: 小学英语教师 | G10: 30 | H10: 85.70 | I10: 83.00 | J10: 28 | K10: 0.98 | L10: 81.53 | M10: 83.62 | N10: 8 | O10: 是
A11: 9 | B11: 马奥菲 | C11: 62011031202 | D11: 兰州市城关区教育局 | E11: 8167 | F11: 小学英语教师 | G11: 30 | H11: 80.10 | I11: 88.20 | J11: 28 | K11: 0.98 | L11: 86.63 | M11: 83.37 | N11: 9 | O11: 是
A12: 10 | B12: 乔芳慧 | C12: 62011051507 | D12: 兰州市城关区教育局 | E12: 8167 | F12: 小学英语教师 | G12: 30 | H12: 80.70 | I12: 86.40 | J12: 30 | K12: 0.99 | L12: 85.77 | M12: 83.24 | N12: 10 | O12: 是
A13: 11 | B13: 王静 | C13: 62011012004 | D13: 兰州市城关区教育局 | E13: 8167 | F13: 小学英语教师 | G13: 30 | H13: 80.05 | I13: 86.80 | J13: 30 | K13: 0.99 | L13: 86.16 | M13: 83.11 | N13: 11 | O13: 是
A14: 12 | B14: 于丹 | C14: 62011090309 | D14: 兰州市城关区教育局 | E14: 8167 | F14: 小学英语教师 | G14: 30 | H14: 76.70 | I14: 91.00 | J14: 28 | K14: 0.98 | L14: 89.38 | M14: 83.04 | N14: 12 | O14: 是
A15: 13 | B15: 李晓雅 | C15: 62011021003 | D15: 兰州市城关区教育局 | E15: 8167 | F15: 小学英语教师 | G15: 30 | H15: 77.45 | I15: 89.00 | J15: 30 | K15: 0.99 | L15: 88.35 | M15: 82.90 | N15: 13 | O15: 是
A16: 14 | B16: 郭明艳 | C16: 62011072409 | D16: 兰州市城关区教育局 | E16: 8167 | F16: 小学英语教师 | G16: 30 | H16: 77.05 | I16: 87.20 | J16: 29 | K16: 1.01 | L16: 88.33 | M16: 82.69 | N16: 14 | O16: 是
A17: 15 | B17: 曾瑜 | C17: 62011021807 | D17: 兰州市城关区教育局 | E17: 8167 | F17: 小学英语教师 | G17: 30 | H17: 76.95 | I17: 87.20 | J17: 27 | K17: 1.01 | L17: 88.38 | M17: 82.67 | N17: 15 | O17: 是
A18: 16 | B18: 单鹏 | C18: 62011101605 | D18: 兰州市城关区教育局 | E18: 8167 | F18: 小学英语教师 | G18: 30 | H18: 77.25 | I18: 86.80 | J18: 29 | K18: 1.01 | L18: 87.92 | M18: 82.59 | N18: 16 | O18: 是
A19: 17 | B19: 贾皓吾 | C19: 62011060103 | D19: 兰州市城关区教育局 | E19: 8167 | F19: 小学英语教师 | G19: 30 | H19: 77.65 | I19: 88.00 | J19: 30 | K19: 0.99 | L19: 87.36 | M19: 82.51 | N19: 17 | O19: 是
A20: 18 | B20: 裴珊 | C20: 62011020623 | D20: 兰州市城关区教育局 | E20: 8167 | F20: 小学英语教师 | G20: 30 | H20: 81.70 | I20: 84.80 | J20: 28 | K20: 0.98 | L20: 83.29 | M20: 82.50 | N20: 18 | O20: 是
A21: 19 | B21: 赵子君 | C21: 62011011808 | D21: 兰州市城关区教育局 | E21: 8167 | F21: 小学英语教师 | G21: 30 | H21: 82.40 | I21: 82.40 | J21: 30 | K21: 0.99 | L21: 81.80 | M21: 82.10 | N21: 19 | O21: 是
A22: 20 | B22: 张舒童 | C22: 62011061913 | D22: 兰州市城关区教育局 | E22: 8167 | F22: 小学英语教师 | G22: 30 | H22: 80.90 | I22: 81.80 | J22: 27 | K22: 1.01 | L22: 82.91 | M22: 81.91 | N22: 20 | O22: 是
A23: 21 | B23: 张琪 | C23: 62011022216 | D23: 兰州市城关区教育局 | E23: 8167 | F23: 小学英语教师 | G23: 30 | H23: 77.15 | I23: 85.40 | J23: 29 | K23: 1.01 | L23: 86.50 | M23: 81.83 | N23: 21 | O23: 是
A24: 22 | B24: 陈露 | C24: 62011050716 | D24: 兰州市城关区教育局 | E24: 8167 | F24: 小学英语教师 | G24: 30 | H24: 77.65 | I24: 84.60 | J24: 27 | K24: 1.01 | L24: 85.75 | M24: 81.70 | N24: 22 | O24: 是
A25: 23 | B25: 狄文苑 | C25: 62011080715 | D25: 兰州市城关区教育局 | E25: 8167 | F25: 小学英语教师 | G25: 30 | H25: 77.65 | I25: 87.00 | J25: 28 | K25: 0.98 | L25: 85.46 | M25: 81.56 | N25: 23 | O25: 是
A26: 24 | B26: 黄文娟 | C26: 62011070116 | D26: 兰州市城关区教育局 | E26: 8167 | F26: 小学英语教师 | G26: 30 | H26: 77.70 | I26: 84.00 | J26: 29 | K26: 1.01 | L26: 85.08 | M26: 81.39 | N26: 24 | O26: 是
A27: 25 | B27: 车珍 | C27: 62011091908 | D27: 兰州市城关区教育局 | E27: 8167 | F27: 小学英语教师 | G27: 30 | H27: 80.55 | I27: 81.00 | J27: 29 | K27: 1.01 | L27: 82.05 | M27: 81.30 | N27: 25 | O27: 是
A28: 26 | B28: 季海霞 | C28: 62011091907 | D28: 兰州市城关区教育局 | E28: 8167 | F28: 小学英语教师 | G28: 30 | H28: 79.20 | I28: 84.80 | J28: 28 | K28: 0.98 | L28: 83.29 | M28: 81.25 | N28: 26 | O28: 是
A29: 27 | B29: 刘雨嫣 | C29: 62011022020 | D29: 兰州市城关区教育局 | E29: 8167 | F29: 小学英语教师 | G29: 30 | H29: 76.50 | I29: 84.80 | J29: 27 | K29: 1.01 | L29: 85.95 | M29: 81.23 | N29: 27 | O29: 是
A30: 28 | B30: 段明霞 | C30: 62011010907 | D30: 兰州市城关区教育局 | E30: 8167 | F30: 小学英语教师 | G30: 30 | H30: 80.15 | I30: 82.40 | J30: 30 | K30: 0.99 | L30: 81.80 | M30: 80.98 | N30: 28 | O30: 是
A31: 29 | B31: 李萌 | C31: 62011101617 | D31: 兰州市城关区教育局 | E31: 8167 | F31: 小学英语教师 | G31: 30 | H31: 76.00 | I31: 86.40 | J31: 30 | K31: 0.99 | L31: 85.77 | M31: 80.89 | N31: 29 | O31: 是
A32: 30 | B32: 马丽 | C32: 62011042109 | D32: 兰州市城关区教育局 | E32: 8167 | F32: 小学英语教师 | G32: 30 | H32: 80.50 | I32: 81.60 | J32: 30 | K32: 0.99 | L32: 81.00 | M32: 80.75 | N32: 30 | O32: 是
A33: 31 | B33: 班严锦 | C33: 62011102522 | D33: 兰州市城关区教育局 | E33: 8167 | F33: 小学英语教师 | G33: 30 | H33: 79.05 | I33: 81.40 | J33: 29 | K33: 1.01 | L33: 82.45 | M33: 80.75 | N33: 30 | O33: 是
A34: 32 | B34: 闫欣 | C34: 62011102218 | D34: 兰州市城关区教育局 | E34: 8167 | F34: 小学英语教师 | G34: 30 | H34: 79.60 | I34: 82.40 | J34: 30 | K34: 0.99 | L34: 81.80 | M34: 80.70 | N34: 32 | O34: 否
A35: 33 | B35: 闫沛琴 | C35: 62011051216 | D35: 兰州市城关区教育局 | E35: 8167 | F35: 小学英语教师 | G35: 30 | H35: 82.55 | I35: 80.20 | J35: 28 | K35: 0.98 | L35: 78.78 | M35: 80.67 | N35: 33 | O35: 否
A36: 34 | B36: 沈陶 | C36: 62011061128 | D36: 兰州市城关区教育局 | E36: 8167 | F36: 小学英语教师 | G36: 30 | H36: 78.95 | I36: 81.20 | J36: 29 | K36: 1.01 | L36: 82.25 | M36: =H36*0.5+L36*0.5 -> 80.60 | N36: 34 | O36: 否
A37: 35 | B37: 张丽君 | C37: 62011060524 | D37: 兰州市城关区教育局 | E37: 8167 | F37: 小学英语教师 | G37: 30 | H37: 76.60 | I37: 85.20 | J37: 30 | K37: 0.99 | L37: 84.58 | M37: 80.59 | N37: 35 | O37: 否
A38: 36 | B38: 胡文娟 | C38: 62011101816 | D38: 兰州市城关区教育局 | E38: 8167 | F38: 小学英语教师 | G38: 30 | H38: 77.35 | I38: 82.60 | J38: 27 | K38: 1.01 | L38: 83.72 | M38: 80.54 | N38: 36 | O38: 否
A39: 37 | B39: 李鹏飞 | C39: 62011031915 | D39: 兰州市城关区教育局 | E39: 8167 | F39: 小学英语教师 | G39: 30 | H39: 77.70 | I39: 81.80 | J39: 27 | K39: 1.01 | L39: 82.91 | M39: 80.31 | N39: 37 | O39: 否
A40: 38 | B40: 刘小环 | C40: 62011022204 | D40: 兰州市城关区教育局 | E40: 8167 | F40: 小学英语教师 | G40: 30 | H40: 76.05 | I40: 83.40 | J40: 29 | K40: 1.01 | L40: 84.48 | M40: 80.27 | N40: 38 | O40: 否
A41: 39 | B41: 薛珊 | C41: 62011082423 | D41: 兰州市城关区教育局 | E41: 8167 | F41: 小学英语教师 | G41: 30 | H41: 79.70 | I41: 82.20 | J41: 28 | K41: 0.98 | L41: 80.74 | M41: 80.22 | N41: 39 | O41: 否
A42: 40 | B42: 马秀芳 | C42: 62011042212 | D42: 兰州市城关区教育局 | E42: 8167 | F42: 小学英语教师 | G42: 30 | H42: 80.30 | I42: 80.60 | J42: 30 | K42: 0.99 | L42: 80.01 | M42: 80.16 | N42: 40 | O42: 否
A43: 41 | B43: 田园园 | C43: 62011030613 | D43: 兰州市城关区教育局 | E43: 8167 | F43: 小学英语教师 | G43: 30 | H43: 78.95 | I43: 80.00 | J43: 29 | K43: 1.01 | L43: 81.03 | M43: 79.99 | N43: 41 | O43: 否
A44: 42 | B44: 张元春 | C44: 62011021213 | D44: 兰州市城关区教育局 | E44: 8167 | F44: 小学英语教师 | G44: 30 | H44: 76.55 | I44: 81.80 | J44: 27 | K44: 1.01 | L44: 82.91 | M44: 79.73 | N44: 42 | O44: 否
A45: 43 | B45: 包璐 | C45: 62011061705 | D45: 兰州市城关区教育局 | E45: 8167 | F45: 小学英语教师 | G45: 30 | H45: 80.00 | I45: 80.80 | J45: 28 | K45: 0.98 | L45: 79.36 | M45: 79.68 | N45: 43 | O45: 否
A46: 44 | B46: 袁媛 | C46: 62011031106 | D46: 兰州市城关区教育局 | E46: 8167 | F46: 小学英语教师 | G46: 30 | H46: 76.35 | I46: 83.60 | J46: 30 | K46: 0.99 | L46: 82.99 | M46: 79.67 | N46: 44 | O46: 否
A47: 45 | B47: 兰倩 | C47: 62011042125 | D47: 兰州市城关区教育局 | E47: 8167 | F47: 小学英语教师 | G47: 30 | H47: 80.00 | I47: 80.60 | J47: 28 | K47: 0.98 | L47: 79.17 | M47: 79.59 | N47: 45 | O47: 否
A48: 46 | B48: 王菲 | C48: 62011010828 | D48: 兰州市城关区教育局 | E48: 8167 | F48: 小学英语教师 | G48: 30 | H48: 77.75 | I48: 81.80 | J48: 30 | K48: 0.99 | L48: 81.20 | M48: 79.48 | N48: 46 | O48: 否
A49: 47 | B49: 谈金凤 | C49: 62011032404 | D49: 兰州市城关区教育局 | E49: 8167 | F49: 小学英语教师 | G49: 30 | H49: 77.45 | I49: 82.00 | J49: 30 | K49: 0.99 | L49: 81.40 | M49: 79.43 | N49: 47 | O49: 否
A50: 48 | B50: 祁复姣 | C50: 62011031418 | D50: 兰州市城关区教育局 | E50: 8167 | F50: 小学英语教师 | G50: 30 | H50: 79.45 | I50: 78.20 | J50: 29 | K50: 1.01 | L50: 79.21 | M50: 79.33 | N50: 48 | O50: 否
A51: 49 | B51: 蔡璐 | C51: 62011091707 | D51: 兰州市城关区教育局 | E51: 8167 | F51: 小学英语教师 | G51: 30 | H51: 76.40 | I51: 81.20 | J51: 29 | K51: 1.01 | L51: 82.25 | M51: 79.33 | N51: 48 | O51: 否
A52: 50 | B52: 蔺杨 | C52: 62011021018 | D52: 兰州市城关区教育局 | E52: 8167 | F52: 小学英语教师 | G52: 30 | H52: 79.65 | I52: 77.80 | J52: 29 | K52: 1.01 | L52: 78.80 | M52: 79.23 | N52: 50 | O52: 否
A53: 51 | B53: 刘金凤 | C53: 62011091105 | D53: 兰州市城关区教育局 | E53: 8167 | F53: 小学英语教师 | G53: 30 | H53: 76.40 | I53: 80.60 | J53: 29 | K53: 1.01 | L53: 81.64 | M53: 79.02 | N53: 51 | O53: 否
A54: 52 | B54: 程琳 | C54: 62011070202 | D54: 兰州市城关区教育局 | E54: 8167 | F54: 小学英语教师 | G54: 30 | H54: 76.30 | I54: 83.00 | J54: 28 | K54: 0.98 | L54: 81.53 | M54: 78.92 | N54: 52 | O54: 否
A55: 53 | B55: 李泽香 | C55: 62011060905 | D55: 兰州市城关区教育局 | E55: 8167 | F55: 小学英语教师 | G55: 30 | H55: 79.65 | I55: 77.00 | J55: 27 | K55: 1.01 | L55: 78.04 | M55: 78.85 | N55: 53 | O55: 否
A56: 54 | B56: 沈洁 | C56: 62011021907 | D56: 兰州市城关区教育局 | E56: 8167 | F56: 小学英语教师 | G56: 30 | H56: 82.45 | I56: 76.60 | J56: 28 | K56: 0.98 | L56: 75.24 | M56: 78.85 | N56: 53 | O56: 否
A57: 55 | B57: 蒋迪 | C57: 62011100425 | D57: 兰州市城关区教育局 | E57: 8167 | F57: 小学英语教师 | G57: 30 | H57: 77.80 | I57: 81.00 | J57: 28 | K57: 0.98 | L57: 79.56 | M57: 78.68 | N57: 55 | O57: 否
A58: 56 | B58: 杨楠 | C58: 62011042108 | D58: 兰州市城关区教育局 | E58: 8167 | F58: 小学英语教师 | G58: 30 | H58: 78.20 | I58: 79.60 | J58: 30 | K58: 0.99 | L58: 79.02 | M58: 78.61 | N58: 56 | O58: 否
A59: 57 | B59: 温霞 | C59: 62011020715 | D59: 兰州市城关区教育局 | E59: 8167 | F59: 小学英语教师 | G59: 30 | H59: 80.60 | I59: 75.60 | J59: 29 | K59: 1.01 | L59: 76.58 | M59: 78.59 | N59: 57 | O59: 否
A60: 58 | B60: 刘筱笛 | C60: 62011050828 | D60: 兰州市城关区教育局 | E60: 8167 | F60: 小学英语教师 | G60: 30 | H60: 80.75 | I60: 75.40 | J60: 27 | K60: 1.01 | L60: 76.42 | M60: 78.59 | N60: 57 | O60: 否
A61: 59 | B61: 刘家凤 | C61: 62011081007 | D61: 兰州市城关区教育局 | E61: 8167 | F61: 小学英语教师 | G61: 30 | H61: 78.75 | I61: 79.20 | J61: 28 | K61: 0.98 | L61: 77.79 | M61: 78.27 | N61: 59 | O61: 否
A62: 60 | B62: 王蓉 | C62: 62011011128 | D62: 兰州市城关区教育局 | E62: 8167 | F62: 小学英语教师 | G62: 30 | H62: 77.65 | I62: 79.40 | J62: 30 | K62: 0.99 | L62: 78.82 | M62: 78.24 | N62: 60 | O62: 否
A63: 61 | B63: 毛荣荣 | C63: 62011062418 | D63: 兰州市城关区教育局 | E63: 8167 | F63: 小学英语教师 | G63: 30 | H63: 81.75 | I63: 73.40 | J63: 27 | K63: 1.01 | L63: 74.39 | M63: 78.07 | N63: 61 | O63: 否
A64: 62 | B64: 梁美玲 | C64: 62011011222 | D64: 兰州市城关区教育局 | E64: 8167 | F64: 小学英语教师 | G64: 30 | H64: 81.55 | I64: 73.60 | J64: 29 | K64: 1.01 | L64: 74.55 | M64: 78.05 | N64: 62 | O64: 否
A65: 63 | B65: 陈庆 | C65: 62011092030 | D65: 兰州市城关区教育局 | E65: 8167 | F65: 小学英语教师 | G65: 30 | H65: 78.60 | I65: 77.60 | J65: 30 | K65: 0.99 | L65: 77.03 | M65: 77.82 | N65: 63 | O65: 否
A66: 64 | B66: 李廷 | C66: 62011090717 | D66: 兰州市城关区教育局 | E66: 8167 | F66: 小学英语教师 | G66: 30 | H66: 80.15 | I66: 74.40 | J66: 27 | K66: 1.01 | L66: 75.41 | M66: 77.78 | N66: 64 | O66: 否
A67: 65 | B67: 王婷婷 | C67: 62011020227 | D67: 兰州市城关区教育局 | E67: 8167 | F67: 小学英语教师 | G67: 30 | H67: 77.35 | I67: 79.20 | J67: 28 | K67: 0.98 | L67: 77.79 | M67: 77.57 | N67: 65 | O67: 否
A68: 66 | B68: 刘夏回 | C68: 62011090716 | D68: 兰州市城关区教育局 | E68: 8167 | F68: 小学英语教师 | G68: 30 | H68: 78.15 | I68: 75.00 | J68: 29 | K68: 1.01 | L68: 75.97 | M68: =H68*0.5+L68*0.5 -> 77.06 | N68: 66 | O68: 否
A69: 67 | B69: 刘瑞 | C69: 62011010129 | D69: 兰州市城关区教育局 | E69: 8167 | F69: 小学英语教师 | G69: 30 | H69: 79.45 | I69: 75.40 | J69: 28 | K69: 0.98 | L69: 74.06 | M69: 76.76 | N69: 67 | O69: 否
A70: 68 | B70: 练惠芸 | C70: 62011092110 | D70: 兰州市城关区教育局 | E70: 8167 | F70: 小学英语教师 | G70: 30 | H70: 76.35 | I70: 76.00 | J70: 27 | K70: 1.01 | L70: 77.03 | M70: 76.69 | N70: 68 | O70: 否
A71: 69 | B71: 靳丽娟 | C71: 62011011430 | D71: 兰州市城关区教育局 | E71: 8167 | F71: 小学英语教师 | G71: 30 | H71: 79.05 | I71: 73.20 | J71: 29 | K71: 1.01 | L71: 74.14 | M71: 76.60 | N71: 69 | O71: 否
A72: 70 | B72: 李银娟 | C72: 62011012410 | D72: 兰州市城关区教育局 | E72: 8167 | F72: 小学英语教师 | G72: 30 | H72: 76.00 | I72: 78.20 | J72: 28 | K72: 0.98 | L72: 76.81 | M72: 76.41 | N72: 70 | O72: 否
A73: 71 | B73: 虎佳雯 | C73: 62011021125 | D73: 兰州市城关区教育局 | E73: 8167 | F73: 小学英语教师 | G73: 30 | H73: 76.85 | I73: 76.00 | J73: 28 | K73: 0.98 | L73: 74.65 | M73: 75.75 | N73: 71 | O73: 否
A74: 72 | B74: 张文娟 | C74: 62011101330 | D74: 兰州市城关区教育局 | E74: 8167 | F74: 小学英语教师 | G74: 30 | H74: 76.70 | I74: 72.80 | J74: 27 | K74: 1.01 | L74: 73.79 | M74: 75.25 | N74: 72 | O74: 否
A75: 73 | B75: 王丽萍 | C75: 62011051705 | D75: 兰州市城关区教育局 | E75: 8167 | F75: 小学英语教师 | G75: 30 | H75: 78.35 | I75: 70.60 | J75: 27 | K75: 1.01 | L75: 71.56 | M75: 74.96 | N75: 73 | O75: 否
A76: 74 | B76: 罗引弟 | C76: 62011072226 | D76: 兰州市城关区教育局 | E76: 8167 | F76: 小学英语教师 | G76: 30 | H76: 78.05 | I76: 71.80 | J76: 30 | K76: 0.99 | L76: 71.27 | M76: 74.66 | N76: 74 | O76: 否
A77: 75 | B77: 王小艳 | C77: 62011100114 | D77: 兰州市城关区教育局 | E77: 8167 | F77: 小学英语教师 | G77: 30 | H77: 76.50 | I77: 74.00 | J77: 28 | K77: 0.98 | L77: 72.69 | M77: 74.60 | N77: 75 | O77: 否
A78: 76 | B78: 潘雪平 | C78: 62011100929 | D78: 兰州市城关区教育局 | E78: 8167 | F78: 小学英语教师 | G78: 30 | H78: 77.55 | I78: 70.20 | J78: 29 | K78: 1.01 | L78: 71.11 | M78: 74.33 | N78: 76 | O78: 否
A79: 77 | B79: 曹芳 | C79: 62011042007 | D79: 兰州市城关区教育局 | E79: 8167 | F79: 小学英语教师 | G79: 30 | H79: 76.50 | I79: 70.00 | J79: 27 | K79: 1.01 | L79: 70.95 | M79: 73.73 | N79: 77 | O79: 否
A80: 78 | B80: 苏雨虹 | C80: 62011011825 | D80: 兰州市城关区教育局 | E80: 8167 | F80: 小学英语教师 | G80: 30 | H80: 76.70 | I80: 68.60 | J80: 27 | K80: 1.01 | L80: 69.53 | M80: 73.12 | N80: 78 | O80: 否
A81: 79 | B81: 杨彩萍 | C81: 62011021413 | D81: 兰州市城关区教育局 | E81: 8167 | F81: 小学英语教师 | G81: 30 | H81: 76.25 | I81: 68.40 | J81: 30 | K81: 0.99 | L81: 67.90 | M81: 72.08 | N81: 79 | O81: 否
A82: 80 | B82: 张润霞 | C82: 62011031616 | D82: 兰州市城关区教育局 | E82: 8167 | F82: 小学英语教师 | G82: 30 | H82: 76.25 | I82: 66.20 | J82: 29 | K82: 1.01 | L82: 67.05 | M82: 71.65 | N82: 80 | O82: 否
A83: 81 | B83: 董晓晖 | C83: 62011012503 | D83: 兰州市城关区教育局 | E83: 8167 | F83: 小学英语教师 | G83: 30 | H83: 76.65 | I83: 66.60 | J83: 30 | K83: 0.99 | L83: 66.11 | M83: 71.38 | N83: 81 | O83: 否
A84: 82 | B84: 姜维霞 | C84: 62011101825 | D84: 兰州市城关区教育局 | E84: 8167 | F84: 小学英语教师 | G84: 30 | H84: 81.40 | O84: 否 | P84: 放弃
A85: 83 | B85: 李青 | C85: 62011010121 | D85: 兰州市城关区教育局 | E85: 8167 | F85: 小学英语教师 | G85: 30 | H85: 79.70 | O85: 否 | P85: 放弃
A86: 84 | B86: 邵利军 | C86: 62011101716 | D86: 兰州市城关区教育局 | E86: 8167 | F86: 小学英语教师 | G86: 30 | H86: 78.85 | O86: 否 | P86: 放弃
A87: 85 | B87: 周鹭 | C87: 62011031129 | D87: 兰州市城关区教育局 | E87: 8167 | F87: 小学英语教师 | G87: 30 | H87: 77.05 | O87: 否 | P87: 放弃

Sheet 音乐
A1: 2021年兰州市公开招聘中小学聘用制教师（城关区教育局所属学校）综合成绩及入围体检人员名单
A2: 序号 | B2: 姓名 | C2: 准考证号 | D2: 主管单位 | E2: 岗位代码 | F2: 岗位 名称 | G2: 拟招聘 人数 | H2: 笔试成绩 | I2: 面试原始得分 | J2: 面试考场号 | K2: 考场加权系数 | L2: 面试成绩 | M2: 综合成绩 | N2: 综合排名 | O2: 是否进入体检环节 | P2: 备注
A3: 1 | B3: 杨柳青 | C3: 62011090604 | D3: 兰州市城关区教育局 | E3: 8168 | F3: 小学音乐教师 | G3: 6 | H3: 80.25 | I3: 92.40 | J3: 31 | K3: 1.00 | L3: =I3*K3 -> 92.40 | M3: =H3*0.5+L3*0.5 -> 86.33 | N3: 1 | O3: 是
A4: 2 | B4: 王叮 | C4: 62011101008 | D4: 兰州市城关区教育局 | E4: 8168 | F4: 小学音乐教师 | G4: 6 | H4: 76.70 | I4: 90.00 | J4: 31 | K4: 1.00 | L4: 90.00 | M4: =H4*0.5+L4*0.5 -> 83.35 | N4: 2 | O4: 是
A5: 3 | B5: 文苗 | C5: 62011020114 | D5: 兰州市城关区教育局 | E5: 8168 | F5: 小学音乐教师 | G5: 6 | H5: 77.45 | I5: 88.50 | J5: 31 | K5: 1.00 | L5: 88.50 | M5: 82.98 | N5: 3 | O5: 是
A6: 4 | B6: 吕菁 | C6: 62011040417 | D6: 兰州市城关区教育局 | E6: 8168 | F6: 小学音乐教师 | G6: 6 | H6: 77.30 | I6: 87.20 | J6: 31 | K6: 1.00 | L6: 87.20 | M6: 82.25 | N6: 4 | O6: 是
A7: 5 | B7: 李悦 | C7: 62011071901 | D7: 兰州市城关区教育局 | E7: 8168 | F7: 小学音乐教师 | G7: 6 | H7: 77.10 | I7: 86.80 | J7: 31 | K7: 1.00 | L7: 86.80 | M7: 81.95 | N7: 5 | O7: 是
A8: 6 | B8: 刘祎蓉 | C8: 62011061226 | D8: 兰州市城关区教育局 | E8: 8168 | F8: 小学音乐教师 | G8: 6 | H8: 74.75 | I8: 88.80 | J8: 31 | K8: 1.00 | L8: 88.80 | M8: 81.78 | N8: 6 | O8: 是
A9: 7 | B9: 唐小涛 | C9: 62011050819 | D9: 兰州市城关区教育局 | E9: 8168 | F9: 小学音乐教师 | G9: 6 | H9: 75.75 | I9: 87.40 | J9: 31 | K9: 1.00 | L9: 87.40 | M9: 81.58 | N9: 7 | O9: 否
A10: 8 | B10: 张潇丹 | C10: 62011030412 | D10: 兰州市城关区教育局 | E10: 8168 | F10: 小学音乐教师 | G10: 6 | H10: 75.15 | I10: 86.60 | J10: 31 | K10: 1.00 | L10: 86.60 | M10: 80.88 | N10: 8 | O10: 否
A11: 9 | B11: 刘倩 | C11: 62011100715 | D11: 兰州市城关区教育局 | E11: 8168 | F11: 小学音乐教师 | G11: 6 | H11: 74.80 | I11: 86.80 | J11: 31 | K11: 1.00 | L11: 86.80 | M11: 80.80 | N11: 9 | O11: 否
A12: 10 | B12: 陈晓璇 | C12: 62011091317 | D12: 兰州市城关区教育局 | E12: 8168 | F12: 小学音乐教师 | G12: 6 | H12: 75.90 | I12: 85.60 | J12: 31 | K12: 1.00 | L12: 85.60 | M12: 80.75 | N12: 10 | O12: 否
A13: 11 | B13: 夏欣悦 | C13: 62011071525 | D13: 兰州市城关区教育局 | E13: 8168 | F13: 小学音乐教师 | G13: 6 | H13: 77.85 | I13: 82.80 | J13: 31 | K13: 1.00 | L13: 82.80 | M13: 80.33 | N13: 11 | O13: 否
A14: 12 | B14: 张维茸 | C14: 62011071904 | D14: 兰州市城关区教育局 | E14: 8168 | F14: 小学音乐教师 | G14: 6 | H14: 76.15 | I14: 84.00 | J14: 31 | K14: 1.00 | L14: 84.00 | M14: 80.08 | N14: 12 | O14: 否
A15: 13 | B15: 刘莉蓉 | C15: 62011091609 | D15: 兰州市城关区教育局 | E15: 8168 | F15: 小学音乐教师 | G15: 6 | H15: 76.35 | I15: 83.00 | J15: 31 | K15: 1.00 | L15: 83.00 | M15: 79.68 | N15: 13 | O15: 否
A16: 14 | B16: 赵龙龙 | C16: 62011071126 | D16: 兰州市城关区教育局 | E16: 8168 | F16: 小学音乐教师 | G16: 6 | H16: 75.75 | I16: 83.20 | J16: 31 | K16: 1.00 | L16: 83.20 | M16: 79.48 | N16: 14 | O16: 否
A17: 15 | B17: 方燕 | C17: 62011091625 | D17: 兰州市城关区教育局 | E17: 8168 | F17: 小学音乐教师 | G17: 6 | H17: 75.15 | I17: 83.20 | J17: 31 | K17: 1.00 | L17: 83.20 | M17: 79.18 | N17: 15 | O17: 否
A18: 16 | B18: 赵振华 | C18: 62011020122 | D18: 兰州市城关区教育局 | E18: 8168 | F18: 小学音乐教师 | G18: 6 | H18: 75.25 | I18: 81.20 | J18: 31 | K18: 1.00 | L18: 81.20 | M18: 78.23 | N18: 16 | O18: 否
A19: 17 | B19: 张潇愉 | C19: 62011080426 | D19: 兰州市城关区教育局 | E19: 8168 | F19: 小学音乐教师 | G19: 6 | H19: 75.35 | I19: 81.00 | J19: 31 | K19: 1.00 | L19: 81.00 | M19: 78.18 | N19: 17 | O19: 否

Sheet 体育
A1: 2021年兰州市公开招聘中小学聘用制教师（城关区教育局所属学校）综合成绩及入围体检人员名单
A2: 序号 | B2: 姓名 | C2: 准考证号 | D2: 主管单位 | E2: 岗位代码 | F2: 岗位 名称 | G2: 拟招聘 人数 | H2: 笔试成绩 | I2: 面试原始得分 | J2: 面试考场号 | K2: 考场加权系数 | L2: 面试成绩 | M2: 综合成绩 | N2: 综合排名 | O2: 是否进入体检环节 | P2: 备注
A3: 1 | B3: 陈建宇 | C3: 62011080707 | D3: 兰州市城关区教育局 | E3: 8169 | F3: 小学体育教师 | G3: 31 | H3: 75.80 | I3: 91.80 | J3: 16 | K3: 0.98 | L3: 90.18 | M3: =H3*0.5+L3*0.5 -> 82.99 | N3: 1 | O3: 是
A4: 2 | B4: 滕峰 | C4: 62011010530 | D4: 兰州市城关区教育局 | E4: 8169 | F4: 小学体育教师 | G4: 31 | H4: 75.65 | I4: 91.00 | J4: 16 | K4: 0.98 | L4: 89.39 | M4: =H4*0.5+L4*0.5 -> 82.52 | N4: 2 | O4: 是
A5: 3 | B5: 禹望 | C5: 62011101517 | D5: 兰州市城关区教育局 | E5: 8169 | F5: 小学体育教师 | G5: 31 | H5: 70.05 | I5: 92.00 | J5: 15 | K5: 1.03 | L5: 94.36 | M5: =H5*0.5+L5*0.5 -> 82.21 | N5: 3 | O5: 是
A6: 4 | B6: 张海浩 | C6: 62011010908 | D6: 兰州市城关区教育局 | E6: 8169 | F6: 小学体育教师 | G6: 31 | H6: 73.30 | I6: 89.60 | J6: 17 | K6: 1.01 | L6: 90.13 | M6: =H6*0.5+L6*0.5 -> 81.72 | N6: 4 | O6: 是
A7: 5 | B7: 王欣钰 | C7: 62011051721 | D7: 兰州市城关区教育局 | E7: 8169 | F7: 小学体育教师 | G7: 31 | H7: 73.50 | I7: 87.20 | J7: 15 | K7: 1.03 | L7: 89.44 | M7: 81.47 | N7: 5 | O7: 是
A8: 6 | B8: 桑洋阳 | C8: 62011020204 | D8: 兰州市城关区教育局 | E8: 8169 | F8: 小学体育教师 | G8: 31 | H8: 76.80 | I8: 86.20 | J8: 16 | K8: 0.98 | L8: 84.68 | M8: 80.74 | N8: 6 | O8: 是
A9: 7 | B9: 王臣奇 | C9: 62011071526 | D9: 兰州市城关区教育局 | E9: 8169 | F9: 小学体育教师 | G9: 31 | H9: 67.15 | I9: 91.60 | J9: 15 | K9: 1.03 | L9: 93.95 | M9: 80.55 | N9: 7 | O9: 是
A10: 8 | B10: 翟世泽 | C10: 62011071218 | D10: 兰州市城关区教育局 | E10: 8169 | F10: 小学体育教师 | G10: 31 | H10: 73.85 | I10: 88.60 | J10: 16 | K10: 0.98 | L10: 87.03 | M10: 80.44 | N10: 8 | O10: 是
A11: 9 | B11: 杨文鹏 | C11: 62011021216 | D11: 兰州市城关区教育局 | E11: 8169 | F11: 小学体育教师 | G11: 31 | H11: 71.65 | I11: 88.40 | J11: 17 | K11: 1.01 | L11: 88.93 | M11: 80.29 | N11: 9 | O11: 是
A12: 10 | B12: 姜艳艳 | C12: 62011102105 | D12: 兰州市城关区教育局 | E12: 8169 | F12: 小学体育教师 | G12: 31 | H12: 70.50 | I12: 89.20 | J12: 17 | K12: 1.01 | L12: 89.73 | M12: 80.12 | N12: 10 | O12: 是
A13: 11 | B13: 何东敏 | C13: 62011012101 | D13: 兰州市城关区教育局 | E13: 8169 | F13: 小学体育教师 | G13: 31 | H13: 72.10 | I13: 87.60 | J13: 17 | K13: 1.01 | L13: 88.12 | M13: 80.11 | N13: 11 | O13: 是
A14: 12 | B14: 张宗钰 | C14: 62011040513 | D14: 兰州市城关区教育局 | E14: 8169 | F14: 小学体育教师 | G14: 31 | H14: 69.90 | I14: 88.00 | J14: 15 | K14: 1.03 | L14: 90.26 | M14: 80.08 | N14: 12 | O14: 是
A15: 13 | B15: 贾尚理 | C15: 62011031902 | D15: 兰州市城关区教育局 | E15: 8169 | F15: 小学体育教师 | G15: 31 | H15: 72.00 | I15: 89.20 | J15: 18 | K15: 0.99 | L15: 88.04 | M15: 80.02 | N15: 13 | O15: 是
A16: 14 | B16: 王婷 | C16: 62011021702 | D16: 兰州市城关区教育局 | E16: 8169 | F16: 小学体育教师 | G16: 31 | H16: 74.75 | I16: 85.20 | J16: 18 | K16: 0.99 | L16: 84.09 | M16: 79.42 | N16: 14 | O16: 是
A17: 15 | B17: 楼丽超 | C17: 62011060323 | D17: 兰州市城关区教育局 | E17: 8169 | F17: 小学体育教师 | G17: 31 | H17: 69.80 | I17: 90.20 | J17: 18 | K17: 0.99 | L17: 89.03 | M17: 79.42 | N17: 14 | O17: 是
A18: 16 | B18: 周楚航 | C18: 62011011601 | D18: 兰州市城关区教育局 | E18: 8169 | F18: 小学体育教师 | G18: 31 | H18: 67.70 | I18: 92.00 | J18: 18 | K18: 0.99 | L18: 90.81 | M18: 79.26 | N18: 16 | O18: 是
A19: 17 | B19: 杨明静 | C19: 62011080513 | D19: 兰州市城关区教育局 | E19: 8169 | F19: 小学体育教师 | G19: 31 | H19: 69.25 | I19: 87.00 | J19: 15 | K19: 1.03 | L19: 89.23 | M19: 79.24 | N19: 17 | O19: 是
A20: 18 | B20: 韦瑞龙 | C20: 62011041015 | D20: 兰州市城关区教育局 | E20: 8169 | F20: 小学体育教师 | G20: 31 | H20: 68.70 | I20: 90.80 | J20: 18 | K20: 0.99 | L20: 89.62 | M20: 79.16 | N20: 18 | O20: 是
A21: 19 | B21: 蔡妮萍 | C21: 62011060617 | D21: 兰州市城关区教育局 | E21: 8169 | F21: 小学体育教师 | G21: 31 | H21: 66.20 | I21: 89.60 | J21: 15 | K21: 1.03 | L21: 91.90 | M21: 79.05 | N21: 19 | O21: 是
A22: 20 | B22: 赵紫龙 | C22: 62011022506 | D22: 兰州市城关区教育局 | E22: 8169 | F22: 小学体育教师 | G22: 31 | H22: 67.80 | I22: 88.40 | J22: 17 | K22: 1.01 | L22: 88.93 | M22: 78.37 | N22: 20 | O22: 是
A23: 21 | B23: 崔乃丹 | C23: 62011101515 | D23: 兰州市城关区教育局 | E23: 8169 | F23: 小学体育教师 | G23: 31 | H23: 71.00 | I23: 86.40 | J23: 18 | K23: 0.99 | L23: 85.28 | M23: 78.14 | N23: 21 | O23: 是
A24: 22 | B24: 靳炳涛 | C24: 62011051212 | D24: 兰州市城关区教育局 | E24: 8169 | F24: 小学体育教师 | G24: 31 | H24: 68.45 | I24: 85.40 | J24: 15 | K24: 1.03 | L24: 87.59 | M24: 78.02 | N24: 22 | O24: 是
A25: 23 | B25: 邱云双 | C25: 62011012308 | D25: 兰州市城关区教育局 | E25: 8169 | F25: 小学体育教师 | G25: 31 | H25: 70.45 | I25: 85.00 | J25: 17 | K25: 1.01 | L25: 85.51 | M25: 77.98 | N25: 23 | O25: 是
A26: 24 | B26: 李旭东 | C26: 62011031621 | D26: 兰州市城关区教育局 | E26: 8169 | F26: 小学体育教师 | G26: 31 | H26: 68.95 | I26: 88.40 | J26: 16 | K26: 0.98 | L26: 86.84 | M26: 77.90 | N26: 24 | O26: 是
A27: 25 | B27: 金耀堂 | C27: 62011061616 | D27: 兰州市城关区教育局 | E27: 8169 | F27: 小学体育教师 | G27: 31 | H27: 67.90 | I27: 89.00 | J27: 18 | K27: 0.99 | L27: 87.85 | M27: 77.88 | N27: 25 | O27: 是
A28: 26 | B28: 杨崇信 | C28: 62011070502 | D28: 兰州市城关区教育局 | E28: 8169 | F28: 小学体育教师 | G28: 31 | H28: 70.80 | I28: 82.00 | J28: 15 | K28: 1.03 | L28: 84.10 | M28: 77.45 | N28: 26 | O28: 是
A29: 27 | B29: 马海丁 | C29: 62011081302 | D29: 兰州市城关区教育局 | E29: 8169 | F29: 小学体育教师 | G29: 31 | H29: 66.65 | I29: 89.60 | J29: 16 | K29: 0.98 | L29: 88.02 | M29: 77.34 | N29: 27 | O29: 是
A30: 28 | B30: 王建明 | C30: 62011050907 | D30: 兰州市城关区教育局 | E30: 8169 | F30: 小学体育教师 | G30: 31 | H30: 68.30 | I30: 85.60 | J30: 17 | K30: 1.01 | L30: 86.11 | M30: 77.21 | N30: 28 | O30: 是
A31: 29 | B31: 李志豪 | C31: 62011070929 | D31: 兰州市城关区教育局 | E31: 8169 | F31: 小学体育教师 | G31: 31 | H31: 67.95 | I31: 85.80 | J31: 17 | K31: 1.01 | L31: 86.31 | M31: 77.13 | N31: 29 | O31: 是
A32: 30 | B32: 张铭志 | C32: 62011060804 | D32: 兰州市城关区教育局 | E32: 8169 | F32: 小学体育教师 | G32: 31 | H32: 65.90 | I32: 89.60 | J32: 16 | K32: 0.98 | L32: 88.02 | M32: 76.96 | N32: 30 | O32: 是
A33: 31 | B33: 高小龙 | C33: 62011020111 | D33: 兰州市城关区教育局 | E33: 8169 | F33: 小学体育教师 | G33: 31 | H33: 71.50 | I33: 83.40 | J33: 16 | K33: 0.98 | L33: 81.92 | M33: 76.71 | N33: 31 | O33: 是
A34: 32 | B34: 孙煜坤 | C34: 62011100309 | D34: 兰州市城关区教育局 | E34: 8169 | F34: 小学体育教师 | G34: 31 | H34: 67.50 | I34: 87.40 | J34: 16 | K34: 0.98 | L34: 85.85 | M34: 76.68 | N34: 32 | O34: 否
A35: 33 | B35: 龚晓婷 | C35: 62011021711 | D35: 兰州市城关区教育局 | E35: 8169 | F35: 小学体育教师 | G35: 31 | H35: 70.15 | I35: 84.20 | J35: 18 | K35: 0.99 | L35: 83.11 | M35: 76.63 | N35: 33 | O35: 否
A36: 34 | B36: 龙德明 | C36: 62011072427 | D36: 兰州市城关区教育局 | E36: 8169 | F36: 小学体育教师 | G36: 31 | H36: 67.90 | I36: 86.40 | J36: 18 | K36: 0.99 | L36: 85.28 | M36: 76.59 | N36: 34 | O36: 否
A37: 35 | B37: 王哲 | C37: 62011041613 | D37: 兰州市城关区教育局 | E37: 8169 | F37: 小学体育教师 | G37: 31 | H37: 64.35 | I37: 89.80 | J37: 18 | K37: 0.99 | L37: 88.64 | M37: 76.50 | N37: 35 | O37: 否
A38: 36 | B38: 兰琦 | C38: 62011060605 | D38: 兰州市城关区教育局 | E38: 8169 | F38: 小学体育教师 | G38: 31 | H38: 69.20 | I38: 85.20 | J38: 16 | K38: 0.98 | L38: 83.69 | M38: =H38*0.5+L38*0.5 -> 76.45 | N38: 36 | O38: 否
A39: 37 | B39: 苏发霞 | C39: 62011062327 | D39: 兰州市城关区教育局 | E39: 8169 | F39: 小学体育教师 | G39: 31 | H39: 66.95 | I39: 86.80 | J39: 18 | K39: 0.99 | L39: 85.67 | M39: 76.31 | N39: 37 | O39: 否
A40: 38 | B40: 李文卓 | C40: 62011041213 | D40: 兰州市城关区教育局 | E40: 8169 | F40: 小学体育教师 | G40: 31 | H40: 63.40 | I40: 90.80 | J40: 16 | K40: 0.98 | L40: 89.19 | M40: 76.30 | N40: 38 | O40: 否
A41: 39 | B41: 何爱琴 | C41: 62011062521 | D41: 兰州市城关区教育局 | E41: 8169 | F41: 小学体育教师 | G41: 31 | H41: 65.80 | I41: 86.20 | J41: 17 | K41: 1.01 | L41: 86.71 | M41: 76.26 | N41: 39 | O41: 否
A42: 40 | B42: 丁凯 | C42: 62011021422 | D42: 兰州市城关区教育局 | E42: 8169 | F42: 小学体育教师 | G42: 31 | H42: 69.50 | I42: 80.40 | J42: 15 | K42: 1.03 | L42: 82.46 | M42: 75.98 | N42: 40 | O42: 否
A43: 41 | B43: 马万国 | C43: 62011091222 | D43: 兰州市城关区教育局 | E43: 8169 | F43: 小学体育教师 | G43: 31 | H43: 68.25 | I43: 85.20 | J43: 16 | K43: 0.98 | L43: 83.69 | M43: 75.97 | N43: 41 | O43: 否
A44: 42 | B44: 王永超 | C44: 62011080828 | D44: 兰州市城关区教育局 | E44: 8169 | F44: 小学体育教师 | G44: 31 | H44: 70.65 | I44: 80.40 | J44: 17 | K44: 1.01 | L44: 80.88 | M44: 75.77 | N44: 42 | O44: 否
A45: 43 | B45: 程朝霖 | C45: 62011061711 | D45: 兰州市城关区教育局 | E45: 8169 | F45: 小学体育教师 | G45: 31 | H45: 67.80 | I45: 81.20 | J45: 15 | K45: 1.03 | L45: 83.28 | M45: 75.54 | N45: 43 | O45: 否
A46: 44 | B46: 吴鸿玉 | C46: 62011040314 | D46: 兰州市城关区教育局 | E46: 8169 | F46: 小学体育教师 | G46: 31 | H46: 64.35 | I46: 86.20 | J46: 17 | K46: 1.01 | L46: 86.71 | M46: 75.53 | N46: 44 | O46: 否
A47: 45 | B47: 武春成 | C47: 62011100127 | D47: 兰州市城关区教育局 | E47: 8169 | F47: 小学体育教师 | G47: 31 | H47: 69.05 | I47: 82.40 | J47: 18 | K47: 0.99 | L47: 81.33 | M47: 75.19 | N47: 45 | O47: 否
A48: 46 | B48: 王梅 | C48: 62011061529 | D48: 兰州市城关区教育局 | E48: 8169 | F48: 小学体育教师 | G48: 31 | H48: 69.95 | I48: 81.40 | J48: 18 | K48: 0.99 | L48: 80.34 | M48: 75.15 | N48: 46 | O48: 否
A49: 47 | B49: 李江浩 | C49: 62011092518 | D49: 兰州市城关区教育局 | E49: 8169 | F49: 小学体育教师 | G49: 31 | H49: 65.55 | I49: 86.20 | J49: 16 | K49: 0.98 | L49: 84.68 | M49: 75.12 | N49: 47 | O49: 否
A50: 48 | B50: 王卯军 | C50: 62011030626 | D50: 兰州市城关区教育局 | E50: 8169 | F50: 小学体育教师 | G50: 31 | H50: 68.45 | I50: 82.40 | J50: 18 | K50: 0.99 | L50: 81.33 | M50: 74.89 | N50: 48 | O50: 否
A51: 49 | B51: 陈大磊 | C51: 62011092413 | D51: 兰州市城关区教育局 | E51: 8169 | F51: 小学体育教师 | G51: 31 | H51: 65.45 | I51: 83.80 | J51: 17 | K51: 1.01 | L51: 84.30 | M51: 74.88 | N51: 49 | O51: 否
A52: 50 | B52: 撖玲 | C52: 62011040704 | D52: 兰州市城关区教育局 | E52: 8169 | F52: 小学体育教师 | G52: 31 | H52: 66.15 | I52: 84.80 | J52: 16 | K52: 0.98 | L52: 83.30 | M52: 74.73 | N52: 50 | O52: 否
A53: 51 | B53: 王丹 | C53: 62011080506 | D53: 兰州市城关区教育局 | E53: 8169 | F53: 小学体育教师 | G53: 31 | H53: 63.75 | I53: 83.40 | J53: 15 | K53: 1.03 | L53: 85.54 | M53: 74.65 | N53: 51 | O53: 否
A54: 52 | B54: 薛欢 | C54: 62011071017 | D54: 兰州市城关区教育局 | E54: 8169 | F54: 小学体育教师 | G54: 31 | H54: 63.70 | I54: 86.60 | J54: 18 | K54: 0.99 | L54: 85.48 | M54: 74.59 | N54: 52 | O54: 否
A55: 53 | B55: 王博兴 | C55: 62011092322 | D55: 兰州市城关区教育局 | E55: 8169 | F55: 小学体育教师 | G55: 31 | H55: 69.40 | I55: 79.20 | J55: 17 | K55: 1.01 | L55: 79.67 | M55: 74.54 | N55: 53 | O55: 否
A56: 54 | B56: 郭强 | C56: 62011052122 | D56: 兰州市城关区教育局 | E56: 8169 | F56: 小学体育教师 | G56: 31 | H56: 65.80 | I56: 82.60 | J56: 17 | K56: 1.01 | L56: 83.09 | M56: 74.45 | N56: 54 | O56: 否
A57: 55 | B57: 程保文 | C57: 62011100817 | D57: 兰州市城关区教育局 | E57: 8169 | F57: 小学体育教师 | G57: 31 | H57: 68.60 | I57: 78.20 | J57: 15 | K57: 1.03 | L57: 80.20 | M57: 74.40 | N57: 55 | O57: 否
A58: 56 | B58: 周万娟 | C58: 62011082303 | D58: 兰州市城关区教育局 | E58: 8169 | F58: 小学体育教师 | G58: 31 | H58: 69.85 | I58: 76.80 | J58: 15 | K58: 1.03 | L58: 78.77 | M58: 74.31 | N58: 56 | O58: 否
A59: 57 | B59: 雷海峰 | C59: 62011050301 | D59: 兰州市城关区教育局 | E59: 8169 | F59: 小学体育教师 | G59: 31 | H59: 66.00 | I59: 83.20 | J59: 18 | K59: 0.99 | L59: 82.12 | M59: 74.06 | N59: 57 | O59: 否
A60: 58 | B60: 胡惠梅 | C60: 62011031426 | D60: 兰州市城关区教育局 | E60: 8169 | F60: 小学体育教师 | G60: 31 | H60: 68.55 | I60: 79.00 | J60: 17 | K60: 1.01 | L60: 79.47 | M60: 74.01 | N60: 58 | O60: 否
A61: 59 | B61: 胡民海 | C61: 62011020922 | D61: 兰州市城关区教育局 | E61: 8169 | F61: 小学体育教师 | G61: 31 | H61: 69.45 | I61: 75.80 | J61: 15 | K61: 1.03 | L61: 77.74 | M61: 73.60 | N61: 59 | O61: 否
A62: 60 | B62: 黑转生 | C62: 62011070411 | D62: 兰州市城关区教育局 | E62: 8169 | F62: 小学体育教师 | G62: 31 | H62: 62.90 | I62: 85.60 | J62: 16 | K62: 0.98 | L62: 84.09 | M62: 73.50 | N62: 60 | O62: 否
A63: 61 | B63: 肖博 | C63: 62011011002 | D63: 兰州市城关区教育局 | E63: 8169 | F63: 小学体育教师 | G63: 31 | H63: 69.05 | I63: 77.40 | J63: 17 | K63: 1.01 | L63: 77.86 | M63: 73.46 | N63: 61 | O63: 否
A64: 62 | B64: 刘琪 | C64: 62011021616 | D64: 兰州市城关区教育局 | E64: 8169 | F64: 小学体育教师 | G64: 31 | H64: 62.85 | I64: 83.40 | J64: 17 | K64: 1.01 | L64: 83.90 | M64: 73.38 | N64: 62 | O64: 否
A65: 63 | B65: 吴俊杰 | C65: 62011070728 | D65: 兰州市城关区教育局 | E65: 8169 | F65: 小学体育教师 | G65: 31 | H65: 66.45 | I65: 78.00 | J65: 15 | K65: 1.03 | L65: 80.00 | M65: 73.23 | N65: 63 | O65: 否
A66: 64 | B66: 吕明泽 | C66: 62011071515 | D66: 兰州市城关区教育局 | E66: 8169 | F66: 小学体育教师 | G66: 31 | H66: 70.45 | I66: 77.20 | J66: 16 | K66: 0.98 | L66: 75.83 | M66: 73.14 | N66: 64 | O66: 否
A67: 65 | B67: 牛宝利 | C67: 62011012012 | D67: 兰州市城关区教育局 | E67: 8169 | F67: 小学体育教师 | G67: 31 | H67: 71.05 | I67: 76.20 | J67: 18 | K67: 0.99 | L67: 75.21 | M67: 73.13 | N67: 65 | O67: 否
A68: 66 | B68: 王娟 | C68: 62011071718 | D68: 兰州市城关区教育局 | E68: 8169 | F68: 小学体育教师 | G68: 31 | H68: 64.05 | I68: 81.40 | J68: 17 | K68: 1.01 | L68: 81.88 | M68: 72.97 | N68: 66 | O68: 否
A69: 67 | B69: 刘树杰 | C69: 62011031908 | D69: 兰州市城关区教育局 | E69: 8169 | F69: 小学体育教师 | G69: 31 | H69: 63.40 | I69: 83.80 | J69: 16 | K69: 0.98 | L69: 82.32 | M69: 72.86 | N69: 67 | O69: 否
A70: 68 | B70: 水佳佳 | C70: 62011042027 | D70: 兰州市城关区教育局 | E70: 8169 | F70: 小学体育教师 | G70: 31 | H70: 65.40 | I70: 77.80 | J70: 15 | K70: 1.03 | L70: 79.79 | M70: 72.60 | N70: 68 | O70: 否
A71: 69 | B71: 马星 | C71: 62011090104 | D71: 兰州市城关区教育局 | E71: 8169 | F71: 小学体育教师 | G71: 31 | H71: 64.60 | I71: 81.60 | J71: 18 | K71: 0.99 | L71: 80.54 | M71: 72.57 | N71: 69 | O71: 否
A72: 70 | B72: 袁顺斌 | C72: 62011042112 | D72: 兰州市城关区教育局 | E72: 8169 | F72: 小学体育教师 | G72: 31 | H72: 65.90 | I72: 77.20 | J72: 15 | K72: 1.03 | L72: 79.18 | M72: 72.54 | N72: 70 | O72: 否
A73: 71 | B73: 宋珺 | C73: 62011072408 | D73: 兰州市城关区教育局 | E73: 8169 | F73: 小学体育教师 | G73: 31 | H73: 66.05 | I73: 80.00 | J73: 16 | K73: 0.98 | L73: 78.58 | M73: 72.32 | N73: 71 | O73: 否
A74: 72 | B74: 张红锋 | C74: 62011070408 | D74: 兰州市城关区教育局 | E74: 8169 | F74: 小学体育教师 | G74: 31 | H74: 63.10 | I74: 82.00 | J74: 18 | K74: 0.99 | L74: 80.94 | M74: 72.02 | N74: 72 | O74: 否
A75: 73 | B75: 杨绪明 | C75: 62011070818 | D75: 兰州市城关区教育局 | E75: 8169 | F75: 小学体育教师 | G75: 31 | H75: 64.00 | I75: 77.80 | J75: 15 | K75: 1.03 | L75: 79.79 | M75: 71.90 | N75: 73 | O75: 否
A76: 74 | B76: 丁娜 | C76: 62011041924 | D76: 兰州市城关区教育局 | E76: 8169 | F76: 小学体育教师 | G76: 31 | H76: 66.60 | I76: 76.00 | J76: 17 | K76: 1.01 | L76: 76.45 | M76: 71.53 | N76: 74 | O76: 否
A77: 75 | B77: 高祥德 | C77: 62011051129 | D77: 兰州市城关区教育局 | E77: 8169 | F77: 小学体育教师 | G77: 31 | H77: 64.65 | I77: 78.80 | J77: 16 | K77: 0.98 | L77: 77.41 | M77: 71.03 | N77: 75 | O77: 否
A78: 76 | B78: 王颢学 | C78: 62011102315 | D78: 兰州市城关区教育局 | E78: 8169 | F78: 小学体育教师 | G78: 31 | H78: 64.35 | I78: 75.20 | J78: 15 | K78: 1.03 | L78: 77.13 | M78: 70.74 | N78: 76 | O78: 否
A79: 77 | B79: 张言 | C79: 62011061005 | D79: 兰州市城关区教育局 | E79: 8169 | F79: 小学体育教师 | G79: 31 | H79: 68.90 | O79: 否 | P79: 放弃
A80: 78 | B80: 张星 | C80: 62011101909 | D80: 兰州市城关区教育局 | E80: 8169 | F80: 小学体育教师 | G80: 31 | H80: 68.60 | O80: 否 | P80: 放弃
A81: 79 | B81: 沈永立 | C81: 62011090326 | D81: 兰州市城关区教育局 | E81: 8169 | F81: 小学体育教师 | G81: 31 | H81: 66.85 | O81: 否 | P81: 放弃
A82: 80 | B82: 王明瑞 | C82: 62011071504 | D82: 兰州市城关区教育局 | E82: 8169 | F82: 小学体育教师 | G82: 31 | H82: 66.10 | O82: 否 | P82: 放弃

Sheet 美术
A1: 2021年兰州市公开招聘中小学聘用制教师（城关区教育局所属学校）综合成绩及入围体检人员名单
A2: 序号 | B2: 姓名 | C2: 准考证号 | D2: 主管单位 | E2: 岗位代码 | F2: 岗位 名称 | G2: 拟招聘 人数 | H2: 笔试成绩 | I2: 面试原始得分 | J2: 面试考场号 | K2: 考场加权系数 | L2: 面试成绩 | M2: 综合成绩 | N2: 综合排名 | O2: 是否进入体检环节 | P2: 备注
A3: 1 | B3: 朱佳 | C3: 62011060817 | D3: 兰州市城关区教育局 | E3: 8170 | F3: 小学美术教师 | G3: 14 | H3: 76.10 | I3: 91.80 | J3: 14 | K3: 1.00 | L3: 92.03 | M3: =H3*0.5+L3*0.5 -> 84.07 | N3: 1 | O3: 是
A4: 2 | B4: 高雅雯 | C4: 62011060402 | D4: 兰州市城关区教育局 | E4: 8170 | F4: 小学美术教师 | G4: 14 | H4: 78.10 | I4: 89.80 | J4: 14 | K4: 1.00 | L4: 90.02 | M4: =H4*0.5+L4*0.5 -> 84.06 | N4: 2 | O4: 是
A5: 3 | B5: 赵亚楠 | C5: 62011061001 | D5: 兰州市城关区教育局 | E5: 8170 | F5: 小学美术教师 | G5: 14 | H5: 78.90 | I5: 89.00 | J5: 13 | K5: 1.00 | L5: 88.77 | M5: 83.84 | N5: 3 | O5: 是
A6: 4 | B6: 张鹏洋 | C6: 62011020429 | D6: 兰州市城关区教育局 | E6: 8170 | F6: 小学美术教师 | G6: 14 | H6: 76.10 | I6: 90.60 | J6: 13 | K6: 1.00 | L6: 90.37 | M6: 83.24 | N6: 4 | O6: 是
A7: 5 | B7: 张越 | C7: 62011072015 | D7: 兰州市城关区教育局 | E7: 8170 | F7: 小学美术教师 | G7: 14 | H7: 79.55 | I7: 86.20 | J7: 13 | K7: 1.00 | L7: 85.98 | M7: 82.77 | N7: 5 | O7: 是
A8: 6 | B8: 李雪菲 | C8: 62011101309 | D8: 兰州市城关区教育局 | E8: 8170 | F8: 小学美术教师 | G8: 14 | H8: 79.75 | I8: 85.20 | J8: 14 | K8: 1.00 | L8: 85.41 | M8: 82.58 | N8: 6 | O8: 是
A9: 7 | B9: 刘怡麟 | C9: 62011030803 | D9: 兰州市城关区教育局 | E9: 8170 | F9: 小学美术教师 | G9: 14 | H9: 79.35 | I9: 86.00 | J9: 13 | K9: 1.00 | L9: 85.78 | M9: 82.57 | N9: 7 | O9: 是
A10: 8 | B10: 张笑月 | C10: 62011080129 | D10: 兰州市城关区教育局 | E10: 8170 | F10: 小学美术教师 | G10: 14 | H10: 75.35 | I10: 89.20 | J10: 14 | K10: 1.00 | L10: 89.42 | M10: 82.39 | N10: 8 | O10: 是
A11: 9 | B11: 何宗玲 | C11: 62011040305 | D11: 兰州市城关区教育局 | E11: 8170 | F11: 小学美术教师 | G11: 14 | H11: 81.25 | I11: 83.00 | J11: 14 | K11: 1.00 | L11: 83.21 | M11: 82.23 | N11: 9 | O11: 是
A12: 10 | B12: 杨婷 | C12: 62011100418 | D12: 兰州市城关区教育局 | E12: 8170 | F12: 小学美术教师 | G12: 14 | H12: 76.40 | I12: 87.60 | J12: 14 | K12: 1.00 | L12: 87.82 | M12: 82.11 | N12: 10 | O12: 是
A13: 11 | B13: 林小泉 | C13: 62011060306 | D13: 兰州市城关区教育局 | E13: 8170 | F13: 小学美术教师 | G13: 14 | H13: 77.55 | I13: 86.00 | J13: 14 | K13: 1.00 | L13: 86.21 | M13: 81.88 | N13: 11 | O13: 是
A14: 12 | B14: 张佩丽 | C14: 62011082312 | D14: 兰州市城关区教育局 | E14: 8170 | F14: 小学美术教师 | G14: 14 | H14: 81.65 | I14: 82.20 | J14: 13 | K14: 1.00 | L14: 81.99 | M14: 81.82 | N14: 12 | O14: 是
A15: 13 | B15: 运卓旸 | C15: 62011030320 | D15: 兰州市城关区教育局 | E15: 8170 | F15: 小学美术教师 | G15: 14 | H15: 76.80 | I15: 87.00 | J15: 13 | K15: 1.00 | L15: 86.77 | M15: 81.79 | N15: 13 | O15: 是
A16: 14 | B16: 张文艳 | C16: 62011091825 | D16: 兰州市城关区教育局 | E16: 8170 | F16: 小学美术教师 | G16: 14 | H16: 77.60 | I16: 85.60 | J16: 14 | K16: 1.00 | L16: 85.81 | M16: 81.71 | N16: 14 | O16: 是
A17: 15 | B17: 邸子航 | C17: 62011090601 | D17: 兰州市城关区教育局 | E17: 8170 | F17: 小学美术教师 | G17: 14 | H17: 79.15 | I17: 84.40 | J17: 13 | K17: 1.00 | L17: 84.18 | M17: =H17*0.5+L17*0.5 -> 81.67 | N17: 15 | O17: 否
A18: 16 | B18: 张守玉 | C18: 62011042019 | D18: 兰州市城关区教育局 | E18: 8170 | F18: 小学美术教师 | G18: 14 | H18: 75.90 | I18: 87.20 | J18: 14 | K18: 1.00 | L18: 87.42 | M18: 81.66 | N18: 16 | O18: 否
A19: 17 | B19: 刘湉 | C19: 62011010705 | D19: 兰州市城关区教育局 | E19: 8170 | F19: 小学美术教师 | G19: 14 | H19: 77.30 | I19: 86.20 | J19: 13 | K19: 1.00 | L19: 85.98 | M19: 81.64 | N19: 17 | O19: 否
A20: 18 | B20: 程露露 | C20: 62011010418 | D20: 兰州市城关区教育局 | E20: 8170 | F20: 小学美术教师 | G20: 14 | H20: 77.35 | I20: 85.40 | J20: 14 | K20: 1.00 | L20: 85.61 | M20: 81.48 | N20: 18 | O20: 否
A21: 19 | B21: 韩君 | C21: 62011072218 | D21: 兰州市城关区教育局 | E21: 8170 | F21: 小学美术教师 | G21: 14 | H21: 78.05 | I21: 85.00 | J21: 13 | K21: 1.00 | L21: 84.78 | M21: 81.42 | N21: 19 | O21: 否
A22: 20 | B22: 彭莉 | C22: 62011070903 | D22: 兰州市城关区教育局 | E22: 8170 | F22: 小学美术教师 | G22: 14 | H22: 75.45 | I22: 87.60 | J22: 13 | K22: 1.00 | L22: 87.37 | M22: 81.41 | N22: 20 | O22: 否
A23: 21 | B23: 杨慧杰 | C23: 62011021624 | D23: 兰州市城关区教育局 | E23: 8170 | F23: 小学美术教师 | G23: 14 | H23: 77.35 | I23: 85.00 | J23: 14 | K23: 1.00 | L23: 85.21 | M23: 81.28 | N23: 21 | O23: 否
A24: 22 | B24: 张剑 | C24: 62011102507 | D24: 兰州市城关区教育局 | E24: 8170 | F24: 小学美术教师 | G24: 14 | H24: 79.70 | I24: 82.60 | J24: 14 | K24: 1.00 | L24: 82.81 | M24: 81.26 | N24: 22 | O24: 否
A25: 23 | B25: 王玮颖 | C25: 62011051525 | D25: 兰州市城关区教育局 | E25: 8170 | F25: 小学美术教师 | G25: 14 | H25: 76.25 | I25: 85.60 | J25: 14 | K25: 1.00 | L25: 85.81 | M25: 81.03 | N25: 23 | O25: 否
A26: 24 | B26: 移亨 | C26: 62011081908 | D26: 兰州市城关区教育局 | E26: 8170 | F26: 小学美术教师 | G26: 14 | H26: 77.70 | I26: 84.00 | J26: 14 | K26: 1.00 | L26: 84.21 | M26: 80.96 | N26: 24 | O26: 否
A27: 25 | B27: 王雪艳 | C27: 62011040608 | D27: 兰州市城关区教育局 | E27: 8170 | F27: 小学美术教师 | G27: 14 | H27: 78.55 | I27: 83.40 | J27: 13 | K27: 1.00 | L27: 83.18 | M27: 80.87 | N27: 25 | O27: 否
A28: 26 | B28: 樊继蓁 | C28: 62011020926 | D28: 兰州市城关区教育局 | E28: 8170 | F28: 小学美术教师 | G28: 14 | H28: 76.95 | I28: 85.00 | J28: 13 | K28: 1.00 | L28: 84.78 | M28: 80.87 | N28: 25 | O28: 否
A29: 27 | B29: 李婷 | C29: 62011020607 | D29: 兰州市城关区教育局 | E29: 8170 | F29: 小学美术教师 | G29: 14 | H29: 75.55 | I29: 86.00 | J29: 13 | K29: 1.00 | L29: 85.78 | M29: 80.67 | N29: 27 | O29: 否
A30: 28 | B30: 王韵钦 | C30: 62011050117 | D30: 兰州市城关区教育局 | E30: 8170 | F30: 小学美术教师 | G30: 14 | H30: 76.35 | I30: 84.60 | J30: 14 | K30: 1.00 | L30: 84.81 | M30: 80.58 | N30: 28 | O30: 否
A31: 29 | B31: 席秀秀 | C31: 62011040524 | D31: 兰州市城关区教育局 | E31: 8170 | F31: 小学美术教师 | G31: 14 | H31: 77.05 | I31: 84.20 | J31: 13 | K31: 1.00 | L31: 83.98 | M31: 80.52 | N31: 29 | O31: 否
A32: 30 | B32: 杨东淋 | C32: 62011040221 | D32: 兰州市城关区教育局 | E32: 8170 | F32: 小学美术教师 | G32: 14 | H32: 77.20 | I32: 84.00 | J32: 13 | K32: 1.00 | L32: 83.78 | M32: 80.49 | N32: 30 | O32: 否
A33: 31 | B33: 乔莹 | C33: 62011031403 | D33: 兰州市城关区教育局 | E33: 8170 | F33: 小学美术教师 | G33: 14 | H33: 76.15 | I33: 84.00 | J33: 13 | K33: 1.00 | L33: 83.78 | M33: 79.97 | N33: 31 | O33: 否
A34: 32 | B34: 黄小力 | C34: 62011081002 | D34: 兰州市城关区教育局 | E34: 8170 | F34: 小学美术教师 | G34: 14 | H34: 76.95 | I34: 82.20 | J34: 14 | K34: 1.00 | L34: 82.40 | M34: 79.68 | N34: 32 | O34: 否
A35: 33 | B35: 李龙龙 | C35: 62011030321 | D35: 兰州市城关区教育局 | E35: 8170 | F35: 小学美术教师 | G35: 14 | H35: 76.45 | I35: 81.80 | J35: 13 | K35: 1.00 | L35: 81.59 | M35: 79.02 | N35: 33 | O35: 否
A36: 34 | B36: 李炎钰 | C36: 62011090120 | D36: 兰州市城关区教育局 | E36: 8170 | F36: 小学美术教师 | G36: 14 | H36: 75.90 | I36: 82.00 | J36: 13 | K36: 1.00 | L36: 81.79 | M36: 78.85 | N36: 34 | O36: 否
A37: 35 | B37: 吴瑞玲 | C37: 62011032526 | D37: 兰州市城关区教育局 | E37: 8170 | F37: 小学美术教师 | G37: 14 | H37: 76.35 | I37: 81.40 | J37: 13 | K37: 1.00 | L37: 81.19 | M37: 78.77 | N37: 35 | O37: 否
A38: 36 | B38: 刘雯巍 | C38: 62011070622 | D38: 兰州市城关区教育局 | E38: 8170 | F38: 小学美术教师 | G38: 14 | H38: 77.30 | I38: 78.20 | J38: 14 | K38: 1.00 | L38: 78.39 | M38: 77.85 | N38: 36 | O38: 否
A39: 37 | B39: 许娟娟 | C39: 62011010420 | D39: 兰州市城关区教育局 | E39: 8170 | F39: 小学美术教师 | G39: 14 | H39: 75.45 | I39: 78.00 | J39: 14 | K39: 1.00 | L39: 78.19 | M39: 76.82 | N39: 37 | O39: 否
A40: 38 | B40: 李环环 | C40: 62011030516 | D40: 兰州市城关区教育局 | E40: 8170 | F40: 小学美术教师 | G40: 14 | H40: 75.95 | I40: 76.80 | J40: 14 | K40: 1.00 | L40: 76.99 | M40: 76.47 | N40: 38 | O40: 否
A41: 39 | B41: 李轩 | C41: 62011030326 | D41: 兰州市城关区教育局 | E41: 8170 | F41: 小学美术教师 | G41: 14 | H41: 75.30 | O41: 否 | P41: 放弃

Sheet 道法
A1: 2021年兰州市公开招聘中小学聘用制教师（城关区教育局所属学校）综合成绩及入围体检人员名单
A2: 序号 | B2: 姓名 | C2: 准考证号 | D2: 主管单位 | E2: 岗位代码 | F2: 岗位 名称 | G2: 拟招聘 人数 | H2: 笔试成绩 | I2: 面试原始得分 | J2: 面试考场号 | K2: 考场加权系数 | L2: 面试成绩 | M2: 综合成绩 | N2: 综合排名 | O2: 是否进入体检环节 | P2: 备注
A3: 1 | B3: 靳丽江 | C3: 62011100504 | D3: 兰州市城关区教育局 | E3: 8171 | F3: 初中道法教师 | G3: 8 | H3: 78.60 | I3: 90.20 | J3: 32 | K3: 1.00 | L3: =I3*K3 -> 90.20 | M3: 84.40 | N3: 1 | O3: 是
A4: 2 | B4: 马秀花 | C4: 62011100615 | D4: 兰州市城关区教育局 | E4: 8171 | F4: 初中道法教师 | G4: 8 | H4: 78.55 | I4: 88.80 | J4: 32 | K4: 1.00 | L4: 88.80 | M4: 83.68 | N4: 2 | O4: 是
A5: 3 | B5: 高红岩 | C5: 62011031120 | D5: 兰州市城关区教育局 | E5: 8171 | F5: 初中道法教师 | G5: 8 | H5: 75.75 | I5: 90.20 | J5: 32 | K5: 1.00 | L5: 90.20 | M5: 82.98 | N5: 3 | O5: 是
A6: 4 | B6: 杨蕊 | C6: 62011080901 | D6: 兰州市城关区教育局 | E6: 8171 | F6: 初中道法教师 | G6: 8 | H6: 81.70 | I6: 84.00 | J6: 32 | K6: 1.00 | L6: 84.00 | M6: 82.85 | N6: 4 | O6: 是
A7: 5 | B7: 景明娟 | C7: 62011071822 | D7: 兰州市城关区教育局 | E7: 8171 | F7: 初中道法教师 | G7: 8 | H7: 80.10 | I7: 84.00 | J7: 32 | K7: 1.00 | L7: 84.00 | M7: 82.05 | N7: 5 | O7: 是
A8: 6 | B8: 龙旭红 | C8: 62011090814 | D8: 兰州市城关区教育局 | E8: 8171 | F8: 初中道法教师 | G8: 8 | H8: 77.35 | I8: 86.40 | J8: 32 | K8: 1.00 | L8: 86.40 | M8: 81.88 | N8: 6 | O8: 是
A9: 7 | B9: 杨会会 | C9: 62011021314 | D9: 兰州市城关区教育局 | E9: 8171 | F9: 初中道法教师 | G9: 8 | H9: 77.65 | I9: 85.20 | J9: 32 | K9: 1.00 | L9: 85.20 | M9: 81.43 | N9: 7 | O9: 是
A10: 8 | B10: 李伟 | C10: 62011061323 | D10: 兰州市城关区教育局 | E10: 8171 | F10: 初中道法教师 | G10: 8 | H10: 75.25 | I10: 86.80 | J10: 32 | K10: 1.00 | L10: 86.80 | M10: 81.03 | N10: 8 | O10: 是
A11: 9 | B11: 范巧霞 | C11: 62011102521 | D11: 兰州市城关区教育局 | E11: 8171 | F11: 初中道法教师 | G11: 8 | H11: 81.70 | I11: 80.00 | J11: 32 | K11: 1.00 | L11: 80.00 | M11: 80.85 | N11: 9 | O11: 否
A12: 10 | B12: 王静 | C12: 62011050915 | D12: 兰州市城关区教育局 | E12: 8171 | F12: 初中道法教师 | G12: 8 | H12: 78.40 | I12: 81.80 | J12: 32 | K12: 1.00 | L12: 81.80 | M12: 80.10 | N12: 10 | O12: 否
A13: 11 | B13: 朱玉霞 | C13: 62011021710 | D13: 兰州市城关区教育局 | E13: 8171 | F13: 初中道法教师 | G13: 8 | H13: 79.30 | I13: 80.20 | J13: 32 | K13: 1.00 | L13: 80.20 | M13: 79.75 | N13: 11 | O13: 否
A14: 12 | B14: 徐丽娟 | C14: 62011040917 | D14: 兰州市城关区教育局 | E14: 8171 | F14: 初中道法教师 | G14: 8 | H14: 75.25 | I14: 82.00 | J14: 32 | K14: 1.00 | L14: 82.00 | M14: 78.63 | N14: 12 | O14: 否
A15: 13 | B15: 邓小燕 | C15: 62011052117 | D15: 兰州市城关区教育局 | E15: 8171 | F15: 初中道法教师 | G15: 8 | H15: 78.90 | I15: 78.00 | J15: 32 | K15: 1.00 | L15: 78.00 | M15: 78.45 | N15: 13 | O15: 否
A16: 14 | B16: 王亚萍 | C16: 62011081115 | D16: 兰州市城关区教育局 | E16: 8171 | F16: 初中道法教师 | G16: 8 | H16: 76.95 | I16: 77.20 | J16: 32 | K16: 1.00 | L16: 77.20 | M16: 77.08 | N16: 14 | O16: 否
A17: 15 | B17: 罗仁红 | C17: 62011011310 | D17: 兰州市城关区教育局 | E17: 8171 | F17: 初中道法教师 | G17: 8 | H17: 77.25 | I17: 76.60 | J17: 32 | K17: 1.00 | L17: 76.60 | M17: 76.93 | N17: 15 | O17: 否
A18: 16 | B18: 李占梅 | C18: 62011091728 | D18: 兰州市城关区教育局 | E18: 8171 | F18: 初中道法教师 | G18: 8 | H18: 76.55 | I18: 77.00 | J18: 32 | K18: 1.00 | L18: 77.00 | M18: 76.78 | N18: 16 | O18: 否
A19: 17 | B19: 李亚莉 | C19: 62011011515 | D19: 兰州市城关区教育局 | E19: 8171 | F19: 初中道法教师 | G19: 8 | H19: 77.40 | I19: 75.20 | J19: 32 | K19: 1.00 | L19: 75.20 | M19: 76.30 | N19: 17 | O19: 否
A20: 18 | B20: 罗娜 | C20: 62011050421 | D20: 兰州市城关区教育局 | E20: 8171 | F20: 初中道法教师 | G20: 8 | H20: 76.10 | I20: 73.40 | J20: 32 | K20: 1.00 | L20: 73.40 | M20: 74.75 | N20: 18 | O20: 否
A21: 19 | B21: 王利霞 | C21: 62011081414 | D21: 兰州市城关区教育局 | E21: 8171 | F21: 初中道法教师 | G21: 8 | H21: 75.95 | I21: 72.40 | J21: 32 | K21: 1.00 | L21: 72.40 | M21: 74.18 | N21: 19 | O21: 否
A22: 20 | B22: 陈东德 | C22: 62011040720 | D22: 兰州市城关区教育局 | E22: 8171 | F22: 初中道法教师 | G22: 8 | H22: 75.25 | O22: 否 | P22: 放弃

Sheet 历史
A1: 2021年兰州市公开招聘中小学聘用制教师（城关区教育局所属学校）综合成绩及入围体检人员名单
A2: 序号 | B2: 姓名 | C2: 准考证号 | D2: 主管单位 | E2: 岗位代码 | F2: 岗位 名称 | G2: 拟招聘 人数 | H2: 笔试成绩 | I2: 面试原始得分 | J2: 面试考场号 | K2: 考场加权系数 | L2: 面试成绩 | M2: 综合成绩 | N2: 综合排名 | O2: 是否进入体检环节 | P2: 备注
A3: 1 | B3: 马芳芳 | C3: 62011092425 | D3: 兰州市城关区教育局 | E3: 8172 | F3: 初中历史教师 | G3: 5 | H3: 78.90 | I3: 92.40 | J3: 33 | K3: 1.00 | L3: =I3*K3 -> 92.40 | M3: 85.65 | N3: 1 | O3: 是
A4: 2 | B4: 宁燕 | C4: 62011091801 | D4: 兰州市城关区教育局 | E4: 8172 | F4: 初中历史教师 | G4: 5 | H4: 78.05 | I4: 92.40 | J4: 33 | K4: 1.00 | L4: 92.40 | M4: 85.23 | N4: 2 | O4: 是
A5: 3 | B5: 王瑛 | C5: 62011040824 | D5: 兰州市城关区教育局 | E5: 8172 | F5: 初中历史教师 | G5: 5 | H5: 76.80 | I5: 92.40 | J5: 33 | K5: 1.00 | L5: 92.40 | M5: 84.60 | N5: 3 | O5: 是
A6: 4 | B6: 杨青烨 | C6: 62011012321 | D6: 兰州市城关区教育局 | E6: 8172 | F6: 初中历史教师 | G6: 5 | H6: 79.95 | I6: 88.40 | J6: 33 | K6: 1.00 | L6: 88.40 | M6: 84.18 | N6: 4 | O6: 是
A7: 5 | B7: 钱国英 | C7: 62011061704 | D7: 兰州市城关区教育局 | E7: 8172 | F7: 初中历史教师 | G7: 5 | H7: 75.80 | I7: 92.00 | J7: 33 | K7: 1.00 | L7: 92.00 | M7: 83.90 | N7: 5 | O7: 是
A8: 6 | B8: 马海霞 | C8: 62011082516 | D8: 兰州市城关区教育局 | E8: 8172 | F8: 初中历史教师 | G8: 5 | H8: 75.55 | I8: 91.20 | J8: 33 | K8: 1.00 | L8: 91.20 | M8: 83.38 | N8: 6 | O8: 否
A9: 7 | B9: 李平 | C9: 62011050530 | D9: 兰州市城关区教育局 | E9: 8172 | F9: 初中历史教师 | G9: 5 | H9: 82.15 | I9: 84.40 | J9: 33 | K9: 1.00 | L9: 84.40 | M9: 83.28 | N9: 7 | O9: 否
A10: 8 | B10: 贾瑞萍 | C10: 62011040907 | D10: 兰州市城关区教育局 | E10: 8172 | F10: 初中历史教师 | G10: 5 | H10: 77.75 | I10: 88.00 | J10: 33 | K10: 1.00 | L10: 88.00 | M10: 82.88 | N10: 8 | O10: 否
A11: 9 | B11: 朱玉萍 | C11: 62011101006 | D11: 兰州市城关区教育局 | E11: 8172 | F11: 初中历史教师 | G11: 5 | H11: 77.60 | I11: 87.60 | J11: 33 | K11: 1.00 | L11: 87.60 | M11: 82.60 | N11: 9 | O11: 否
A12: 10 | B12: 邓瑞霞 | C12: 62011050119 | D12: 兰州市城关区教育局 | E12: 8172 | F12: 初中历史教师 | G12: 5 | H12: 77.55 | I12: 87.20 | J12: 33 | K12: 1.00 | L12: 87.20 | M12: 82.38 | N12: 10 | O12: 否
A13: 11 | B13: 岳文静 | C13: 62011050128 | D13: 兰州市城关区教育局 | E13: 8172 | F13: 初中历史教师 | G13: 5 | H13: 78.55 | I13: 85.60 | J13: 33 | K13: 1.00 | L13: 85.60 | M13: 82.08 | N13: 11 | O13: 否
A14: 12 | B14: 王凡凡 | C14: 62011080825 | D14: 兰州市城关区教育局 | E14: 8172 | F14: 初中历史教师 | G14: 5 | H14: 76.00 | I14: 88.00 | J14: 33 | K14: 1.00 | L14: 88.00 | M14: 82.00 | N14: 12 | O14: 否
A15: 13 | B15: 汪清 | C15: 62011061507 | D15: 兰州市城关区教育局 | E15: 8172 | F15: 初中历史教师 | G15: 5 | H15: 76.70 | I15: 86.80 | J15: 33 | K15: 1.00 | L15: 86.80 | M15: 81.75 | N15: 13 | O15: 否
A16: 14 | B16: 杜英英 | C16: 62011012008 | D16: 兰州市城关区教育局 | E16: 8172 | F16: 初中历史教师 | G16: 5 | H16: 76.75 | I16: 86.40 | J16: 33 | K16: 1.00 | L16: 86.40 | M16: 81.58 | N16: 14 | O16: 否

Sheet 生物
A1: 2021年兰州市公开招聘中小学聘用制教师（城关区教育局所属学校）综合成绩及入围体检人员名单
A2: 序号 | B2: 姓名 | C2: 准考证号 | D2: 主管单位 | E2: 岗位代码 | F2: 岗位 名称 | G2: 拟招聘 人数 | H2: 笔试成绩 | I2: 面试原始得分 | J2: 面试考场号 | K2: 考场加权系数 | L2: 面试成绩 | M2: 综合成绩 | N2: 综合排名 | O2: 是否进入体检环节 | P2: 备注
A3: 1 | B3: 苏凤凤 | C3: 62011091904 | D3: 兰州市城关区教育局 | E3: 8173 | F3: 初中生物教师 | G3: 3 | H3: 75.65 | I3: 89.20 | J3: 34 | K3: 1.00 | L3: =I3*K3 -> 89.20 | M3: 82.43 | N3: 1 | O3: 是
A4: 2 | B4: 王凤琴 | C4: 62011041409 | D4: 兰州市城关区教育局 | E4: 8173 | F4: 初中生物教师 | G4: 3 | H4: 80.90 | I4: 80.60 | J4: 34 | K4: 1.00 | L4: 80.60 | M4: 80.75 | N4: 2 | O4: 是
A5: 3 | B5: 王国金 | C5: 62011011301 | D5: 兰州市城关区教育局 | E5: 8173 | F5: 初中生物教师 | G5: 3 | H5: 79.65 | I5: 79.40 | J5: 34 | K5: 1.00 | L5: 79.40 | M5: 79.53 | N5: 3 | O5: 是
A6: 4 | B6: 赵曦蕊 | C6: 62011062523 | D6: 兰州市城关区教育局 | E6: 8173 | F6: 初中生物教师 | G6: 3 | H6: 80.00 | I6: 76.00 | J6: 34 | K6: 1.00 | L6: 76.00 | M6: 78.00 | N6: 4 | O6: 否
A7: 5 | B7: 魏兰星 | C7: 62011080813 | D7: 兰州市城关区教育局 | E7: 8173 | F7: 初中生物教师 | G7: 3 | H7: 76.70 | I7: 79.20 | J7: 34 | K7: 1.00 | L7: 79.20 | M7: 77.95 | N7: 5 | O7: 否
A8: 6 | B8: 孙怡 | C8: 62011090418 | D8: 兰州市城关区教育局 | E8: 8173 | F8: 初中生物教师 | G8: 3 | H8: 75.85 | I8: 76.40 | J8: 34 | K8: 1.00 | L8: 76.40 | M8: 76.13 | N8: 6 | O8: 否
A9: 7 | B9: 葛婷婷 | C9: 62011070609 | D9: 兰州市城关区教育局 | E9: 8173 | F9: 初中生物教师 | G9: 3 | H9: 75.95 | I9: 74.00 | J9: 34 | K9: 1.00 | L9: 74.00 | M9: 74.98 | N9: 7 | O9: 否
A10: 8 | B10: 宋瑞瑞 | C10: 62011032321 | D10: 兰州市城关区教育局 | E10: 8173 | F10: 初中生物教师 | G10: 3 | H10: 76.35 | I10: 68.00 | J10: 34 | K10: 1.00 | L10: 68.00 | M10: 72.18 | N10: 8 | O10: 否
A11: 9 | B11: 杨亚萍 | C11: 62011090729 | D11: 兰州市城关区教育局 | E11: 8173 | F11: 初中生物教师 | G11: 3 | H11: 74.85 | O11: 否 | P11: 放弃

Sheet 物理
A1: 2021年兰州市公开招聘中小学聘用制教师（城关区教育局所属学校）综合成绩及入围体检人员名单
A2: 序号 | B2: 姓名 | C2: 准考证号 | D2: 主管单位 | E2: 岗位代码 | F2: 岗位 名称 | G2: 拟招聘 人数 | H2: 笔试成绩 | I2: 面试原始得分 | J2: 面试考场号 | K2: 考场加权系数 | L2: 面试成绩 | M2: 综合成绩 | N2: 综合排名 | O2: 是否进入体检环节 | P2: 备注
A3: 1 | B3: 苗碧君 | C3: 62011030921 | D3: 兰州市城关区教育局 | E3: 8174 | F3: 初中物理教师 | G3: 8 | H3: 78.75 | I3: 88.80 | J3: 35 | K3: 1.00 | L3: =I3*K3 -> 88.80 | M3: 83.78 | N3: 1 | O3: 是
A4: 2 | B4: 陈玉刚 | C4: 62011010712 | D4: 兰州市城关区教育局 | E4: 8174 | F4: 初中物理教师 | G4: 8 | H4: 76.85 | I4: 90.60 | J4: 35 | K4: 1.00 | L4: 90.60 | M4: 83.73 | N4: 2 | O4: 是
A5: 3 | B5: 王军梅 | C5: 62011072426 | D5: 兰州市城关区教育局 | E5: 8174 | F5: 初中物理教师 | G5: 8 | H5: 77.15 | I5: 89.80 | J5: 35 | K5: 1.00 | L5: 89.80 | M5: 83.48 | N5: 3 | O5: 是
A6: 4 | B6: 邓志强 | C6: 62011082025 | D6: 兰州市城关区教育局 | E6: 8174 | F6: 初中物理教师 | G6: 8 | H6: 75.65 | I6: 90.00 | J6: 35 | K6: 1.00 | L6: 90.00 | M6: 82.83 | N6: 4 | O6: 是
A7: 5 | B7: 李永芳 | C7: 62011050511 | D7: 兰州市城关区教育局 | E7: 8174 | F7: 初中物理教师 | G7: 8 | H7: 77.00 | I7: 84.80 | J7: 35 | K7: 1.00 | L7: 84.80 | M7: 80.90 | N7: 5 | O7: 是
A8: 6 | B8: 张世铎 | C8: 62011072527 | D8: 兰州市城关区教育局 | E8: 8174 | F8: 初中物理教师 | G8: 8 | H8: 76.95 | I8: 84.40 | J8: 35 | K8: 1.00 | L8: 84.40 | M8: 80.68 | N8: 6 | O8: 是
A9: 7 | B9: 付鹏 | C9: 62011050130 | D9: 兰州市城关区教育局 | E9: 8174 | F9: 初中物理教师 | G9: 8 | H9: 72.20 | I9: 88.80 | J9: 35 | K9: 1.00 | L9: 88.80 | M9: 80.50 | N9: 7 | O9: 是
A10: 8 | B10: 张萍 | C10: 62011081611 | D10: 兰州市城关区教育局 | E10: 8174 | F10: 初中物理教师 | G10: 8 | H10: 75.20 | I10: 85.60 | J10: 35 | K10: 1.00 | L10: 85.60 | M10: 80.40 | N10: 8 | O10: 是
A11: 9 | B11: 安福明 | C11: 62011051004 | D11: 兰州市城关区教育局 | E11: 8174 | F11: 初中物理教师 | G11: 8 | H11: 75.30 | I11: 84.40 | J11: 35 | K11: 1.00 | L11: 84.40 | M11: 79.85 | N11: 9 | O11: 否
A12: 10 | B12: 韩海霞 | C12: 62011032010 | D12: 兰州市城关区教育局 | E12: 8174 | F12: 初中物理教师 | G12: 8 | H12: 79.25 | I12: 80.20 | J12: 35 | K12: 1.00 | L12: 80.20 | M12: 79.73 | N12: 10 | O12: 否
A13: 11 | B13: 苏晨芳 | C13: 62011071717 | D13: 兰州市城关区教育局 | E13: 8174 | F13: 初中物理教师 | G13: 8 | H13: 72.35 | I13: 85.00 | J13: 35 | K13: 1.00 | L13: 85.00 | M13: 78.68 | N13: 11 | O13: 否
A14: 12 | B14: 陈莉莉 | C14: 62011101520 | D14: 兰州市城关区教育局 | E14: 8174 | F14: 初中物理教师 | G14: 8 | H14: 76.55 | I14: 80.00 | J14: 35 | K14: 1.00 | L14: 80.00 | M14: 78.28 | N14: 12 | O14: 否
A15: 13 | B15: 曹海娇 | C15: 62011051415 | D15: 兰州市城关区教育局 | E15: 8174 | F15: 初中物理教师 | G15: 8 | H15: 75.40 | I15: 80.00 | J15: 35 | K15: 1.00 | L15: 80.00 | M15: 77.70 | N15: 13 | O15: 否
A16: 14 | B16: 刘亚苗 | C16: 62011082510 | D16: 兰州市城关区教育局 | E16: 8174 | F16: 初中物理教师 | G16: 8 | H16: 72.05 | I16: 81.00 | J16: 35 | K16: 1.00 | L16: 81.00 | M16: 76.53 | N16: 14 | O16: 否
A17: 15 | B17: 张世栋 | C17: 62011081802 | D17: 兰州市城关区教育局 | E17: 8174 | F17: 初中物理教师 | G17: 8 | H17: 77.75 | I17: 74.20 | J17: 35 | K17: 1.00 | L17: 74.20 | M17: 75.98 | N17: 15 | O17: 否
A18: 16 | B18: 安绪琴 | C18: 62011021818 | D18: 兰州市城关区教育局 | E18: 8174 | F18: 初中物理教师 | G18: 8 | H18: 72.15 | I18: 79.00 | J18: 35 | K18: 1.00 | L18: 79.00 | M18: 75.58 | N18: 16 | O18: 否
A19: 17 | B19: 张亚男 | C19: 62011060310 | D19: 兰州市城关区教育局 | E19: 8174 | F19: 初中物理教师 | G19: 8 | H19: 74.70 | I19: 76.20 | J19: 35 | K19: 1.00 | L19: 76.20 | M19: 75.45 | N19: 17 | O19: 否
A20: 18 | B20: 贾露露 | C20: 62011040811 | D20: 兰州市城关区教育局 | E20: 8174 | F20: 初中物理教师 | G20: 8 | H20: 72.95 | I20: 71.60 | J20: 35 | K20: 1.00 | L20: 71.60 | M20: 72.28 | N20: 18 | O20: 否
A21: 19 | B21: 魏园园 | C21: 62011101829 | D21: 兰州市城关区教育局 | E21: 8174 | F21: 初中物理教师 | G21: 8 | H21: 75.35 | O21: 否 | P21: 放弃
A22: 20 | B22: 马彦江 | C22: 62011101220 | D22: 兰州市城关区教育局 | E22: 8174 | F22: 初中物理教师 | G22: 8 | H22: 72.20 | O22: 否 | P22: 放弃

Sheet 幼儿园
A1: 2021年兰州市公开招聘中小学聘用制教师（城关区教育局所属学校）综合成绩及入围体检人员名单
A2: 序号 | B2: 姓名 | C2: 准考证号 | D2: 主管单位 | E2: 岗位代码 | F2: 岗位 名称 | G2: 拟招聘 人数 | H2: 笔试成绩 | I2: 面试原始得分 | J2: 面试考场号 | K2: 考场加权系数 | L2: 面试成绩 | M2: 综合成绩 | N2: 综合排名 | O2: 是否进入体检环节 | P2: 备注
A3: 1 | B3: 赵浩彤 | C3: 62011031428 | D3: 兰州市城关区教育局 | E3: 8175 | F3: 幼儿园教师 | G3: 15 | H3: 79.85 | I3: 89.60 | J3: 36 | K3: 1.01 | L3: 90.11 | M3: =H3*0.5+L3*0.5 -> 84.98 | N3: 1 | O3: 是
A4: 2 | B4: 邵莉娜 | C4: 62011021130 | D4: 兰州市城关区教育局 | E4: 8175 | F4: 幼儿园教师 | G4: 15 | H4: 78.40 | I4: 87.60 | J4: 36 | K4: 1.01 | L4: 88.10 | M4: =H4*0.5+L4*0.5 -> 83.25 | N4: 2 | O4: 是
A5: 3 | B5: 曾晨凤 | C5: 62011020720 | D5: 兰州市城关区教育局 | E5: 8175 | F5: 幼儿园教师 | G5: 15 | H5: 78.75 | I5: 88.00 | J5: 37 | K5: 0.99 | L5: 87.49 | M5: 83.12 | N5: 3 | O5: 是
A6: 4 | B6: 石佩 | C6: 62011100914 | D6: 兰州市城关区教育局 | E6: 8175 | F6: 幼儿园教师 | G6: 15 | H6: 78.55 | I6: 84.40 | J6: 36 | K6: 1.01 | L6: 84.88 | M6: 81.72 | N6: 4 | O6: 是
A7: 5 | B7: 杨亚琴 | C7: 62011041017 | D7: 兰州市城关区教育局 | E7: 8175 | F7: 幼儿园教师 | G7: 15 | H7: 79.70 | I7: 83.20 | J7: 37 | K7: 0.99 | L7: 82.72 | M7: 81.21 | N7: 5 | O7: 是
A8: 6 | B8: 陈靓 | C8: 62011012210 | D8: 兰州市城关区教育局 | E8: 8175 | F8: 幼儿园教师 | G8: 15 | H8: 76.80 | I8: 86.00 | J8: 37 | K8: 0.99 | L8: 85.50 | M8: 81.15 | N8: 6 | O8: 是
A9: 7 | B9: 周昊栎 | C9: 62011020626 | D9: 兰州市城关区教育局 | E9: 8175 | F9: 幼儿园教师 | G9: 15 | H9: 76.15 | I9: 85.00 | J9: 36 | K9: 1.01 | L9: 85.49 | M9: 80.82 | N9: 7 | O9: 是
A10: 8 | B10: 房得荣 | C10: 62011040909 | D10: 兰州市城关区教育局 | E10: 8175 | F10: 幼儿园教师 | G10: 15 | H10: 76.30 | I10: 85.80 | J10: 37 | K10: 0.99 | L10: 85.30 | M10: 80.80 | N10: 8 | O10: 是
A11: 9 | B11: 李进芳 | C11: 62011102115 | D11: 兰州市城关区教育局 | E11: 8175 | F11: 幼儿园教师 | G11: 15 | H11: 80.75 | I11: 81.20 | J11: 37 | K11: 0.99 | L11: 80.73 | M11: 80.74 | N11: 9 | O11: 是
A12: 10 | B12: 李亚红 | C12: 62011072209 | D12: 兰州市城关区教育局 | E12: 8175 | F12: 幼儿园教师 | G12: 15 | H12: 75.40 | I12: 85.40 | J12: 36 | K12: 1.01 | L12: 85.89 | M12: 80.65 | N12: 10 | O12: 是
A13: 11 | B13: 孟帆 | C13: 62011020613 | D13: 兰州市城关区教育局 | E13: 8175 | F13: 幼儿园教师 | G13: 15 | H13: 75.05 | I13: 85.40 | J13: 36 | K13: 1.01 | L13: 85.89 | M13: 80.47 | N13: 11 | O13: 是
A14: 12 | B14: 火东倩 | C14: 62011041203 | D14: 兰州市城关区教育局 | E14: 8175 | F14: 幼儿园教师 | G14: 15 | H14: 78.20 | I14: 82.20 | J14: 36 | K14: 1.01 | L14: 82.67 | M14: 80.44 | N14: 12 | O14: 是
A15: 13 | B15: 马小蕊 | C15: 62011091203 | D15: 兰州市城关区教育局 | E15: 8175 | F15: 幼儿园教师 | G15: 15 | H15: 74.10 | I15: 85.80 | J15: 36 | K15: 1.01 | L15: 86.29 | M15: 80.20 | N15: 13 | O15: 是
A16: 14 | B16: 闹曼 | C16: 62011101019 | D16: 兰州市城关区教育局 | E16: 8175 | F16: 幼儿园教师 | G16: 15 | H16: 78.70 | I16: 81.40 | J16: 37 | K16: 0.99 | L16: 80.93 | M16: 79.82 | N16: 14 | O16: 是
A17: 15 | B17: 杨博闻 | C17: 62011031204 | D17: 兰州市城关区教育局 | E17: 8175 | F17: 幼儿园教师 | G17: 15 | H17: 74.55 | I17: 85.20 | J17: 37 | K17: 0.99 | L17: 84.71 | M17: 79.63 | N17: 15 | O17: 是
A18: 16 | B18: 裴翠玉 | C18: 62011051815 | D18: 兰州市城关区教育局 | E18: 8175 | F18: 幼儿园教师 | G18: 15 | H18: 76.50 | I18: 82.60 | J18: 37 | K18: 0.99 | L18: 82.12 | M18: 79.31 | N18: 16 | O18: 否
A19: 17 | B19: 程洁雯 | C19: 62011080128 | D19: 兰州市城关区教育局 | E19: 8175 | F19: 幼儿园教师 | G19: 15 | H19: 76.85 | I19: 81.00 | J19: 36 | K19: 1.01 | L19: 81.46 | M19: 79.16 | N19: 17 | O19: 否
A20: 18 | B20: 牟会玲 | C20: 62011052015 | D20: 兰州市城关区教育局 | E20: 8175 | F20: 幼儿园教师 | G20: 15 | H20: 81.50 | I20: 76.20 | J20: 36 | K20: 1.01 | L20: 76.64 | M20: 79.07 | N20: 18 | O20: 否
A21: 19 | B21: 丁文慧 | C21: 62011081723 | D21: 兰州市城关区教育局 | E21: 8175 | F21: 幼儿园教师 | G21: 15 | H21: 77.95 | I21: 80.20 | J21: 37 | K21: 0.99 | L21: 79.74 | M21: 78.85 | N21: 19 | O21: 否
A22: 20 | B22: 马文梅 | C22: 62011082120 | D22: 兰州市城关区教育局 | E22: 8175 | F22: 幼儿园教师 | G22: 15 | H22: 76.00 | I22: 81.20 | J22: 36 | K22: 1.01 | L22: 81.67 | M22: 78.84 | N22: 20 | O22: 否
A23: 21 | B23: 韩艳茹 | C23: 62011091404 | D23: 兰州市城关区教育局 | E23: 8175 | F23: 幼儿园教师 | G23: 15 | H23: 76.55 | I23: 80.80 | J23: 37 | K23: 0.99 | L23: 80.33 | M23: 78.44 | N23: 21 | O23: 否
A24: 22 | B24: 马小芸 | C24: 62011100407 | D24: 兰州市城关区教育局 | E24: 8175 | F24: 幼儿园教师 | G24: 15 | H24: 78.30 | I24: 78.00 | J24: 36 | K24: 1.01 | L24: 78.45 | M24: 78.38 | N24: 22 | O24: 否
A25: 23 | B25: 梅晓钰 | C25: 62011030330 | D25: 兰州市城关区教育局 | E25: 8175 | F25: 幼儿园教师 | G25: 15 | H25: 76.30 | I25: 80.20 | J25: 37 | K25: 0.99 | L25: 79.74 | M25: 78.02 | N25: 23 | O25: 否
A26: 24 | B26: 张馨予 | C26: 62011102114 | D26: 兰州市城关区教育局 | E26: 8175 | F26: 幼儿园教师 | G26: 15 | H26: 74.10 | I26: 82.40 | J26: 37 | K26: 0.99 | L26: 81.92 | M26: 78.01 | N26: 24 | O26: 否
A27: 25 | B27: 段潇潇 | C27: 62011100818 | D27: 兰州市城关区教育局 | E27: 8175 | F27: 幼儿园教师 | G27: 15 | H27: 77.05 | I27: 78.60 | J27: 37 | K27: 0.99 | L27: 78.14 | M27: 77.60 | N27: 25 | O27: 否
A28: 26 | B28: 雷浩 | C28: 62011102029 | D28: 兰州市城关区教育局 | E28: 8175 | F28: 幼儿园教师 | G28: 15 | H28: 74.40 | I28: 81.20 | J28: 37 | K28: 0.99 | L28: 80.73 | M28: 77.57 | N28: 26 | O28: 否
A29: 27 | B29: 陈泽惠 | C29: 62011090721 | D29: 兰州市城关区教育局 | E29: 8175 | F29: 幼儿园教师 | G29: 15 | H29: 75.30 | I29: 80.00 | J29: 37 | K29: 0.99 | L29: 79.54 | M29: 77.42 | N29: 27 | O29: 否
A30: 28 | B30: 刘婷婷 | C30: 62011080612 | D30: 兰州市城关区教育局 | E30: 8175 | F30: 幼儿园教师 | G30: 15 | H30: 74.35 | I30: 79.20 | J30: 36 | K30: 1.01 | L30: 79.65 | M30: 77.00 | N30: 28 | O30: 否
A31: 29 | B31: 马芳 | C31: 62011082407 | D31: 兰州市城关区教育局 | E31: 8175 | F31: 幼儿园教师 | G31: 15 | H31: 74.95 | I31: 79.00 | J31: 37 | K31: 0.99 | L31: 78.54 | M31: 76.75 | N31: 29 | O31: 否
A32: 30 | B32: 刘燕 | C32: 62011031924 | D32: 兰州市城关区教育局 | E32: 8175 | F32: 幼儿园教师 | G32: 15 | H32: 78.30 | I32: 74.40 | J32: 36 | K32: 1.01 | L32: 74.83 | M32: 76.57 | N32: 30 | O32: 否
A33: 31 | B33: 马秀丽 | C33: 62011070119 | D33: 兰州市城关区教育局 | E33: 8175 | F33: 幼儿园教师 | G33: 15 | H33: 76.30 | I33: 76.20 | J33: 36 | K33: 1.01 | L33: 76.64 | M33: 76.47 | N33: 31 | O33: 否
A34: 32 | B34: 梁小俊 | C34: 62011022504 | D34: 兰州市城关区教育局 | E34: 8175 | F34: 幼儿园教师 | G34: 15 | H34: 79.75 | I34: 73.00 | J34: 37 | K34: 0.99 | L34: 72.58 | M34: 76.17 | N34: 32 | O34: 否
A35: 33 | B35: 马晓涛 | C35: 62011050110 | D35: 兰州市城关区教育局 | E35: 8175 | F35: 幼儿园教师 | G35: 15 | H35: 74.65 | I35: 78.00 | J35: 37 | K35: 0.99 | L35: 77.55 | M35: 76.10 | N35: 33 | O35: 否
A36: 34 | B36: 张蕾 | C36: 62011062305 | D36: 兰州市城关区教育局 | E36: 8175 | F36: 幼儿园教师 | G36: 15 | H36: 77.40 | I36: 74.20 | J36: 36 | K36: 1.01 | L36: 74.63 | M36: 76.02 | N36: 34 | O36: 否
A37: 35 | B37: 王姣姣 | C37: 62011051722 | D37: 兰州市城关区教育局 | E37: 8175 | F37: 幼儿园教师 | G37: 15 | H37: 75.15 | I37: 76.20 | J37: 37 | K37: 0.99 | L37: 75.76 | M37: 75.46 | N37: 35 | O37: 否
A38: 36 | B38: 撖燕萍 | C38: 62011090415 | D38: 兰州市城关区教育局 | E38: 8175 | F38: 幼儿园教师 | G38: 15 | H38: 76.35 | I38: 74.00 | J38: 36 | K38: 1.01 | L38: 74.42 | M38: 75.39 | N38: 36 | O38: 否
A39: 37 | B39: 魏巧霞 | C39: 62011050505 | D39: 兰州市城关区教育局 | E39: 8175 | F39: 幼儿园教师 | G39: 15 | H39: 75.90 | I39: 74.00 | J39: 36 | K39: 1.01 | L39: 74.42 | M39: 75.16 | N39: 37 | O39: 否
A40: 38 | B40: 许润兰 | C40: 62011070424 | D40: 兰州市城关区教育局 | E40: 8175 | F40: 幼儿园教师 | G40: 15 | H40: 74.35 | I40: 75.80 | J40: 37 | K40: 0.99 | L40: 75.36 | M40: 74.86 | N40: 38 | O40: 否
A41: 39 | B41: 李茜 | C41: 62011021718 | D41: 兰州市城关区教育局 | E41: 8175 | F41: 幼儿园教师 | G41: 15 | H41: 74.30 | I41: 73.80 | J41: 36 | K41: 1.01 | L41: 74.22 | M41: 74.26 | N41: 39 | O41: 否
A42: 40 | B42: 马玉梅 | C42: 62011081818 | D42: 兰州市城关区教育局 | E42: 8175 | F42: 幼儿园教师 | G42: 15 | H42: 75.70 | I42: 73.00 | J42: 37 | K42: 0.99 | L42: 72.58 | M42: 74.14 | N42: 40 | O42: 否
A43: 41 | B43: 王玉琴 | C43: 62011082517 | D43: 兰州市城关区教育局 | E43: 8175 | F43: 幼儿园教师 | G43: 15 | H43: 75.70 | I43: 72.00 | J43: 36 | K43: 1.01 | L43: 72.41 | M43: 74.06 | N43: 41 | O43: 否
A44: 42 | B44: 贾小俊 | C44: 62011082422 | D44: 兰州市城关区教育局 | E44: 8175 | F44: 幼儿园教师 | G44: 15 | H44: 74.55 | I44: 72.80 | J44: 36 | K44: 1.01 | L44: 73.22 | M44: 73.89 | N44: 42 | O44: 否
